,Directorate,Supplier Name,Supplier Invoice No,Payment Date,Gross Invoice Value,Vat Amount,Vendor Id,Purpose of Expenditure,Description,Redact flag,Year,Period
1,Community and Housing,SOUTHPARK RESIDENTIAL HOME,911514,20-Dec-22,1035.1,0,19,Older People Placements - East,321017              Social Community Care Supplies & Services - Adult,A,2022,9
2,Community and Housing,SOUTHPARK RESIDENTIAL HOME,911515,20-Dec-22,2965.2,0,19,Older People Placements - East,321017              Social Community Care Supplies & Services - Adult,A,2022,9
3,Community and Housing,SOUTHPARK RESIDENTIAL HOME,911856,20-Dec-22,2965.2,0,19,Older People Placements - East,321017              Social Community Care Supplies & Services - Adult,A,2022,9
4,Community and Housing,POLISH CITIZENS COMMITTEE,911599,20-Dec-22,2937.76,0,71,Older People Placements - East,321017              Nursing & Residential Care Homes,A,2022,9
5,Community and Housing,ST TERESA`S HOME FOR THE ELDERLY,911618,20-Dec-22,3080,0,362,Older People Placements - East,321017              Nursing & Residential Care Homes,A,2022,9
6,Community and Housing,ST TERESA`S HOME FOR THE ELDERLY,911842,20-Dec-22,2443.16,0,362,Older People Placements - East,321017              Nursing & Residential Care Homes,A,2022,9
7,Community and Housing,THE WHITE HOUSE NURSING HOME,911836,20-Dec-22,3396,0,611,Older People Placements - East,321000              Social Community Care Supplies & Services - Adult,A,2022,9
8,"Children, Schools and Family",BLOSSOM HOUSE SCHOOL,9160,12-Dec-22,7166.66,0,777,Non-Delegated Statements,170000              Education,A,2022,9
9,Corporate Services,Quadient,92957922,21-Dec-22,1811.69,301.95,793,Post services,300000              Mail Services,A,2022,9
10,Community and Housing,The Wimbledon Guild of Social Welfare,INV-15196,08-Dec-22,18000,0,802,PH - Elderly Care Pilot,190000              Facilities & Management Services,A,2022,9
11,Unassigned,PERSEID SCHOOL,SCHOOLS 2223/9 A,06-Dec-22,644534.91,0,983,Schools,170000              Education,A,2022,9
12,"Children, Schools and Family",PERSEID SCHOOL,2179,13-Dec-22,550,0,983,SW London School Effectiveness,170000              Education,A,2022,9
13,Community and Housing,SUTTON NURSING HOMES LTD,911467,20-Dec-22,3056.44,0,1208,Older People Placements - East,321017              Nursing & Residential Care Homes,A,2022,9
14,Community and Housing,SUTTON NURSING HOMES LTD,911551,20-Dec-22,3087.16,0,1208,Older People Placements - East,321017              Nursing & Residential Care Homes,A,2022,9
15,Environment and Regeneration,LONDON BOROUGH OF CROYDON,3019406,13-Dec-22,404309.53,65927.95,1258,PARK OPERATIONS,OLA,A,2022,9
16,Environment and Regeneration,LONDON BOROUGH OF CROYDON,3019403,13-Dec-22,1111604.43,185267.41,1258,Refuse Collection (Operations),OLA,A,2022,9
17,Corporate Services,L.B OF RICHMOND UPON THAMES,RC376792128M07D,21-Dec-22,4575,0,1353,SLLP Client Income,OLA,A,2022,9
18,Corporate Services,L.B OF RICHMOND UPON THAMES,RC376792128M08D,22-Dec-22,8300,0,1353,SLLP Client Income,OLA,A,2022,9
19,Unassigned,MELROSE SPECIAL SCHOOL,SCHOOLS 2223/9 A,06-Dec-22,481347.55,0,1393,Schools,170000              Education,A,2022,9
20,Unassigned,WILLIAM MORRIS PRIMARY SCHOOL,SCHOOLS 2223/9 A,06-Dec-22,199673.91,0,1416,Schools,170000              Education,A,2022,9
21,Unassigned,ST THOMAS OF CANTERBURY PRIMARY,A/R REFUND,01-Dec-22,956,0,1418,Corporate Accountancy,170000              Education,A,2022,9
22,Unassigned,ST THOMAS OF CANTERBURY PRIMARY,SCHOOLS 2223/9 A,06-Dec-22,138147.49,0,1418,Schools,170000              Education,A,2022,9
23,Unassigned,PRIORY C OF E MIDDLE SCHOOL,SCHOOLS 2223/9 A,06-Dec-22,81959.31,0,1420,Schools,170000              Education,A,2022,9
24,Unassigned,LIBERTY PRIMARY SCHOOL,SCHOOLS 2223/9 A,06-Dec-22,140028.94,0,1424,Schools,170000              Education,A,2022,9
25,Unassigned,HILLCROSS PRIMARY SCHOOL,SCHOOLS 2223/9 A,06-Dec-22,122353.57,0,1425,Schools,170000              Education,A,2022,9
26,Unassigned,HILLCROSS PRIMARY SCHOOL,22LMPE000003,08-Dec-22,3470,0,1425,Corporate Services,170000              Education,A,2022,9
27,Unassigned,CRANMER PRIMARY SCHOOL,SCHOOLS 2223/9 A,06-Dec-22,291310.18,0,1426,Schools,170000              Education,A,2022,9
28,Unassigned,WIMBLEDON COLLEGE SCHOOL,SCHOOLS 2223/9 A,06-Dec-22,699199.64,0,1428,Schools,170000              Education,A,2022,9
29,Unassigned,URSULINE HIGH SCHOOL,SCHOOLS 2223/9 A,06-Dec-22,674992.22,0,1429,Schools,170000              Education,A,2022,9
30,"Children, Schools and Family",URSULINE HIGH SCHOOL,HAFAUT22-SEND,12-Dec-22,1900,0,1429,Holiday Act Food Prog grntfnd,170000              Education,A,2022,9
31,Unassigned,RUTLISH SCHOOL,SCHOOLS 2223/9 A,06-Dec-22,729567.27,0,1431,Schools,170000              Education,A,2022,9
32,Unassigned,RICARDS LODGE SECONDARY SCHOOL,SCHOOLS 2223/9 A,06-Dec-22,593345.63,0,1433,Schools,170000              Education,A,2022,9
33,Unassigned,WIMBLEDON PARK PRIMARY SCHOOL,SCHOOLS 2223/9 A,06-Dec-22,176542.26,0,1436,Schools,170000              Education,A,2022,9
34,Unassigned,ST TERESA'S R C PRIMARY SCHOOL,SCHOOLS 2223/9 A,06-Dec-22,168499.67,0,1438,Schools,170000              Education,A,2022,9
35,Unassigned,ST MARYS CATHOLIC PRIMARY SCHOOL,SCHOOLS 2223/9 A,06-Dec-22,147374.34,0,1439,Schools,170000              Education,A,2022,9
36,Unassigned,ST MARKS PRIMARY SCHOOL,SCHOOLS 2223/9 A,06-Dec-22,95143.43,0,1440,Schools,170000              Education,A,2022,9
37,Unassigned,ST JOHN FISHER RC PRIMARY SCH.,SCHOOLS 2223/9 A,06-Dec-22,143452,0,1441,Schools,170000              Education,A,2022,9
38,Unassigned,SINGLEGATE PRIMARY SCHOOL,SCHOOLS 2223/9 A,06-Dec-22,336850.15,0,1442,Schools,170000              Education,A,2022,9
39,Unassigned,SHERWOOD PRIMARY SCHOOL,SCHOOLS 2223/9 A,06-Dec-22,126594.53,0,1443,Schools,170000              Education,A,2022,9
40,Unassigned,POPLAR PRIMARY SCHOOL,SCHOOLS 2223/9 A,06-Dec-22,214722.96,0,1444,Schools,170000              Education,A,2022,9
41,Unassigned,PELHAM PRIMARY SCHOOL,SCHOOLS 2223/9 A,06-Dec-22,179866.05,0,1445,Schools,170000              Education,A,2022,9
42,Unassigned,MORDEN PRIMARY SCHOOL,SCHOOLS 2223/9 A,06-Dec-22,93207.62,0,1446,Schools,170000              Education,A,2022,9
43,Unassigned,MERTON PARK PRIMARY SCHOOL,SCHOOLS 2223/9 A,06-Dec-22,74015.5,0,1447,Schools,170000              Education,A,2022,9
44,Unassigned,MERTON ABBEY PRIMARY SCHOOL,SCHOOLS 2223/9 A,06-Dec-22,119753.27,0,1448,Schools,170000              Education,A,2022,9
45,Unassigned,LONESOME PRIMARY SCHOOL,SCHOOLS 2223/9 A,06-Dec-22,176427.82,0,1450,Schools,170000              Education,A,2022,9
46,Unassigned,LINKS PRIMARY SCHOOL,SCHOOLS 2223/9 A,06-Dec-22,139953.43,0,1451,Schools,170000              Education,A,2022,9
47,Unassigned,JOSEPH HOOD PRIMARY SCHOOL,SCHOOLS 2223/9 A,06-Dec-22,120582.2,0,1452,Schools,170000              Education,A,2022,9
48,Unassigned,HOLY TRINITY C OF E PRIMARY SCHOOL,SCHOOLS 2223/9 A,06-Dec-22,156579.26,0,1453,Schools,170000              Education,A,2022,9
49,Unassigned,HOLLYMOUNT PRIMARY SCHOOL,SCHOOLS 2223/9 A,06-Dec-22,167579.63,0,1454,Schools,170000              Education,A,2022,9
50,Unassigned,HATFEILD PRIMARY SCHOOL,SCHOOLS 2223/9 A,06-Dec-22,146567.43,0,1455,Schools,170000              Education,A,2022,9
51,Unassigned,HASLEMERE PRIMARY SCHOOL,SCHOOLS 2223/9 A,06-Dec-22,171200.03,0,1456,Schools,170000              Education,A,2022,9
52,Unassigned,GARFIELD PRIMARY SCHOOL,SCHOOLS 2223/9 A,06-Dec-22,120947.07,0,1460,Schools,170000              Education,A,2022,9
53,Unassigned,BOND PRIMARY SCHOOL,SCHOOLS 2223/9 A,06-Dec-22,150494.8,0,1462,Schools,170000              Education,A,2022,9
54,Unassigned,BISHOP GILPIN C OF E PRIMARY,SCHOOLS 2223/9 A,06-Dec-22,156635.7,0,1463,Schools,170000              Education,A,2022,9
55,Unassigned,ABBOTSBURY PRIMARY SCHOOL,SCHOOLS 2223/9 A,06-Dec-22,145337.35,0,1467,Schools,170000              Education,A,2022,9
56,Unassigned,ABBOTSBURY PRIMARY SCHOOL,21PRE000006DEC22,15-Dec-22,3725.33,0,1467,Corporate Services,170000              Education,A,2022,9
57,Unassigned,WIMBLEDON CHASE PRIMARY SCHOOL,SCHOOLS 2223/9 A,06-Dec-22,256053.71,0,1469,Schools,170000              Education,A,2022,9
58,Unassigned,GORRINGE PARK PRIMARY SCHOOL,SCHOOLS 2223/9 A,06-Dec-22,161350.57,0,1470,Schools,170000              Education,A,2022,9
59,Unassigned,RAYNES PARK SECONDARY SCHOOL,SCHOOLS 2223/9 A,06-Dec-22,716170.24,0,1471,Schools,170000              Education,A,2022,9
60,Unassigned,SS PETER AND PAUL RC PRIMARY SCH,SCHOOLS 2223/9 A,06-Dec-22,122521.03,0,1472,Schools,170000              Education,A,2022,9
61,"Children, Schools and Family",SS PETER AND PAUL RC PRIMARY SCH,SS09CFADV,16-Dec-22,30000,0,1472,Delegated Primary Schools,170000              Education,A,2022,9
62,Unassigned,DUNDONALD PRIMARY SCHOOL,SCHOOLS 2223/9 A,06-Dec-22,143909.61,0,1473,Schools,170000              Education,A,2022,9
63,Community and Housing,MERTON MENCAP,4028,01-Dec-22,2430,0,1519,Learning Disabilities Placemnt,200000              Financial Services,A,2022,9
64,"Children, Schools and Family",MERTON MENCAP,4316,14-Dec-22,81505,0,1519, Statementing-Transport,200000              Financial Services,A,2022,9
65,Unassigned,ALL SAINTS C OF E PRIMARY SCH,SCHOOLS 2223/9 A,06-Dec-22,171814.12,0,1680,Schools,170000              Education,A,2022,9
66,"Children, Schools and Family",REDACTED PERSONAL DATA,906383,02-Dec-22,614.75,0,1801,Placements Under 18,321100              Social Community Care Supplies & Services - Children,R,2022,9
67,"Children, Schools and Family",REDACTED PERSONAL DATA,906421,02-Dec-22,565.5,0,1801,Placements Under 18,321100              Social Community Care Supplies & Services - Children,R,2022,9
68,"Children, Schools and Family",REDACTED PERSONAL DATA,906438,02-Dec-22,614.75,0,1801,Placements Under 18,321100              Social Community Care Supplies & Services - Children,R,2022,9
69,"Children, Schools and Family",REDACTED PERSONAL DATA,909155,09-Dec-22,514.75,0,1801,Placements Under 18,321100              Social Community Care Supplies & Services - Children,R,2022,9
70,"Children, Schools and Family",REDACTED PERSONAL DATA,909211,09-Dec-22,514.75,0,1801,Placements Under 18,321100              Social Community Care Supplies & Services - Children,R,2022,9
71,"Children, Schools and Family",REDACTED PERSONAL DATA,911961,16-Dec-22,1029.5,0,1801,Placements Under 18,321100              Social Community Care Supplies & Services - Children,R,2022,9
72,"Children, Schools and Family",REDACTED PERSONAL DATA,912000,16-Dec-22,931,0,1801,Placements Under 18,321100              Social Community Care Supplies & Services - Children,R,2022,9
73,"Children, Schools and Family",REDACTED PERSONAL DATA,912018,16-Dec-22,1029.5,0,1801,Placements Under 18,321100              Social Community Care Supplies & Services - Children,R,2022,9
74,"Children, Schools and Family",REDACTED PERSONAL DATA,914799,29-Dec-22,514.75,0,1801,Placements Under 18,321100              Social Community Care Supplies & Services - Children,R,2022,9
75,"Children, Schools and Family",REDACTED PERSONAL DATA,914857,29-Dec-22,514.75,0,1801,Placements Under 18,321100              Social Community Care Supplies & Services - Children,R,2022,9
76,Corporate Services,CIVICA UK LIMITED,C/BN258482,22-Dec-22,9800.41,1633.4,1873,Benefits Administration,270000              Information Communication Technology,A,2022,9
77,Corporate Services,CIVICA UK LIMITED,C/BN258481,22-Dec-22,3330.01,555,1873,Benefits Administration,270000              Information Communication Technology,A,2022,9
78,"Children, Schools and Family",THE CHILDRENS TRUST,5287,20-Dec-22,16444.92,0,1980,Non-Delegated Statements,170000              Education,A,2022,9
79,"Children, Schools and Family",THE CHILDRENS TRUST,5289,20-Dec-22,5927.82,0,1980,Non-Delegated Statements,170000              Education,A,2022,9
80,"Children, Schools and Family",THE CHILDRENS TRUST,5283,20-Dec-22,7805.18,0,1980,Non-Delegated Statements,170000              Education,A,2022,9
81,"Children, Schools and Family",THE CHILDRENS TRUST,5284,20-Dec-22,3237.33,0,1980,Non-Delegated Statements,170000              Education,A,2022,9
82,"Children, Schools and Family",THE CHILDRENS TRUST,5285,20-Dec-22,6149.78,0,1980,Non-Delegated Statements,170000              Education,A,2022,9
83,"Children, Schools and Family",THE CHILDRENS TRUST,5290,20-Dec-22,7620.3,0,1980,Non-Delegated Statements,170000              Education,A,2022,9
84,"Children, Schools and Family",THE CHILDRENS TRUST,5288,20-Dec-22,15000,0,1980,Non-Delegated Statements,170000              Education,A,2022,9
85,Community and Housing,THE FRANCES TAYLOR FOUNDATION,911536,20-Dec-22,3812.04,0,2011,Learning Disabilities Placemnt,321017              Nursing & Residential Care Homes,A,2022,9
86,Unassigned,SACRED HEART R C PRIMARY SCH.,SCHOOLS 2223/9 A,06-Dec-22,140535.98,0,2076,Schools,170000              Education,A,2022,9
87,Corporate Services,CANON UK LIMITED,2.2088E+12,15-Dec-22,10200,1700,2181,Business Systems,340000              Stationery,A,2022,9
88,Corporate Services,CANON UK LIMITED,2.2088E+12,22-Dec-22,1911.6,318.6,2181,Business Systems,340000              Stationery,A,2022,9
89,Corporate Services,CANON UK LIMITED,2.2088E+12,22-Dec-22,1911.6,318.6,2181,Business Systems,340000              Stationery,A,2022,9
90,Community and Housing,GENEVA ROAD LIMITED,301122JW,19-Dec-22,781.09,130.18,2198,Older People Placements - East,321000              Social Community Care Supplies & Services - Adult,A,2022,9
91,Corporate Services,LONDON BOROUGH OF SUTTON,SLLPINCOMEM0822,08-Dec-22,9350,0,2313,SLLP Client Income,OLA,A,2022,9
92,Unassigned,LONDON BOROUGH OF SUTTON,32KIMPTON,14-Dec-22,1000,0,2313,Corporate Services,OLA,A,2022,9
93,Corporate Services,GREENHAM TRADING LTD,07/480739,16-Dec-22,772.56,128.76,2445,Buildings Maintenance,130000              Cleaning & Janitorial,A,2022,9
94,Community and Housing,FREEWAYS TRUST LTD,911447,20-Dec-22,3229.2,0,2474,Learning Disabilities Placemnt,321017              Nursing & Residential Care Homes,A,2022,9
95,Unassigned,WIMBLEDON AND PUTNEY COMMON,2.02212E+11,28-Dec-22,37623.1,0,10566,WPCC,PRECEPT,A,2022,9
96,Community and Housing,CLOYDA LTD,911712,20-Dec-22,3294.48,0,10762,Older People Placements - East,321017              Nursing & Residential Care Homes,A,2022,9
97,Community and Housing,CHEGWORTH N.H. (BAYSWIFT LTD),911670,20-Dec-22,3056.4,0,11057,Learning Disabilities Placemnt,321000              Social Community Care Supplies & Services - Adult,A,2022,9
98,"Children, Schools and Family",REDACTED PERSONAL DATA,906389,02-Dec-22,680.36,0,11130,Placements Under 18,321100              Social Community Care Supplies & Services - Children,R,2022,9
99,"Children, Schools and Family",REDACTED PERSONAL DATA,909162,09-Dec-22,580.36,0,11130,Placements Under 18,321100              Social Community Care Supplies & Services - Children,R,2022,9
100,"Children, Schools and Family",REDACTED PERSONAL DATA,911968,16-Dec-22,1160.72,0,11130,Placements Under 18,321100              Social Community Care Supplies & Services - Children,R,2022,9
101,"Children, Schools and Family",REDACTED PERSONAL DATA,914806,29-Dec-22,580.36,0,11130,Placements Under 18,321100              Social Community Care Supplies & Services - Children,R,2022,9
102,"Children, Schools and Family",ST DOMINIC'S SCHOOL,DI112104522,02-Dec-22,11538.46,0,11569,Non-Delegated Statements,170000              Education,A,2022,9
103,Community and Housing,ASHCROFT CARE SERVICES,911669,20-Dec-22,6161.24,0,13287,Learning Disabilities Placemnt,321017              Nursing & Residential Care Homes,A,2022,9
104,Community and Housing,SHARE COMMUNITY LTD,231167,09-Dec-22,900,0,13487,Learning Disabilities Placemnt,321017              Nursing & Residential Care Homes,A,2022,9
105,Community and Housing,SHARE COMMUNITY LTD,231152,13-Dec-22,1120,0,13487,Learning Disabilities Placemnt,321017              Nursing & Residential Care Homes,A,2022,9
106,Community and Housing,SHARE COMMUNITY LTD,231149,13-Dec-22,840,0,13487,Learning Disabilities Placemnt,321017              Nursing & Residential Care Homes,A,2022,9
107,Community and Housing,SHARE COMMUNITY LTD,231144,13-Dec-22,560,0,13487,Learning Disabilities Placemnt,321017              Nursing & Residential Care Homes,A,2022,9
108,Community and Housing,SHARE COMMUNITY LTD,231139,13-Dec-22,840,0,13487,Learning Disabilities Placemnt,321017              Nursing & Residential Care Homes,A,2022,9
109,Community and Housing,SHARE COMMUNITY LTD,231136,13-Dec-22,600,0,13487,Learning Disabilities Placemnt,321017              Nursing & Residential Care Homes,A,2022,9
110,Community and Housing,FITZROY SUPPORT,911781,20-Dec-22,8304.28,0,13535,Learning Disabilities Placemnt,321017              Nursing & Residential Care Homes,A,2022,9
111,Community and Housing,CANTERBURY OAST TRUST LTD,911460,20-Dec-22,2541.24,0,13566,Learning Disabilities Placemnt,321017              Nursing & Residential Care Homes,A,2022,9
112,Community and Housing,MACINTYRE,911473,20-Dec-22,5776,0,13585,Learning Disabilities Placemnt,321017              Nursing & Residential Care Homes,A,2022,9
113,Community and Housing,MACINTYRE,911644,20-Dec-22,5641.36,0,13585,Learning Disabilities Placemnt,321017              Nursing & Residential Care Homes,A,2022,9
114,Community and Housing,MACINTYRE,911749,20-Dec-22,5641.36,0,13585,Older People Placements - East,321017              Nursing & Residential Care Homes,A,2022,9
115,Community and Housing,MACINTYRE,911779,20-Dec-22,4825.24,0,13585,Learning Disabilities Placemnt,321017              Nursing & Residential Care Homes,A,2022,9
116,Community and Housing,KENT AUTISTIC TRUST,911758,20-Dec-22,7494.72,0,13670,Learning Disabilities Placemnt,321017              Nursing & Residential Care Homes,A,2022,9
117,"Children, Schools and Family",CROYDON COLLEGE,IJ/000847,16-Dec-22,4333.82,0,15734,Non-Maintained Post 16 SEN,200000              Financial Services,A,2022,9
118,"Children, Schools and Family",CROYDON COLLEGE,IJ/000848,16-Dec-22,2332.64,0,15734,Non-Maintained Post 16 SEN,200000              Financial Services,A,2022,9
119,"Children, Schools and Family",CROYDON COLLEGE,IJ/000849,16-Dec-22,4744.03,0,15734,Non-Maintained Post 16 SEN,200000              Financial Services,A,2022,9
120,"Children, Schools and Family",CROYDON COLLEGE,IJ/000850,16-Dec-22,4202.53,0,15734,Non-Maintained Post 16 SEN,200000              Financial Services,A,2022,9
121,"Children, Schools and Family",CROYDON COLLEGE,IJ/000852,16-Dec-22,2948.53,0,15734,Non-Maintained Post 16 SEN,200000              Financial Services,A,2022,9
122,"Children, Schools and Family",CROYDON COLLEGE,IJ/000853,16-Dec-22,2242.27,0,15734,Non-Maintained Post 16 SEN,200000              Financial Services,A,2022,9
123,"Children, Schools and Family",CROYDON COLLEGE,IJ/000851,19-Dec-22,3433.99,0,15734,Non-Maintained Post 16 SEN,200000              Financial Services,A,2022,9
124,Corporate Services,KINGSTON CORPORATION,M08LEGAL22/23,08-Dec-22,5440,0,21573,SLLP Client Income,180000              Environmental Services,A,2022,9
125,Unassigned, GREATER LONDON AUTHORITY (LPFA),2.02212E+11,29-Dec-22,25430.2,0,21763,London Pens Fund Auth,PRECEPT,A,2022,9
126,Corporate Services,I J BEIM AND ASSOCIATES LTD,12698,19-Dec-22,530.04,88.34,24949,SLLP - Disbursements,280000              Legal Services,A,2022,9
127,Corporate Services,I J BEIM AND ASSOCIATES LTD,12623,22-Dec-22,647.46,107.91,24949,SLLP - Disbursements,280000              Legal Services,A,2022,9
128,Corporate Services,R G JONES SOUND ENGINEER,20230178,12-Dec-22,654,109,29945,Democracy Services,270000              Information Communication Technology,A,2022,9
129,Corporate Services,R G JONES SOUND ENGINEER,20230180,12-Dec-22,1026,171,29945,Democracy Services,270000              Information Communication Technology,A,2022,9
130,Corporate Services,R G JONES SOUND ENGINEER,20230181,12-Dec-22,654,109,29945,Democracy Services,270000              Information Communication Technology,A,2022,9
131,Community and Housing,TRINITY COURT NURSING HOME,911511,20-Dec-22,2861.6,0,30306,Older People Placements - East,321017              Nursing & Residential Care Homes,A,2022,9
132,Community and Housing,TRINITY COURT NURSING HOME,911645,20-Dec-22,2985.6,0,30306,Older People Placements - East,321017              Nursing & Residential Care Homes,A,2022,9
133,Community and Housing,TRINITY COURT NURSING HOME,911676,20-Dec-22,3063.24,0,30306,Older People Placements - East,321017              Nursing & Residential Care Homes,A,2022,9
134,Community and Housing,TRINITY COURT NURSING HOME,911691,20-Dec-22,3313.84,0,30306,Phys/Sens Placements - East,321017              Nursing & Residential Care Homes,A,2022,9
135,Community and Housing,TRINITY COURT NURSING HOME,911700,20-Dec-22,3986.36,0,30306,Older People Placements - East,321017              Nursing & Residential Care Homes,A,2022,9
136,Community and Housing,TRINITY COURT NURSING HOME,911714,20-Dec-22,3135.72,0,30306,Older People Placements - East,321017              Nursing & Residential Care Homes,A,2022,9
137,Community and Housing,TRINITY COURT NURSING HOME,911756,20-Dec-22,2985.6,0,30306,Older People Placements - East,321017              Nursing & Residential Care Homes,A,2022,9
138,Community and Housing,TRINITY COURT NURSING HOME,911764,20-Dec-22,2861.6,0,30306,Older People Placements - East,321017              Nursing & Residential Care Homes,A,2022,9
139,Community and Housing,TRINITY COURT NURSING HOME,911772,20-Dec-22,3063.24,0,30306,Older People Placements - East,321017              Nursing & Residential Care Homes,A,2022,9
140,Community and Housing,TRINITY COURT NURSING HOME,911833,20-Dec-22,2985.6,0,30306,Older People Placements - East,321017              Nursing & Residential Care Homes,A,2022,9
141,Community and Housing,TRINITY COURT NURSING HOME,911860,20-Dec-22,2876.32,0,30306,Older People Placements - East,321017              Nursing & Residential Care Homes,A,2022,9
142,Community and Housing,TRINITY COURT NURSING HOME,911862,20-Dec-22,3149.6,0,30306,Older People Placements - East,321017              Nursing & Residential Care Homes,A,2022,9
143,Community and Housing,TRINITY COURT NURSING HOME,911864,20-Dec-22,2521.12,0,30306,Older People Placements - East,321017              Nursing & Residential Care Homes,A,2022,9
144,Community and Housing,HAYDON PARK LODGE,911466,20-Dec-22,4680,0,31434,Learning Disabilities Placemnt,321017              Nursing & Residential Care Homes,A,2022,9
145,Community and Housing,HAYDON PARK LODGE,911597,20-Dec-22,3485,0,31434,Learning Disabilities Placemnt,321017              Nursing & Residential Care Homes,A,2022,9
146,Community and Housing,HAYDON PARK LODGE,911625,20-Dec-22,4591.44,0,31434,Learning Disabilities Placemnt,321017              Nursing & Residential Care Homes,A,2022,9
147,Community and Housing,HAYDON PARK LODGE,911701,20-Dec-22,5070.76,0,31434,Learning Disabilities Placemnt,321017              Nursing & Residential Care Homes,A,2022,9
148,Community and Housing,HAYDON PARK LODGE,911743,20-Dec-22,4420.08,0,31434,Learning Disabilities Placemnt,321017              Nursing & Residential Care Homes,A,2022,9
149,Community and Housing,Barchester Healthcare Wimbledon Beaumont,911540,20-Dec-22,4056,0,33384,Older People Placements - East,321017              Nursing & Residential Care Homes,A,2022,9
150,Community and Housing,Barchester Healthcare Wimbledon Beaumont,911559,20-Dec-22,3000,0,33384,Older People Placements - East,321017              Nursing & Residential Care Homes,A,2022,9
151,Community and Housing,COMFORT CARE SERVICES (UK) LTD,SU0091/267,28-Dec-22,871.36,0,34932,Mental Health Placements,321000              Social Community Care Supplies & Services - Adult,A,2022,9
152,Community and Housing,COMFORT CARE SERVICES (UK) LTD,SU0146/1345,13-Dec-22,2380,0,34932,Mental Health Placements,321000              Social Community Care Supplies & Services - Adult,A,2022,9
153,Community and Housing,COMFORT CARE SERVICES (UK) LTD,SU0208/1469,13-Dec-22,2380,0,34932,Mental Health Placements,321000              Social Community Care Supplies & Services - Adult,A,2022,9
154,Community and Housing,COMFORT CARE SERVICES (UK) LTD,SU0266/1397,13-Dec-22,2380,0,34932,Mental Health Placements,321000              Social Community Care Supplies & Services - Adult,A,2022,9
155,Community and Housing,COMFORT CARE SERVICES (UK) LTD,SU0210/1049,13-Dec-22,2380,0,34932,Mental Health Placements,321000              Social Community Care Supplies & Services - Adult,A,2022,9
156,Community and Housing,COMFORT CARE SERVICES (UK) LTD,SU0294/1452,13-Dec-22,2380,0,34932,Mental Health Placements,321000              Social Community Care Supplies & Services - Adult,A,2022,9
157,Community and Housing,COMFORT CARE SERVICES (UK) LTD,SU1051/1153-54,13-Dec-22,3295,0,34932,Mental Health Placements,321000              Social Community Care Supplies & Services - Adult,A,2022,9
158,Community and Housing,COMFORT CARE SERVICES (UK) LTD,SU0298/910,13-Dec-22,2380,0,34932,Mental Health Placements,321000              Social Community Care Supplies & Services - Adult,A,2022,9
159,Community and Housing,COMFORT CARE SERVICES (UK) LTD,SU0184/909,13-Dec-22,2380,0,34932,Mental Health Placements,321000              Social Community Care Supplies & Services - Adult,A,2022,9
160,Community and Housing,COMFORT CARE SERVICES (UK) LTD,SU0201/1346,13-Dec-22,2380,0,34932,Mental Health Placements,321000              Social Community Care Supplies & Services - Adult,A,2022,9
161,Community and Housing,COMFORT CARE SERVICES (UK) LTD,SU0133/1048,13-Dec-22,2380,0,34932,Mental Health Placements,321000              Social Community Care Supplies & Services - Adult,A,2022,9
162,Community and Housing,COMFORT CARE SERVICES (UK) LTD,SU1102/1470,13-Dec-22,2380,0,34932,Mental Health Placements,321000              Social Community Care Supplies & Services - Adult,A,2022,9
163,Community and Housing,COMFORT CARE SERVICES (UK) LTD,SU1041/794,28-Dec-22,1632.15,0,34932,Mental Health Placements,321000              Social Community Care Supplies & Services - Adult,A,2022,9
164,Unassigned,ST MATTHEW'S C OF E PRIMARY,SCHOOLS 2223/9 A,06-Dec-22,135754.07,0,36050,Schools,170000              Education,A,2022,9
165,"Children, Schools and Family",REDACTED PERSONAL DATA,912012,16-Dec-22,852.2,0,36376,Placements Over 18,321100              Social Community Care Supplies & Services - Children,R,2022,9
166,Community and Housing,JESMUND CARE LTD,911698,20-Dec-22,4000,0,46751,Older People Placements - East,321017              Nursing & Residential Care Homes,A,2022,9
167,Community and Housing,JESMUND CARE LTD,911819,20-Dec-22,3600,0,46751,Older People Placements - East,321017              Nursing & Residential Care Homes,A,2022,9
168,Environment and Regeneration,CAPITA BUSINESS SERVICES LTD,6004124523,19-Dec-22,2299.2,383.2,47966,Operational Running Costs,270000              Information Communication Technology,A,2022,9
169,Environment and Regeneration,CAPITA BUSINESS SERVICES LTD,6004124522,19-Dec-22,1513.2,252.2,47966,Operational Running Costs,270000              Information Communication Technology,A,2022,9
170,Community and Housing,REDACTED PERSONAL DATA,906962,06-Dec-22,4900.28,0,50448,Older People Placements - East,DIRECT PAYMENTS,R,2022,9
171,Community and Housing,LINKAGE COMMUNITY TR.LONG-STAY,911734,20-Dec-22,3340.08,0,52552,Learning Disabilities Placemnt,321017              Nursing & Residential Care Homes,A,2022,9
172,Environment and Regeneration,COMPLETE WEED CONTROL,LS7113,14-Dec-22,504,84,53122,Reactive Maintenance,240000              Horticultural,A,2022,9
173,Community and Housing,RUTLAND HOUSE CARE HOME,911427,20-Dec-22,914.29,0,53424,Older People Placements - East,321017              Nursing & Residential Care Homes,A,2022,9
174,Community and Housing,RUTLAND HOUSE CARE HOME,911617,20-Dec-22,3156,0,53424,Older People Placements - East,321017              Nursing & Residential Care Homes,A,2022,9
175,Community and Housing,RUTLAND HOUSE CARE HOME,911724,20-Dec-22,3200,0,53424,Older People Placements - East,321017              Nursing & Residential Care Homes,A,2022,9
176,"Children, Schools and Family",HASLEMERE HOUSE DAY NURSERY,P2 22 EY FUND 2,14-Dec-22,892.5,0,55612,EARLY YEARS NURSERY GRANTS,170000              Education,A,2022,9
177,Community and Housing,PARK LODGE,911583,20-Dec-22,2940,0,56878,Learning Disabilities Placemnt,321017              Nursing & Residential Care Homes,A,2022,9
178,Community and Housing,PARK LODGE,911674,20-Dec-22,3026.8,0,56878,Learning Disabilities Placemnt,321017              Nursing & Residential Care Homes,A,2022,9
179,Unassigned,CRICKET GREEN SCHOOL,SCHOOLS 2223/9 A,06-Dec-22,304502.13,0,57057,Schools,170000              Education,A,2022,9
180,Community and Housing,KENWARD TRUST,911452,20-Dec-22,3196,0,57058,Substance Misuse Placements,321100              Social Community Care Supplies & Services - Children,A,2022,9
181,Community and Housing,KENWARD TRUST,911784,20-Dec-22,3196,0,57058,Substance Misuse Placements,321100              Social Community Care Supplies & Services - Children,A,2022,9
182,Community and Housing,MERTON VOLUNTARY SERV COUNCIL,5187,01-Dec-22,50000,0,57560,Grants to Voluntary Orgs,190000              Facilities & Management Services,A,2022,9
183,Corporate Services,MERTON VOLUNTARY SERV COUNCIL,5185,01-Dec-22,10416.67,0,57560,Healthwatch,190000              Facilities & Management Services,A,2022,9
184,Corporate Services,MERTON VOLUNTARY SERV COUNCIL,5193,01-Dec-22,10416.67,0,57560,Healthwatch,190000              Facilities & Management Services,A,2022,9
185,Corporate Services,MERTON VOLUNTARY SERV COUNCIL,5197,28-Dec-22,10416.67,0,57560,Healthwatch,190000              Facilities & Management Services,A,2022,9
186,Environment and Regeneration,MERTON VOLUNTARY SERV COUNCIL,5186,16-Dec-22,3422.8,0,57560,HLF Canons,190000              Facilities & Management Services,A,2022,9
187,Corporate Services,JADE SECURITY SERVICE LTD,4594,28-Dec-22,2559.79,426.63,57563,Cash Collections,200000              Financial Services,A,2022,9
188,Community and Housing,WALSINGHAM,911552,20-Dec-22,5486.52,0,58466,Learning Disabilities Placemnt,321017              Nursing & Residential Care Homes,A,2022,9
189,Community and Housing,WALSINGHAM,911732,20-Dec-22,5486.4,0,58466,Learning Disabilities Placemnt,321017              Nursing & Residential Care Homes,A,2022,9
190,Community and Housing,WALSINGHAM,911791,20-Dec-22,5552.64,0,58466,Learning Disabilities Placemnt,321017              Nursing & Residential Care Homes,A,2022,9
191,Community and Housing,WALSINGHAM,911796,20-Dec-22,5476.12,0,58466,Learning Disabilities Placemnt,321017              Nursing & Residential Care Homes,A,2022,9
192,Community and Housing,CARE UK,911445,20-Dec-22,3229.52,0,58851,Older People Placements - East,321017              Nursing & Residential Care Homes,A,2022,9
193,Community and Housing,CARE UK,911464,20-Dec-22,3800,0,58851,Older People Placements - East,321017              Nursing & Residential Care Homes,A,2022,9
194,Community and Housing,CARE UK,911531,20-Dec-22,3963.24,0,58851,Older People Placements - East,321017              Nursing & Residential Care Homes,A,2022,9
195,Community and Housing,CARE UK,911623,20-Dec-22,3264.32,0,58851,Older People Placements - East,321017              Nursing & Residential Care Homes,A,2022,9
196,Community and Housing,CARE UK,911725,20-Dec-22,3229.52,0,58851,Older People Placements - East,321017              Nursing & Residential Care Homes,A,2022,9
197,Community and Housing,CARE UK,911747,20-Dec-22,3723.24,0,58851,Older People Placements - East,321017              Nursing & Residential Care Homes,A,2022,9
198,Community and Housing,CARE UK,911802,20-Dec-22,3736,0,58851,Older People Placements - East,321017              Nursing & Residential Care Homes,A,2022,9
199,Community and Housing,CARE UK,911813,20-Dec-22,4000,0,58851,Older People Placements - East,321017              Nursing & Residential Care Homes,A,2022,9
200,Community and Housing,CARE UK,911816,20-Dec-22,3229.52,0,58851,Older People Placements - East,321017              Nursing & Residential Care Homes,A,2022,9
201,Community and Housing,CARE UK,911823,20-Dec-22,3143.16,0,58851,Older People Placements - East,321017              Nursing & Residential Care Homes,A,2022,9
202,"Children, Schools and Family",ST MICHAEL'S FELLOWSHIP,C305B/2100,19-Dec-22,840,0,59560,Placements Under 18,280000              Legal Services,A,2022,9
203,"Children, Schools and Family",ST MICHAEL'S FELLOWSHIP,C3053A/2100,19-Dec-22,21235,0,59560,Placements Under 18,280000              Legal Services,A,2022,9
204,"Children, Schools and Family",ST MICHAEL'S FELLOWSHIP,C3047A/2100,28-Dec-22,19635.75,0,59560,Placements Under 18,280000              Legal Services,A,2022,9
205,Corporate Services,BRITISH TELECOMMUNICATIONS PLC,0084PD,16-Dec-22,13979.38,2329.89,62082,IT-Telecomms,270000              Information Communication Technology,A,2022,9
206,Community and Housing,RUSHTON WORKWEAR LTD,50468,30-Dec-22,681.54,113.59,62131,Reablement,140000              Clothing,A,2022,9
207,Community and Housing,BARONS LODGE NURSING HOME,911506,20-Dec-22,1716,0,62371,Mental Health Placements,321017              Nursing & Residential Care Homes,A,2022,9
208,Community and Housing,BARONS LODGE NURSING HOME,911694,20-Dec-22,3502,0,62371,Mental Health Placements,321017              Nursing & Residential Care Homes,A,2022,9
209,Community and Housing,BARONS LODGE NURSING HOME,911705,20-Dec-22,4200,0,62371,Mental Health Placements,321017              Nursing & Residential Care Homes,A,2022,9
210,Community and Housing,BARONS LODGE NURSING HOME,911763,20-Dec-22,2678,0,62371,Learning Disabilities Placemnt,321017              Nursing & Residential Care Homes,A,2022,9
211,Community and Housing,BARONS LODGE NURSING HOME,911768,20-Dec-22,4360,0,62371,Mental Health Placements,321017              Nursing & Residential Care Homes,A,2022,9
212,Community and Housing,BARONS LODGE NURSING HOME,911774,20-Dec-22,4360,0,62371,Older People Placements - East,321017              Nursing & Residential Care Homes,A,2022,9
213,Community and Housing,BARONS LODGE NURSING HOME,911775,20-Dec-22,3807.2,0,62371,Learning Disabilities Placemnt,321017              Nursing & Residential Care Homes,A,2022,9
214,Community and Housing,BARONS LODGE NURSING HOME,911808,20-Dec-22,3502,0,62371,Older People Placements - East,321017              Nursing & Residential Care Homes,A,2022,9
215,Community and Housing,SANCTUARY CARE LTD,911475,20-Dec-22,3117.52,0,63458,Learning Disabilities Placemnt,321017              Nursing & Residential Care Homes,A,2022,9
216,Community and Housing,THE REGARD PARTNERSHIP LTD,911459,20-Dec-22,6220.72,0,63796,Learning Disabilities Placemnt,321017              Nursing & Residential Care Homes,A,2022,9
217,Community and Housing,THE REGARD PARTNERSHIP LTD,911550,20-Dec-22,6010.48,0,63796,Learning Disabilities Placemnt,321017              Nursing & Residential Care Homes,A,2022,9
218,Community and Housing,THE REGARD PARTNERSHIP LTD,911565,20-Dec-22,9681.96,0,63796,Learning Disabilities Placemnt,321017              Nursing & Residential Care Homes,A,2022,9
219,Community and Housing,THE REGARD PARTNERSHIP LTD,911581,20-Dec-22,5765,0,63796,Learning Disabilities Placemnt,321017              Nursing & Residential Care Homes,A,2022,9
220,Community and Housing,THE REGARD PARTNERSHIP LTD,911682,20-Dec-22,6126.52,0,63796,Learning Disabilities Placemnt,321017              Nursing & Residential Care Homes,A,2022,9
221,Community and Housing,THE REGARD PARTNERSHIP LTD,911792,20-Dec-22,4901.24,0,63796,Learning Disabilities Placemnt,321017              Nursing & Residential Care Homes,A,2022,9
222,Community and Housing,NAS SERVICES LIMITED,ASU2384620,07-Dec-22,4546.8,757.8,68929,Mental Health Placements,321100              Social Community Care Supplies & Services - Children,A,2022,9
223,"Children, Schools and Family",POLKA THEATRE FOR CHILDREN,22-MG-53E5,15-Dec-22,1830,0,69287,Holiday Act Food Prog grntfnd,290000              Arts & Leisure Services,A,2022,9
224,Community and Housing,TRANSPORT TRADING LIMITED [SE1 0AL],3RD QTR CONCESS,07-Dec-22,1169226.78,0,71407,Concessionary Fares,360000              Passenger Transport,A,2022,9
225,"Children, Schools and Family",INTEGRATED SERVICES PROGRAMME,630040342,16-Dec-22,6284.4,0,72728,Placements Under 18,321100              Social Community Care Supplies & Services - Children,A,2022,9
226,"Children, Schools and Family",ETHELBERT SPECIALIST HOMES LTD,LL/1122/803,06-Dec-22,14201.91,0,72942,Placements Under 18,321100              Social Community Care Supplies & Services - Children,A,2022,9
227,Community and Housing,BRANDON TRUST,911469,20-Dec-22,4054,0,76126,Learning Disabilities Placemnt,321017              Nursing & Residential Care Homes,A,2022,9
228,Unassigned,LONDON BOROUGH OF SUTTON,BAILIFFNOV2022,20-Dec-22,139040.74,0,76615,Corporate Services,OLA,A,2022,9
229,Unassigned,POST OFFICE LTD,PO15 22/23,02-Dec-22,15450.95,0,77066,Adults Social Care,200000              Financial Services,A,2022,9
230,Unassigned,POST OFFICE LTD,MERTTON22/23PO16,08-Dec-22,10596.85,0,77066,Adults Social Care,200000              Financial Services,A,2022,9
231,Unassigned,POST OFFICE LTD,MERTON2223PO17,16-Dec-22,12645.4,0,77066,Adults Social Care,200000              Financial Services,A,2022,9
232,Unassigned,POST OFFICE LTD,MERTON22/23PO18,22-Dec-22,10099.85,0,77066,Adults Social Care,200000              Financial Services,A,2022,9
233,Community and Housing,ABBEY HOUSE RESIDENTIAL HOMES,911470,20-Dec-22,2859.72,0,78937,Older People Placements - East,321017              Nursing & Residential Care Homes,A,2022,9
234,Community and Housing,ABBEY HOUSE RESIDENTIAL HOMES,911490,20-Dec-22,3337.76,0,78937,Older People Placements - East,321017              Nursing & Residential Care Homes,A,2022,9
235,Community and Housing,ABBEY HOUSE RESIDENTIAL HOMES,911493,20-Dec-22,5520,0,78937,Mental Health Placements,321017              Nursing & Residential Care Homes,A,2022,9
236,Community and Housing,REDACTED PERSONAL DATA,906794,06-Dec-22,5088.12,0,81639,Older People Placements - East,DIRECT PAYMENTS,R,2022,9
237,Corporate Services,IRON MOUNTAIN (UK) LTD,17147944,22-Dec-22,959.27,159.88,82409,IT-Telecomms,270000              Information Communication Technology,A,2022,9
238,Community and Housing,ASKEWS AND HOLTS LIBRARY SRV LTD,6799885,22-Dec-22,583.34,0,82770,Media Fund,200000              Financial Services,A,2022,9
239,Unassigned,GREATER LONDON AUTHORITY,2.02212E+11,29-Dec-22,3076302.89,0,83050,Collection Fund,PRECEPT,A,2022,9
240,Corporate Services,REDACTED PERSONAL DATA,INVJD161,19-Dec-22,2100,350,83383,SLLP - Disbursements,280000              Legal Services,R,2022,9
241,Unassigned,MALMESBURY PRIMARY SCHOOL,SCHOOLS 2223/9 A,06-Dec-22,155764.39,0,83593,Schools,170000              Education,A,2022,9
242,"Children, Schools and Family",YOUNG EPILEPSY,INV010862,30-Dec-22,16627.73,0,84094,SEN Residential (DSG),170000              Education,A,2022,9
243,"Children, Schools and Family",YOUNG EPILEPSY,INV010850,30-Dec-22,21463.47,0,84094,Non-Delegated Statements,170000              Education,A,2022,9
244,"Children, Schools and Family",YOUNG EPILEPSY,INV010852,30-Dec-22,12667,0,84094,SEN Residential (DSG),170000              Education,A,2022,9
245,"Children, Schools and Family",YOUNG EPILEPSY,INV010855,30-Dec-22,12935.34,0,84094,SEN Residential (DSG),170000              Education,A,2022,9
246,"Children, Schools and Family",YOUNG EPILEPSY,INV010857,30-Dec-22,15585.98,0,84094,SEN Residential (DSG),170000              Education,A,2022,9
247,"Children, Schools and Family",YOUNG EPILEPSY,INV010863,30-Dec-22,15616,0,84094,SEN Residential (DSG),170000              Education,A,2022,9
248,Capital,NEWSQUEST MEDIA GROUP LTD,41569867,28-Dec-22,2054.81,342.47,85566,Highways & Footways,190000              Facilities & Management Services,A,2022,9
249,Environment and Regeneration,NEWSQUEST MEDIA GROUP LTD,41607719,28-Dec-22,652.32,108.72,85566,Development Control,190000              Facilities & Management Services,A,2022,9
250,Corporate Services,CITY OF WESTMINSTER,3660078833,05-Dec-22,333506.35,55584.39,89641,Coroners Courts,OLA,A,2022,9
251,"Children, Schools and Family",LONDON GRID FOR LEARNING TRUST,2020014026,28-Dec-22,540,90,90449, Schools IT Support,270000              Information Communication Technology,A,2022,9
252,"Children, Schools and Family",LONDON GRID FOR LEARNING TRUST,2020014027,28-Dec-22,1438.8,239.8,90449, Schools IT Support,270000              Information Communication Technology,A,2022,9
253,"Children, Schools and Family",LONDON GRID FOR LEARNING TRUST,2020014025,28-Dec-22,1438.8,239.8,90449, Schools IT Support,270000              Information Communication Technology,A,2022,9
254,Community and Housing,SUPREME CARE SERVICES LIMITED,85526A,28-Dec-22,2778.72,0,91840,Older People Placements - East,321000              Social Community Care Supplies & Services - Adult,A,2022,9
255,Community and Housing,SUPREME CARE SERVICES LIMITED,85551,28-Dec-22,2679.48,0,91840,Older People Placements - East,321000              Social Community Care Supplies & Services - Adult,A,2022,9
256,Community and Housing,SUPREME CARE SERVICES LIMITED,85558,28-Dec-22,762.93,0,91840,Older People Placements - East,321000              Social Community Care Supplies & Services - Adult,A,2022,9
257,Community and Housing,SUPREME CARE SERVICES LIMITED,85556,28-Dec-22,1068.2,0,91840,Older People Placements - East,321000              Social Community Care Supplies & Services - Adult,A,2022,9
258,Community and Housing,SUPREME CARE SERVICES LIMITED,85555,28-Dec-22,1120.06,0,91840,Older People Placements - East,321000              Social Community Care Supplies & Services - Adult,A,2022,9
259,Community and Housing,SUPREME CARE SERVICES LIMITED,85554,28-Dec-22,731.83,0,91840,Older People Placements - East,321000              Social Community Care Supplies & Services - Adult,A,2022,9
260,Community and Housing,SUPREME CARE SERVICES LIMITED,85552,28-Dec-22,2988.16,0,91840,Older People Placements - East,321000              Social Community Care Supplies & Services - Adult,A,2022,9
261,Community and Housing,SUPREME CARE SERVICES LIMITED,85563,28-Dec-22,1030.05,0,91840,Older People Placements - East,321000              Social Community Care Supplies & Services - Adult,A,2022,9
262,Community and Housing,SUPREME CARE SERVICES LIMITED,85562,28-Dec-22,728.76,0,91840,Older People Placements - East,321000              Social Community Care Supplies & Services - Adult,A,2022,9
263,Community and Housing,THE GARWOOD FOUNDATION,MWDFDEC22,15-Dec-22,1062,0,92268,Older People Placements - East,321000              Social Community Care Supplies & Services - Adult,A,2022,9
264,Community and Housing,Allied Healthcare,1337/58,08-Dec-22,629.69,0,92896,Older People Placements - East,321000              Social Community Care Supplies & Services - Adult,A,2022,9
265,Community and Housing,Allied Healthcare,1337/16,08-Dec-22,744.59,0,92896,Learning Disabilities Placemnt,321000              Social Community Care Supplies & Services - Adult,A,2022,9
266,Community and Housing,Allied Healthcare,1337/40,08-Dec-22,653.01,0,92896,Older People Placements - East,321000              Social Community Care Supplies & Services - Adult,A,2022,9
267,Community and Housing,Allied Healthcare,1337/39,08-Dec-22,1082.4,0,92896,Phys/Sens Placements - East,321000              Social Community Care Supplies & Services - Adult,A,2022,9
268,Community and Housing,Allied Healthcare,1337/51,08-Dec-22,625.55,0,92896,Older People Placements - East,321000              Social Community Care Supplies & Services - Adult,A,2022,9
269,Community and Housing,Allied Healthcare,1337/50,08-Dec-22,722.72,0,92896,Older People Placements - East,321000              Social Community Care Supplies & Services - Adult,A,2022,9
270,Community and Housing,Allied Healthcare,1337/52,08-Dec-22,984.87,0,92896,Older People Placements - East,321000              Social Community Care Supplies & Services - Adult,A,2022,9
271,Community and Housing,Allied Healthcare,1337/68,08-Dec-22,2072.4,0,92896,Older People Placements - East,321000              Social Community Care Supplies & Services - Adult,A,2022,9
272,Community and Housing,Allied Healthcare,1337/34,08-Dec-22,975.61,0,92896,Older People Placements - East,321000              Social Community Care Supplies & Services - Adult,A,2022,9
273,Community and Housing,Allied Healthcare,1337/10,08-Dec-22,1630.44,0,92896,Phys/Sens Placements - East,321000              Social Community Care Supplies & Services - Adult,A,2022,9
274,Community and Housing,Allied Healthcare,1337/29,08-Dec-22,501.85,0,92896,Older People Placements - East,321000              Social Community Care Supplies & Services - Adult,A,2022,9
275,Community and Housing,Allied Healthcare,1337/1,08-Dec-22,727.87,0,92896,Older People Placements - East,321000              Social Community Care Supplies & Services - Adult,A,2022,9
276,Community and Housing,Allied Healthcare,1337/18,08-Dec-22,693.64,0,92896,Older People Placements - East,321000              Social Community Care Supplies & Services - Adult,A,2022,9
277,Community and Housing,Allied Healthcare,1337/62,08-Dec-22,893,0,92896,Older People Placements - East,321000              Social Community Care Supplies & Services - Adult,A,2022,9
278,Community and Housing,Allied Healthcare,1337/2,08-Dec-22,527.43,0,92896,Older People Placements - East,321000              Social Community Care Supplies & Services - Adult,A,2022,9
279,Community and Housing,Allied Healthcare,1337/38,08-Dec-22,1914.06,0,92896,Older People Placements - East,321000              Social Community Care Supplies & Services - Adult,A,2022,9
280,Community and Housing,Allied Healthcare,1337/44,08-Dec-22,2758.48,0,92896,Older People Placements - East,321000              Social Community Care Supplies & Services - Adult,A,2022,9
281,Community and Housing,Allied Healthcare,1337/31,08-Dec-22,1763.71,0,92896,Older People Placements - East,321000              Social Community Care Supplies & Services - Adult,A,2022,9
282,Community and Housing,Allied Healthcare,1337/20,08-Dec-22,1743.44,0,92896,Learning Disabilities Placemnt,321000              Social Community Care Supplies & Services - Adult,A,2022,9
283,Community and Housing,Allied Healthcare,1337/36,08-Dec-22,2825.57,0,92896,Older People Placements - East,321000              Social Community Care Supplies & Services - Adult,A,2022,9
284,Community and Housing,Allied Healthcare,1337/6,08-Dec-22,1604.9,0,92896,Older People Placements - East,321000              Social Community Care Supplies & Services - Adult,A,2022,9
285,Community and Housing,Allied Healthcare,1337/46,08-Dec-22,560.86,0,92896,Older People Placements - East,321000              Social Community Care Supplies & Services - Adult,A,2022,9
286,Community and Housing,Allied Healthcare,1337/24,08-Dec-22,2621.69,0,92896,Older People Placements - East,321000              Social Community Care Supplies & Services - Adult,A,2022,9
287,Community and Housing,Allied Healthcare,1337/22,08-Dec-22,505.12,0,92896,Learning Disabilities Placemnt,321000              Social Community Care Supplies & Services - Adult,A,2022,9
288,Community and Housing,Allied Healthcare,1337/61,08-Dec-22,2745.54,0,92896,Older People Placements - East,321000              Social Community Care Supplies & Services - Adult,A,2022,9
289,Community and Housing,Allied Healthcare,1337/12,08-Dec-22,992.59,0,92896,Older People Placements - East,321000              Social Community Care Supplies & Services - Adult,A,2022,9
290,Community and Housing,Allied Healthcare,1337/35,08-Dec-22,656.37,0,92896,Older People Placements - East,321000              Social Community Care Supplies & Services - Adult,A,2022,9
291,Community and Housing,Allied Healthcare,1337/54,08-Dec-22,2581.45,0,92896,Older People Placements - East,321000              Social Community Care Supplies & Services - Adult,A,2022,9
292,Community and Housing,Allied Healthcare,1337/25,08-Dec-22,1013.92,0,92896,Older People Placements - East,321000              Social Community Care Supplies & Services - Adult,A,2022,9
293,Community and Housing,Allied Healthcare,1337/5,08-Dec-22,1622.21,0,92896,Older People Placements - East,321000              Social Community Care Supplies & Services - Adult,A,2022,9
294,Community and Housing,Allied Healthcare,1337/32,08-Dec-22,757.2,0,92896,Learning Disabilities Placemnt,321000              Social Community Care Supplies & Services - Adult,A,2022,9
295,Community and Housing,Allied Healthcare,1337/37,08-Dec-22,2378.36,0,92896,Phys/Sens Placements - East,321000              Social Community Care Supplies & Services - Adult,A,2022,9
296,Community and Housing,Allied Healthcare,1337/17,08-Dec-22,737.64,0,92896,Older People Placements - East,321000              Social Community Care Supplies & Services - Adult,A,2022,9
297,Community and Housing,Allied Healthcare,1337/33,08-Dec-22,561.5,0,92896,Older People Placements - East,321000              Social Community Care Supplies & Services - Adult,A,2022,9
298,Community and Housing,Allied Healthcare,1337/67,08-Dec-22,1402.92,0,92896,Older People Placements - East,321000              Social Community Care Supplies & Services - Adult,A,2022,9
299,Community and Housing,Allied Healthcare,1337/42,08-Dec-22,524.92,0,92896,Older People Placements - East,321000              Social Community Care Supplies & Services - Adult,A,2022,9
300,Community and Housing,Allied Healthcare,1337/13,08-Dec-22,525.62,0,92896,Older People Placements - East,321000              Social Community Care Supplies & Services - Adult,A,2022,9
301,Community and Housing,Allied Healthcare,1337/48,08-Dec-22,592.63,0,92896,Older People Placements - East,321000              Social Community Care Supplies & Services - Adult,A,2022,9
302,Community and Housing,Allied Healthcare,1337/23,08-Dec-22,1904.82,0,92896,Older People Placements - East,321000              Social Community Care Supplies & Services - Adult,A,2022,9
303,Community and Housing,Allied Healthcare,1337/43,08-Dec-22,1565.54,0,92896,Older People Placements - East,321000              Social Community Care Supplies & Services - Adult,A,2022,9
304,Community and Housing,Allied Healthcare,1337/60,08-Dec-22,1406.28,0,92896,Older People Placements - East,321000              Social Community Care Supplies & Services - Adult,A,2022,9
305,Community and Housing,Allied Healthcare,1337/65,08-Dec-22,639.42,0,92896,Older People Placements - East,321000              Social Community Care Supplies & Services - Adult,A,2022,9
306,Community and Housing,Allied Healthcare,1337/53,08-Dec-22,647.33,0,92896,Older People Placements - East,321000              Social Community Care Supplies & Services - Adult,A,2022,9
307,Community and Housing,Allied Healthcare,1337/64,08-Dec-22,2733.36,0,92896,Older People Placements - East,321000              Social Community Care Supplies & Services - Adult,A,2022,9
308,Community and Housing,Allied Healthcare,1337/21,08-Dec-22,1166.58,0,92896,Older People Placements - East,321000              Social Community Care Supplies & Services - Adult,A,2022,9
309,Community and Housing,Allied Healthcare,1337/57,08-Dec-22,957.35,0,92896,Older People Placements - East,321000              Social Community Care Supplies & Services - Adult,A,2022,9
310,Community and Housing,Allied Healthcare,1337/8,08-Dec-22,1827.25,0,92896,Older People Placements - East,321000              Social Community Care Supplies & Services - Adult,A,2022,9
311,Community and Housing,Allied Healthcare,1337/4,08-Dec-22,683.25,0,92896,Older People Placements - East,321000              Social Community Care Supplies & Services - Adult,A,2022,9
312,Community and Housing,Allied Healthcare,1335/54,20-Dec-22,636.22,0,92896,Older People Placements - East,321000              Social Community Care Supplies & Services - Adult,A,2022,9
313,Community and Housing,Allied Healthcare,1335/14,20-Dec-22,734.17,0,92896,Learning Disabilities Placemnt,321000              Social Community Care Supplies & Services - Adult,A,2022,9
314,Community and Housing,Allied Healthcare,1335/37,20-Dec-22,629.3,0,92896,Older People Placements - East,321000              Social Community Care Supplies & Services - Adult,A,2022,9
315,Community and Housing,Allied Healthcare,1335/36,20-Dec-22,1099.89,0,92896,Phys/Sens Placements - East,321000              Social Community Care Supplies & Services - Adult,A,2022,9
316,Community and Housing,Allied Healthcare,1335/47,20-Dec-22,684.66,0,92896,Older People Placements - East,321000              Social Community Care Supplies & Services - Adult,A,2022,9
317,Community and Housing,Allied Healthcare,1335/48,20-Dec-22,968.24,0,92896,Older People Placements - East,321000              Social Community Care Supplies & Services - Adult,A,2022,9
318,Community and Housing,Allied Healthcare,1335/66,20-Dec-22,2136.93,0,92896,Older People Placements - East,321000              Social Community Care Supplies & Services - Adult,A,2022,9
319,Community and Housing,Allied Healthcare,1335/31,20-Dec-22,974.25,0,92896,Older People Placements - East,321000              Social Community Care Supplies & Services - Adult,A,2022,9
320,Community and Housing,Allied Healthcare,1335/16,20-Dec-22,749.38,0,92896,Older People Placements - East,321000              Social Community Care Supplies & Services - Adult,A,2022,9
321,Community and Housing,Allied Healthcare,1335/58,20-Dec-22,1045.93,0,92896,Older People Placements - East,321000              Social Community Care Supplies & Services - Adult,A,2022,9
322,Community and Housing,Allied Healthcare,1335/1,20-Dec-22,557.27,0,92896,Older People Placements - East,321000              Social Community Care Supplies & Services - Adult,A,2022,9
323,Community and Housing,Allied Healthcare,1335/35,20-Dec-22,2850.51,0,92896,Older People Placements - East,321000              Social Community Care Supplies & Services - Adult,A,2022,9
324,Community and Housing,Allied Healthcare,1335/64,20-Dec-22,1236.54,0,92896,Older People Placements - East,321000              Social Community Care Supplies & Services - Adult,A,2022,9
325,Community and Housing,Allied Healthcare,1335/40,20-Dec-22,2798.76,0,92896,Older People Placements - East,321000              Social Community Care Supplies & Services - Adult,A,2022,9
326,Community and Housing,Allied Healthcare,1335/28,20-Dec-22,2366.37,0,92896,Older People Placements - East,321000              Social Community Care Supplies & Services - Adult,A,2022,9
327,Community and Housing,Allied Healthcare,1335/19,20-Dec-22,1436.16,0,92896,Learning Disabilities Placemnt,321000              Social Community Care Supplies & Services - Adult,A,2022,9
328,Community and Housing,Allied Healthcare,1335/33,20-Dec-22,2815.3,0,92896,Older People Placements - East,321000              Social Community Care Supplies & Services - Adult,A,2022,9
329,Community and Housing,Allied Healthcare,1335/5,20-Dec-22,1647.26,0,92896,Older People Placements - East,321000              Social Community Care Supplies & Services - Adult,A,2022,9
330,Community and Housing,Allied Healthcare,1335/42,20-Dec-22,763.47,0,92896,Older People Placements - East,321000              Social Community Care Supplies & Services - Adult,A,2022,9
331,Community and Housing,Allied Healthcare,1335/23,20-Dec-22,1338.04,0,92896,Older People Placements - East,321000              Social Community Care Supplies & Services - Adult,A,2022,9
332,Community and Housing,Allied Healthcare,1335/57,20-Dec-22,2856.93,0,92896,Older People Placements - East,321000              Social Community Care Supplies & Services - Adult,A,2022,9
333,Community and Housing,Allied Healthcare,1335/11,20-Dec-22,1265.76,0,92896,Older People Placements - East,321000              Social Community Care Supplies & Services - Adult,A,2022,9
334,Community and Housing,Allied Healthcare,1335/32,20-Dec-22,654.84,0,92896,Older People Placements - East,321000              Social Community Care Supplies & Services - Adult,A,2022,9
335,Community and Housing,Allied Healthcare,1335/50,20-Dec-22,2631.8,0,92896,Older People Placements - East,321000              Social Community Care Supplies & Services - Adult,A,2022,9
336,Community and Housing,Allied Healthcare,1335/24,20-Dec-22,1032.82,0,92896,Older People Placements - East,321000              Social Community Care Supplies & Services - Adult,A,2022,9
337,Community and Housing,Allied Healthcare,1335/4,20-Dec-22,1140.35,0,92896,Older People Placements - East,321000              Social Community Care Supplies & Services - Adult,A,2022,9
338,Community and Housing,Allied Healthcare,1335/29,20-Dec-22,832.92,0,92896,Learning Disabilities Placemnt,321000              Social Community Care Supplies & Services - Adult,A,2022,9
339,Community and Housing,Allied Healthcare,1335/34,20-Dec-22,2397.5,0,92896,Phys/Sens Placements - East,321000              Social Community Care Supplies & Services - Adult,A,2022,9
340,Community and Housing,Allied Healthcare,1335/15,20-Dec-22,643.35,0,92896,Older People Placements - East,321000              Social Community Care Supplies & Services - Adult,A,2022,9
341,Community and Housing,Allied Healthcare,1335/65,20-Dec-22,1378.58,0,92896,Older People Placements - East,321000              Social Community Care Supplies & Services - Adult,A,2022,9
342,Community and Housing,Allied Healthcare,1335/39,20-Dec-22,506.02,0,92896,Older People Placements - East,321000              Social Community Care Supplies & Services - Adult,A,2022,9
343,Community and Housing,Allied Healthcare,1335/12,20-Dec-22,530.35,0,92896,Older People Placements - East,321000              Social Community Care Supplies & Services - Adult,A,2022,9
344,Community and Housing,Allied Healthcare,1335/44,20-Dec-22,677.74,0,92896,Older People Placements - East,321000              Social Community Care Supplies & Services - Adult,A,2022,9
345,Community and Housing,Allied Healthcare,1335/22,20-Dec-22,2007.86,0,92896,Older People Placements - East,321000              Social Community Care Supplies & Services - Adult,A,2022,9
346,Community and Housing,Allied Healthcare,1335/7,20-Dec-22,1244.69,0,92896,Older People Placements - East,321000              Social Community Care Supplies & Services - Adult,A,2022,9
347,Community and Housing,Allied Healthcare,1335/56,20-Dec-22,1307.68,0,92896,Older People Placements - East,321000              Social Community Care Supplies & Services - Adult,A,2022,9
348,Community and Housing,Allied Healthcare,1335/61,20-Dec-22,688.84,0,92896,Older People Placements - East,321000              Social Community Care Supplies & Services - Adult,A,2022,9
349,Community and Housing,Allied Healthcare,1335/49,20-Dec-22,583.37,0,92896,Older People Placements - East,321000              Social Community Care Supplies & Services - Adult,A,2022,9
350,Community and Housing,Allied Healthcare,1335/60,20-Dec-22,2820.33,0,92896,Older People Placements - East,321000              Social Community Care Supplies & Services - Adult,A,2022,9
351,Community and Housing,Allied Healthcare,1335/20,20-Dec-22,1195.78,0,92896,Older People Placements - East,321000              Social Community Care Supplies & Services - Adult,A,2022,9
352,Community and Housing,Allied Healthcare,1335/53,20-Dec-22,1065.44,0,92896,Older People Placements - East,321000              Social Community Care Supplies & Services - Adult,A,2022,9
353,Community and Housing,Allied Healthcare,1335/8,20-Dec-22,2077.64,0,92896,Older People Placements - East,321000              Social Community Care Supplies & Services - Adult,A,2022,9
354,Community and Housing,Allied Healthcare,1335/3,20-Dec-22,749.74,0,92896,Older People Placements - East,321000              Social Community Care Supplies & Services - Adult,A,2022,9
355,Community and Housing,Allied Healthcare,1335/30,20-Dec-22,533.6,0,92896,Older People Placements - East,321000              Social Community Care Supplies & Services - Adult,A,2022,9
356,Community and Housing,CARE MANAGEMENT GROUP,255001472,07-Dec-22,8725.64,0,93533,Learning Disabilities Placemnt,321017              Nursing & Residential Care Homes,A,2022,9
357,Community and Housing,CARE MANAGEMENT GROUP,911453,20-Dec-22,4593.88,0,93533,Mental Health Placements,321017              Nursing & Residential Care Homes,A,2022,9
358,Community and Housing,CARE MANAGEMENT GROUP,911501,20-Dec-22,6572.16,0,93533,Learning Disabilities Placemnt,321017              Nursing & Residential Care Homes,A,2022,9
359,Community and Housing,CARE MANAGEMENT GROUP,911518,20-Dec-22,6279.2,0,93533,Learning Disabilities Placemnt,321017              Nursing & Residential Care Homes,A,2022,9
360,Community and Housing,CARE MANAGEMENT GROUP,911621,20-Dec-22,5936.6,0,93533,Learning Disabilities Placemnt,321017              Nursing & Residential Care Homes,A,2022,9
361,Community and Housing,CARE MANAGEMENT GROUP,911660,20-Dec-22,8733.64,0,93533,Phys/Sens Placements - East,321017              Nursing & Residential Care Homes,A,2022,9
362,Community and Housing,CARE MANAGEMENT GROUP,911696,20-Dec-22,7712.12,0,93533,Learning Disabilities Placemnt,321017              Nursing & Residential Care Homes,A,2022,9
363,Community and Housing,CARE MANAGEMENT GROUP,911826,20-Dec-22,7974.36,0,93533,Learning Disabilities Placemnt,321017              Nursing & Residential Care Homes,A,2022,9
364,Community and Housing,A AND R CARE LTD,911505,20-Dec-22,3763.24,0,94357,Older People Placements - East,321017              Nursing & Residential Care Homes,A,2022,9
365,Community and Housing,A AND R CARE LTD,911510,20-Dec-22,3300,0,94357,Older People Placements - East,321017              Nursing & Residential Care Homes,A,2022,9
366,Community and Housing,A AND R CARE LTD,911629,20-Dec-22,3763.24,0,94357,Older People Placements - East,321017              Nursing & Residential Care Homes,A,2022,9
367,Community and Housing,A AND R CARE LTD,911759,20-Dec-22,3400,0,94357,Older People Placements - East,321017              Nursing & Residential Care Homes,A,2022,9
368,Community and Housing,A AND R CARE LTD,911789,20-Dec-22,3809.6,0,94357,Older People Placements - East,321017              Nursing & Residential Care Homes,A,2022,9
369,Community and Housing,A AND R CARE LTD,911853,20-Dec-22,3824.32,0,94357,Phys/Sens Placements - East,321017              Nursing & Residential Care Homes,A,2022,9
370,Environment and Regeneration,COMMONSIDE COMMUNITY DEV TRUST,9883,14-Dec-22,2000,0,95839,Crime and Strategy Team,321000              Social Community Care Supplies & Services - Adult,A,2022,9
371,Community and Housing,Aspens Charities Ltd,911643,20-Dec-22,8954.28,0,96019,Learning Disabilities Placemnt,321017              Nursing & Residential Care Homes,A,2022,9
372,Community and Housing,REDACTED PERSONAL DATA,906799,06-Dec-22,4260.16,0,96859,Learning Disabilities Placemnt,DIRECT PAYMENTS,R,2022,9
373,Community and Housing,THE ABBEYFIELD SOCIETY,911776,20-Dec-22,4000,0,97539,Older People Placements - East,321000              Social Community Care Supplies & Services - Adult,A,2022,9
374,Community and Housing,EL-SHADDAI,909367,13-Dec-22,1052.08,0,97709,MH Housing Support Placements,321000              Social Community Care Supplies & Services - Adult,A,2022,9
375,Community and Housing,EL-SHADDAI,909400,13-Dec-22,1315.04,0,97709,Learning Disabilities Placemnt,321000              Social Community Care Supplies & Services - Adult,A,2022,9
376,Community and Housing,EL-SHADDAI,909408,13-Dec-22,1052.08,0,97709,Learning Disabilities Placemnt,321000              Social Community Care Supplies & Services - Adult,A,2022,9
377,Community and Housing,EL-SHADDAI,909396,15-Dec-22,1680,0,97709,Hospital To Home,321000              Social Community Care Supplies & Services - Adult,A,2022,9
378,Community and Housing,Rosenmanor Ltd,911638,20-Dec-22,2924.24,0,97808,Mental Health Placements,321017              Nursing & Residential Care Homes,A,2022,9
379,Community and Housing,MERTON COMMUNITY TRANSPORT,16801,07-Dec-22,1310.4,218.4,98164,Learning Disabilities Placemnt,360000              Passenger Transport,A,2022,9
380,Community and Housing,MERTON COMMUNITY TRANSPORT,16789,07-Dec-22,1716,286,98164,Learning Disabilities Placemnt,360000              Passenger Transport,A,2022,9
381,Environment and Regeneration,MERTON COMMUNITY TRANSPORT,16779,19-Dec-22,750,125,98164,Passenger Transport,360000              Passenger Transport,A,2022,9
382,"Children, Schools and Family",MERTON COMMUNITY TRANSPORT,16422,15-Dec-22,2000,0,98164,Holiday Act Food Prog grntfnd,360000              Passenger Transport,A,2022,9
383,Unassigned,BEECHOLME PRIMARY ACADEMY,SCHOOLS 2223/9 A,06-Dec-22,7601.76,0,98168,Schools,170000              Education,A,2022,9
384,Community and Housing,ROYAL MENCAP SOCIETY,3732313,19-Dec-22,2613.96,0,98713,Learning Disabilities Placemnt,321000              Social Community Care Supplies & Services - Adult,A,2022,9
385,Community and Housing,ROYAL MENCAP SOCIETY,3732312,19-Dec-22,2290.96,0,98713,Learning Disabilities Placemnt,321000              Social Community Care Supplies & Services - Adult,A,2022,9
386,"Children, Schools and Family",REDACTED PERSONAL DATA,912373,19-Dec-22,869.5,0,101120,Fostering Recruit/Assessment,290000              Arts & Leisure Services,R,2022,9
387,Unassigned,WEST WIMBLEDON PRIMARY SCHOOL,SCHOOLS 2223/9 A,06-Dec-22,144871.8,0,101674,Schools,170000              Education,A,2022,9
388,Community and Housing,HILLDALE AND NORTHVIEW,911601,20-Dec-22,2072.52,0,103592,Older People Placements - East,321000              Social Community Care Supplies & Services - Adult,A,2022,9
389,Environment and Regeneration,G.P HADEN ASSOCIATES,120822,13-Dec-22,9388.6,0,103632,Other Misc Props,"390000              Works - Construction, Repair & Maintenance",A,2022,9
390,Community and Housing,BUPA CARE HOMES,908221,06-Dec-22,1527.14,0,105027,Older People Placements - East,321017              Nursing & Residential Care Homes,A,2022,9
391,Community and Housing,BUPA CARE HOMES,911476,20-Dec-22,3154.12,0,105027,Older People Placements - East,321017              Nursing & Residential Care Homes,A,2022,9
392,Community and Housing,BUPA CARE HOMES,911481,20-Dec-22,3289.24,0,105027,Older People Placements - East,321017              Nursing & Residential Care Homes,A,2022,9
393,Community and Housing,BUPA CARE HOMES,911483,20-Dec-22,3289.24,0,105027,Older People Placements - East,321017              Nursing & Residential Care Homes,A,2022,9
394,Community and Housing,BUPA CARE HOMES,911509,20-Dec-22,3154.12,0,105027,Older People Placements - East,321017              Nursing & Residential Care Homes,A,2022,9
395,Community and Housing,BUPA CARE HOMES,911556,20-Dec-22,3289.24,0,105027,Older People Placements - East,321017              Nursing & Residential Care Homes,A,2022,9
396,Community and Housing,BUPA CARE HOMES,911570,20-Dec-22,3154.12,0,105027,Older People Placements - East,321017              Nursing & Residential Care Homes,A,2022,9
397,Community and Housing,BUPA CARE HOMES,911590,20-Dec-22,3154.12,0,105027,Older People Placements - East,321017              Nursing & Residential Care Homes,A,2022,9
398,Community and Housing,BUPA CARE HOMES,911612,20-Dec-22,3154.12,0,105027,Older People Placements - East,321017              Nursing & Residential Care Homes,A,2022,9
399,Community and Housing,BUPA CARE HOMES,911657,20-Dec-22,3289.24,0,105027,Older People Placements - East,321017              Nursing & Residential Care Homes,A,2022,9
400,Community and Housing,BUPA CARE HOMES,911668,20-Dec-22,3154.12,0,105027,Older People Placements - East,321017              Nursing & Residential Care Homes,A,2022,9
401,Community and Housing,BUPA CARE HOMES,911683,20-Dec-22,3289.24,0,105027,Older People Placements - East,321017              Nursing & Residential Care Homes,A,2022,9
402,Community and Housing,BUPA CARE HOMES,911686,20-Dec-22,3154.12,0,105027,Older People Placements - East,321017              Nursing & Residential Care Homes,A,2022,9
403,Community and Housing,BUPA CARE HOMES,911695,20-Dec-22,3289.24,0,105027,Older People Placements - East,321017              Nursing & Residential Care Homes,A,2022,9
404,Community and Housing,BUPA CARE HOMES,911730,20-Dec-22,3289.24,0,105027,Older People Placements - East,321017              Nursing & Residential Care Homes,A,2022,9
405,Community and Housing,BUPA CARE HOMES,911738,20-Dec-22,4321.08,0,105027,Phys/Sens Placements - East,321017              Nursing & Residential Care Homes,A,2022,9
406,Community and Housing,BUPA CARE HOMES,911753,20-Dec-22,3569.4,0,105027,Older People Placements - East,321017              Nursing & Residential Care Homes,A,2022,9
407,Community and Housing,BUPA CARE HOMES,911785,20-Dec-22,3154.12,0,105027,Older People Placements - East,321017              Nursing & Residential Care Homes,A,2022,9
408,Community and Housing,BUPA CARE HOMES,911817,20-Dec-22,3289.24,0,105027,Older People Placements - East,321017              Nursing & Residential Care Homes,A,2022,9
409,Community and Housing,BUPA CARE HOMES,911852,20-Dec-22,3289.24,0,105027,Older People Placements - East,321017              Nursing & Residential Care Homes,A,2022,9
410,Community and Housing,BUPA CARE HOMES,911872,20-Dec-22,3154.12,0,105027,Older People Placements - East,321017              Nursing & Residential Care Homes,A,2022,9
411,Community and Housing,REDACTED PERSONAL DATA,907001,06-Dec-22,4033.86,0,105300,Learning Disabilities Placemnt,DIRECT PAYMENTS,R,2022,9
412,"Children, Schools and Family",NEWSCHOOLS (MERTON) LIMITED,NSM01043,22-Dec-22,1255399.03,209233.17,106428, PFI Unitary Charges,200000              Financial Services,A,2022,9
413,Unassigned,ENVIRONMENT AGENCY,2.02212E+11,28-Dec-22,44615.1,0,108067,Flood Defence,PRECEPT,A,2022,9
414,Community and Housing,REDACTED PERSONAL DATA,909350,13-Dec-22,789.04,0,110403,MH Housing Support Placements,321000              Social Community Care Supplies & Services - Adult,R,2022,9
415,Community and Housing,REDACTED PERSONAL DATA,909354,13-Dec-22,1052.04,0,110403,Learning Disabilities Placemnt,321000              Social Community Care Supplies & Services - Adult,R,2022,9
416,Community and Housing,REDACTED PERSONAL DATA,909355,13-Dec-22,780.68,0,110403,MH Housing Support Placements,321000              Social Community Care Supplies & Services - Adult,R,2022,9
417,Community and Housing,REDACTED PERSONAL DATA,909370,13-Dec-22,780.68,0,110403,MH Housing Support Placements,321000              Social Community Care Supplies & Services - Adult,R,2022,9
418,Community and Housing,REDACTED PERSONAL DATA,909371,13-Dec-22,789.04,0,110403,MH Housing Support Placements,321000              Social Community Care Supplies & Services - Adult,R,2022,9
419,Community and Housing,REDACTED PERSONAL DATA,909382,13-Dec-22,1235.28,0,110403,Phys/Sens Placements - East,321000              Social Community Care Supplies & Services - Adult,R,2022,9
420,Community and Housing,REDACTED PERSONAL DATA,909383,13-Dec-22,1586.16,0,110403,Mental Health Placements,321000              Social Community Care Supplies & Services - Adult,R,2022,9
421,Community and Housing,REDACTED PERSONAL DATA,909386,13-Dec-22,892.2,0,110403,Mental Health Placements,321000              Social Community Care Supplies & Services - Adult,R,2022,9
422,Community and Housing,REDACTED PERSONAL DATA,909391,13-Dec-22,780.68,0,110403,MH Housing Support Placements,321000              Social Community Care Supplies & Services - Adult,R,2022,9
423,Community and Housing,REDACTED PERSONAL DATA,909402,13-Dec-22,780.68,0,110403,MH Housing Support Placements,321000              Social Community Care Supplies & Services - Adult,R,2022,9
424,Community and Housing,REDACTED PERSONAL DATA,909403,13-Dec-22,892.2,0,110403,Mental Health Placements,321000              Social Community Care Supplies & Services - Adult,R,2022,9
425,Community and Housing,REDACTED PERSONAL DATA,909406,13-Dec-22,520.48,0,110403,MH Housing Support Placements,321000              Social Community Care Supplies & Services - Adult,R,2022,9
426,Community and Housing,REDACTED PERSONAL DATA,909407,13-Dec-22,1040.92,0,110403,Phys/Sens Placements - East,321000              Social Community Care Supplies & Services - Adult,R,2022,9
427,Community and Housing,REDACTED PERSONAL DATA,909360,13-Dec-22,780.68,0,110406,LD Housing Support Placements,321000              Social Community Care Supplies & Services - Adult,R,2022,9
428,"Children, Schools and Family",REDACTED PERSONAL DATA,906375,02-Dec-22,584,0,111277,Placements Under 18,321100              Social Community Care Supplies & Services - Children,R,2022,9
429,"Children, Schools and Family",REDACTED PERSONAL DATA,906424,02-Dec-22,534.75,0,111277,Placements Under 18,321100              Social Community Care Supplies & Services - Children,R,2022,9
430,"Children, Schools and Family",REDACTED PERSONAL DATA,911952,16-Dec-22,968,0,111277,Placements Under 18,321100              Social Community Care Supplies & Services - Children,R,2022,9
431,"Children, Schools and Family",REDACTED PERSONAL DATA,912004,16-Dec-22,869.5,0,111277,Placements Under 18,321100              Social Community Care Supplies & Services - Children,R,2022,9
432,Community and Housing,MEADBANK NURSING CENTRE,908208,06-Dec-22,1763.17,0,113139,Older People Placements - East,321017              Nursing & Residential Care Homes,A,2022,9
433,Community and Housing,REDACTED PERSONAL DATA,906781,06-Dec-22,14250.4,0,113331,Learning Disabilities Placemnt,DIRECT PAYMENTS,R,2022,9
434,"Children, Schools and Family",REDACTED PERSONAL DATA,912405,19-Dec-22,777.14,0,113452,Fostering Recruit/Assessment,321100              Social Community Care Supplies & Services - Children,R,2022,9
435,"Children, Schools and Family",JIGSAW4U,2894-03-2022,14-Dec-22,18750,0,113501, Centralised Commiss Services,321100              Social Community Care Supplies & Services - Children,A,2022,9
436,"Children, Schools and Family",Dicky Birds Pre Sch. Nurseries Dundonald,P2 22 EY FUND 2,14-Dec-22,928.8,0,114041,EARLY YEARS NURSERY GRANTS,170000              Education,A,2022,9
437,Corporate Services,POST OFFICE LTD,1000/90062347,19-Dec-22,4518.64,0,114362,Benefits Administration,200000              Financial Services,A,2022,9
438,Corporate Services,POST OFFICE LTD,1000/90062450|,29-Dec-22,610.76,0,114362,Benefits Administration,200000              Financial Services,A,2022,9
439,Community and Housing,REDACTED PERSONAL DATA,909364,13-Dec-22,780.68,0,114970,MH Housing Support Placements,321000              Social Community Care Supplies & Services - Adult,R,2022,9
440,Community and Housing,REDACTED PERSONAL DATA,909365,13-Dec-22,1857.56,0,114970,Mental Health Placements,321000              Social Community Care Supplies & Services - Adult,R,2022,9
441,Community and Housing,REDACTED PERSONAL DATA,909398,13-Dec-22,1052.08,0,114970,MH Housing Support Placements,321000              Social Community Care Supplies & Services - Adult,R,2022,9
442,Community and Housing,REDACTED PERSONAL DATA,909410,13-Dec-22,1586.2,0,114970,Mental Health Placements,321000              Social Community Care Supplies & Services - Adult,R,2022,9
443,Community and Housing,REDACTED PERSONAL DATA,909385,15-Dec-22,1040.92,0,114970,Hospital To Home,321000              Social Community Care Supplies & Services - Adult,R,2022,9
444,Community and Housing,ASTRA HOMES,MJ/01/23,15-Dec-22,1816.76,0,114991,Mental Health Placements,321000              Social Community Care Supplies & Services - Adult,A,2022,9
445,Community and Housing,ASTRA HOMES,EC/01/23,15-Dec-22,2071.68,0,114991,Mental Health Placements,321000              Social Community Care Supplies & Services - Adult,A,2022,9
446,Community and Housing,ASTRA HOMES,AK/01/23,15-Dec-22,2034.24,0,114991,Mental Health Placements,321000              Social Community Care Supplies & Services - Adult,A,2022,9
447,Community and Housing,ASTRA HOMES,GB/01/23,15-Dec-22,1978.12,0,114991,Mental Health Placements,321000              Social Community Care Supplies & Services - Adult,A,2022,9
448,Community and Housing,GRANGE COTTAGE LIMITED,911517,20-Dec-22,2680,0,117931,Older People Placements - East,321017              Nursing & Residential Care Homes,A,2022,9
449,Community and Housing,GRANGE COTTAGE LIMITED,911567,20-Dec-22,2680,0,117931,Older People Placements - East,321017              Nursing & Residential Care Homes,A,2022,9
450,Community and Housing,GRANGE COTTAGE LIMITED,911573,20-Dec-22,3200,0,117931,Older People Placements - East,321017              Nursing & Residential Care Homes,A,2022,9
451,Community and Housing,GRANGE COTTAGE LIMITED,911678,20-Dec-22,3600,0,117931,Older People Placements - East,321017              Nursing & Residential Care Homes,A,2022,9
452,Community and Housing,GRANGE COTTAGE LIMITED,911771,20-Dec-22,2680,0,117931,Older People Placements - East,321017              Nursing & Residential Care Homes,A,2022,9
453,Community and Housing,REDACTED PERSONAL DATA,909358,13-Dec-22,789.04,0,117970,MH Housing Support Placements,321000              Social Community Care Supplies & Services - Adult,R,2022,9
454,Community and Housing,REDACTED PERSONAL DATA,909374,13-Dec-22,1052.08,0,117970,Mental Health Placements,321000              Social Community Care Supplies & Services - Adult,R,2022,9
455,Community and Housing,REDACTED PERSONAL DATA,909394,13-Dec-22,1352.68,0,117970,Mental Health Placements,321000              Social Community Care Supplies & Services - Adult,R,2022,9
456,Community and Housing,L'ARCHE,911799,20-Dec-22,3094.6,0,118483,Learning Disabilities Placemnt,321017              Nursing & Residential Care Homes,A,2022,9
457,"Children, Schools and Family",REDACTED PERSONAL DATA,911920,16-Dec-22,647.18,0,118991,Placements Over 18,321100              Social Community Care Supplies & Services - Children,R,2022,9
458,Community and Housing,Alexander House,908215,06-Dec-22,2571.43,0,119109,Older People Placements - East,321017              Nursing & Residential Care Homes,A,2022,9
459,Community and Housing,Alexander House,911532,20-Dec-22,3100,0,119109,Older People Placements - East,321017              Nursing & Residential Care Homes,A,2022,9
460,Community and Housing,Alexander House,911604,20-Dec-22,3220.32,0,119109,Older People Placements - East,321017              Nursing & Residential Care Homes,A,2022,9
461,Community and Housing,Alexander House,911811,20-Dec-22,4000,0,119109,Older People Placements - East,321017              Nursing & Residential Care Homes,A,2022,9
462,Community and Housing,Alexander House,911861,20-Dec-22,3840,0,119109,Older People Placements - East,321017              Nursing & Residential Care Homes,A,2022,9
463,Community and Housing,Alexander House,911876,20-Dec-22,3840,0,119109,Older People Placements - East,321017              Nursing & Residential Care Homes,A,2022,9
464,Capital,Flowbird Smart City UK Ltd,UK156502,07-Dec-22,1512,252,119359,On Street Parking - P&D,350000              Street & Traffic Management,A,2022,9
465,Community and Housing,REDACTED PERSONAL DATA,906711,06-Dec-22,1412.4,0,124097,Older People Placements - East,DIRECT PAYMENTS,R,2022,9
466,Community and Housing,UNITED RESPONSE,911488,20-Dec-22,7605.02,1267.5,125227,Learning Disabilities Placemnt,321000              Social Community Care Supplies & Services - Adult,A,2022,9
467,Community and Housing,UNITED RESPONSE,911523,20-Dec-22,7605.02,1267.5,125227,Learning Disabilities Placemnt,321000              Social Community Care Supplies & Services - Adult,A,2022,9
468,Community and Housing,UNITED RESPONSE,911539,20-Dec-22,7605.02,1267.5,125227,Learning Disabilities Placemnt,321000              Social Community Care Supplies & Services - Adult,A,2022,9
469,Community and Housing,UNITED RESPONSE,911595,20-Dec-22,7605.02,1267.5,125227,Learning Disabilities Placemnt,321000              Social Community Care Supplies & Services - Adult,A,2022,9
470,Community and Housing,UNITED RESPONSE,911636,20-Dec-22,7605.02,1267.5,125227,Learning Disabilities Placemnt,321000              Social Community Care Supplies & Services - Adult,A,2022,9
471,Community and Housing,UNITED RESPONSE,911750,20-Dec-22,7605.02,1267.5,125227,Learning Disabilities Placemnt,321000              Social Community Care Supplies & Services - Adult,A,2022,9
472,Community and Housing,REDACTED PERSONAL DATA,906751,06-Dec-22,1336.44,0,125642,Phys/Sens Placements - East,DIRECT PAYMENTS,R,2022,9
473,Community and Housing,REDACTED PERSONAL DATA,906779,06-Dec-22,890.96,0,126189,Older People Placements - East,DIRECT PAYMENTS,R,2022,9
474,Community and Housing,KELSTONE COURT NURSING HOME,907840,06-Dec-22,6214.29,0,126473,Older People Placements - East,321017              Nursing & Residential Care Homes,A,2022,9
475,Community and Housing,KELSTONE COURT NURSING HOME,907841,06-Dec-22,1500,0,126473,Older People Placements - East,321017              Nursing & Residential Care Homes,A,2022,9
476,Community and Housing,KELSTONE COURT NURSING HOME,911449,20-Dec-22,2920,0,126473,Older People Placements - East,321017              Nursing & Residential Care Homes,A,2022,9
477,Community and Housing,KELSTONE COURT NURSING HOME,911472,20-Dec-22,3000,0,126473,Older People Placements - East,321017              Nursing & Residential Care Homes,A,2022,9
478,Community and Housing,KELSTONE COURT NURSING HOME,911562,20-Dec-22,2920,0,126473,Older People Placements - East,321017              Nursing & Residential Care Homes,A,2022,9
479,Community and Housing,KELSTONE COURT NURSING HOME,911580,20-Dec-22,3000,0,126473,Older People Placements - East,321017              Nursing & Residential Care Homes,A,2022,9
480,Community and Housing,KELSTONE COURT NURSING HOME,911608,20-Dec-22,3000,0,126473,Older People Placements - East,321017              Nursing & Residential Care Homes,A,2022,9
481,Community and Housing,KELSTONE COURT NURSING HOME,911648,20-Dec-22,2920,0,126473,Older People Placements - East,321017              Nursing & Residential Care Homes,A,2022,9
482,Community and Housing,KELSTONE COURT NURSING HOME,911679,20-Dec-22,1500,0,126473,Older People Placements - East,321017              Nursing & Residential Care Homes,A,2022,9
483,Community and Housing,KELSTONE COURT NURSING HOME,911687,20-Dec-22,2920,0,126473,Older People Placements - East,321017              Nursing & Residential Care Homes,A,2022,9
484,Community and Housing,KELSTONE COURT NURSING HOME,911689,20-Dec-22,2920,0,126473,Older People Placements - East,321017              Nursing & Residential Care Homes,A,2022,9
485,Community and Housing,KELSTONE COURT NURSING HOME,911723,20-Dec-22,2944.32,0,126473,Older People Placements - East,321017              Nursing & Residential Care Homes,A,2022,9
486,Community and Housing,KELSTONE COURT NURSING HOME,911729,20-Dec-22,3000,0,126473,Older People Placements - East,321017              Nursing & Residential Care Homes,A,2022,9
487,Community and Housing,KELSTONE COURT NURSING HOME,911769,20-Dec-22,2920,0,126473,Older People Placements - East,321017              Nursing & Residential Care Homes,A,2022,9
488,Community and Housing,KELSTONE COURT NURSING HOME,911807,20-Dec-22,2920,0,126473,Older People Placements - East,321017              Nursing & Residential Care Homes,A,2022,9
489,Community and Housing,KELSTONE COURT NURSING HOME,911810,20-Dec-22,3000,0,126473,Older People Placements - East,321017              Nursing & Residential Care Homes,A,2022,9
490,Community and Housing,KELSTONE COURT NURSING HOME,911822,20-Dec-22,3000,0,126473,Older People Placements - East,321017              Nursing & Residential Care Homes,A,2022,9
491,Community and Housing,KELSTONE COURT NURSING HOME,911824,20-Dec-22,2920,0,126473,Older People Placements - East,321017              Nursing & Residential Care Homes,A,2022,9
492,Community and Housing,KELSTONE COURT NURSING HOME,911870,20-Dec-22,3488.42,0,126473,Older People Placements - East,321017              Nursing & Residential Care Homes,A,2022,9
493,Community and Housing,REDACTED PERSONAL DATA,906670,06-Dec-22,668.24,0,127266,Phys/Sens Placements - East,DIRECT PAYMENTS,R,2022,9
494,Community and Housing,CHEQUERS ELECT'L AND BUILD'N SER,3332,08-Dec-22,829.92,138.32,128187,Occupational Therapy,"390000              Works - Construction, Repair & Maintenance",A,2022,9
495,Community and Housing,CHEQUERS ELECT'L AND BUILD'N SER,3333,08-Dec-22,893.78,148.96,128187,Occupational Therapy,"390000              Works - Construction, Repair & Maintenance",A,2022,9
496,Environment and Regeneration,TRL LIMITED,11617152,30-Dec-22,630.28,105.05,128700,Environmental Health-Pollution,180000              Environmental Services,A,2022,9
497,Environment and Regeneration,TRL LIMITED,11617153,30-Dec-22,1285.2,214.2,128700,LBR - Pollution,180000              Environmental Services,A,2022,9
498,Environment and Regeneration,TRL LIMITED,11617154,30-Dec-22,4345.04,724.17,128700,Wandsworth Air Quality,180000              Environmental Services,A,2022,9
499,"Children, Schools and Family",REDACTED PERSONAL DATA,906348,02-Dec-22,534.75,0,128736,Placements Under 18,321100              Social Community Care Supplies & Services - Children,R,2022,9
500,"Children, Schools and Family",REDACTED PERSONAL DATA,911927,16-Dec-22,869.5,0,128736,Placements Under 18,321100              Social Community Care Supplies & Services - Children,R,2022,9
501,Community and Housing,BUPA CARE HOMES,911487,20-Dec-22,6133.76,0,130491,Phys/Sens Placements - East,321017              Nursing & Residential Care Homes,A,2022,9
502,Community and Housing,BUPA CARE HOMES,911596,20-Dec-22,6050.76,0,130491,Phys/Sens Placements - East,321017              Nursing & Residential Care Homes,A,2022,9
503,"Children, Schools and Family",JOLLYTIME PLAYGROUP,EEF FINALPAYMENT,14-Dec-22,5000,0,131043,EARLY YEARS NURSERY GRANTS,170000              Education,A,2022,9
504,"Children, Schools and Family",OAKTREE PRE-SCHOOL NURSERY,P2 22 EY FUND 2,14-Dec-22,541.8,0,131726,EARLY YEARS NURSERY GRANTS,170000              Education,A,2022,9
505,Community and Housing,VOYAGE CARE LTD,911560,20-Dec-22,6505.28,0,133700,Learning Disabilities Placemnt,321017              Nursing & Residential Care Homes,A,2022,9
506,Community and Housing,VOYAGE CARE LTD,911665,20-Dec-22,7721.6,0,133700,Learning Disabilities Placemnt,321017              Nursing & Residential Care Homes,A,2022,9
507,Community and Housing,VOYAGE CARE LTD,911748,20-Dec-22,7799.4,0,133700,Learning Disabilities Placemnt,321017              Nursing & Residential Care Homes,A,2022,9
508,Community and Housing,HOMECARE SERVICES LTD,28543,28-Dec-22,4454.8,0,134594,Phys/Sens Placements - East,321100              Social Community Care Supplies & Services - Children,A,2022,9
509,Community and Housing,Sunrise Rehabilitation Centre,911479,20-Dec-22,4923.4,0,135093,Learning Disabilities Placemnt,321017              Nursing & Residential Care Homes,A,2022,9
510,Community and Housing,Sunrise Rehabilitation Centre,911504,20-Dec-22,4923.4,0,135093,Learning Disabilities Placemnt,321017              Nursing & Residential Care Homes,A,2022,9
511,Community and Housing,Sunrise Rehabilitation Centre,911661,20-Dec-22,4873.96,0,135093,Learning Disabilities Placemnt,321017              Nursing & Residential Care Homes,A,2022,9
512,Community and Housing,Sunrise Rehabilitation Centre,911786,20-Dec-22,4762.72,0,135093,Learning Disabilities Placemnt,321017              Nursing & Residential Care Homes,A,2022,9
513,Community and Housing,Sunrise Rehabilitation Centre,911790,20-Dec-22,4886.32,0,135093,Learning Disabilities Placemnt,321017              Nursing & Residential Care Homes,A,2022,9
514,Community and Housing,Sunrise Rehabilitation Centre,911806,20-Dec-22,4923.4,0,135093,Learning Disabilities Placemnt,321017              Nursing & Residential Care Homes,A,2022,9
515,Community and Housing,Sunrise Rehabilitation Centre,911859,20-Dec-22,6102,0,135093,Learning Disabilities Placemnt,321017              Nursing & Residential Care Homes,A,2022,9
516,Community and Housing,Sunrise Rehabilitation Centre,911878,20-Dec-22,4120,0,135093,Learning Disabilities Placemnt,321017              Nursing & Residential Care Homes,A,2022,9
517,Community and Housing,MERTON VISION,INV1927,06-Dec-22,11729.62,0,135428,Physical/Sensory Contracts,260000              Human Resources,A,2022,9
518,Community and Housing,REDACTED PERSONAL DATA,906774,06-Dec-22,1420,0,135784,Phys/Sens Placements - East,DIRECT PAYMENTS,R,2022,9
519,"Children, Schools and Family",REDACTED PERSONAL DATA,912510,19-Dec-22,554.92,0,135795,Fostering Recruit/Assessment,321100              Social Community Care Supplies & Services - Children,R,2022,9
520,Corporate Services,BPP PROFESSIONAL EDUCATION,19690,19-Dec-22,1658.4,276.4,135946,Legal Shared Service,170000              Education,A,2022,9
521,Community and Housing,CROYDON HEALTH SERV. NHS TRUST,76682712,13-Dec-22,14443.13,0,136074,PH - Sexual Health,310000              Healthcare,A,2022,9
522,Corporate Services,ROYAL MAIL GROUP LTD,9065953374,08-Dec-22,573.94,95.66,136104,Electoral Registration,300000              Mail Services,A,2022,9
523,Unassigned,ZURICH INSURANCE GROUP,QLA-01E223DEC22,08-Dec-22,100000,0,137315,Corporate Services,200000              Financial Services,A,2022,9
524,Unassigned,LB Wandsworth Pension Fund Account,CETV00,09-Dec-22,651.09,0,137418,London Borough of Merton,PENSIONS,A,2022,9
525,Unassigned,LB Wandsworth Pension Fund Account,CETV03,21-Dec-22,4213.77,0,137418,London Borough of Merton,PENSIONS,A,2022,9
526,Community and Housing,REDACTED PERSONAL DATA,907019,06-Dec-22,1463.72,0,137843,Phys/Sens Placements - East,DIRECT PAYMENTS,R,2022,9
527,Community and Housing,REDACTED PERSONAL DATA,906693,06-Dec-22,1078,0,139365,Phys/Sens Placements - East,DIRECT PAYMENTS,R,2022,9
528,Community and Housing,REDACTED PERSONAL DATA,906960,06-Dec-22,509.12,0,140662,Phys/Sens Placements - East,DIRECT PAYMENTS,R,2022,9
529,Community and Housing,REDACTED PERSONAL DATA,906824,06-Dec-22,4263.88,0,140759,Phys/Sens Placements - East,DIRECT PAYMENTS,R,2022,9
530,Community and Housing,REDACTED PERSONAL DATA,906872,06-Dec-22,792.32,0,140759,Phys/Sens Placements - East,DIRECT PAYMENTS,R,2022,9
531,Community and Housing,SURREY AND BORDERS PARTNERSHIP,911628,20-Dec-22,11448.72,0,140911,Learning Disabilities Placemnt,321017              Nursing & Residential Care Homes,A,2022,9
532,Environment and Regeneration,KELTIC CLOTHING LTD,172384,20-Dec-22,1584.96,264.16,141131,Civil Enforcement Officers,140000              Clothing,A,2022,9
533,Environment and Regeneration,KELTIC CLOTHING LTD,172416,20-Dec-22,7402.5,1233.75,141131,Civil Enforcement Officers,140000              Clothing,A,2022,9
534,Community and Housing,GARWOOD FOUNDATION,911512,20-Dec-22,2755.48,0,142358,Phys/Sens Placements - East,321017              Nursing & Residential Care Homes,A,2022,9
535,Community and Housing,GARWOOD FOUNDATION,911614,20-Dec-22,2755.48,0,142358,Older People Placements - East,321017              Nursing & Residential Care Homes,A,2022,9
536,Community and Housing,CHHG LTD T/A GRETTON HOMES,911832,20-Dec-22,7961.72,0,142442,Learning Disabilities Placemnt,321017              Nursing & Residential Care Homes,A,2022,9
537,Community and Housing,EVERGREEN PARTNERSHIP,911554,20-Dec-22,9675,0,142455,Learning Disabilities Placemnt,321017              Nursing & Residential Care Homes,A,2022,9
538,Community and Housing,EVERGREEN PARTNERSHIP,911574,20-Dec-22,6629.16,0,142455,Learning Disabilities Placemnt,321017              Nursing & Residential Care Homes,A,2022,9
539,Community and Housing,REDACTED PERSONAL DATA,909375,13-Dec-22,1052.08,0,143597,MH Housing Support Placements,321000              Social Community Care Supplies & Services - Adult,R,2022,9
540,Community and Housing,REDACTED PERSONAL DATA,909390,13-Dec-22,1315.04,0,143597,LD Housing Support Placements,321000              Social Community Care Supplies & Services - Adult,R,2022,9
541,Community and Housing,REDACTED PERSONAL DATA,909412,13-Dec-22,1462.32,0,143597,Learning Disabilities Placemnt,321000              Social Community Care Supplies & Services - Adult,R,2022,9
542,Community and Housing,REDACTED PERSONAL DATA,906817,06-Dec-22,3731.72,0,144689,Learning Disabilities Placemnt,DIRECT PAYMENTS,R,2022,9
543,"Children, Schools and Family",DF20 LTD,4425-600,13-Dec-22,2368.8,394.8,144747,School Meals,110000              Catering,A,2022,9
544,Community and Housing,CRAEGMOOR FACILITIES - WINDSOR,911607,20-Dec-22,6834.88,0,145152,Learning Disabilities Placemnt,321017              Nursing & Residential Care Homes,A,2022,9
545,Community and Housing,REDACTED PERSONAL DATA,906904,06-Dec-22,4454.8,0,145882,Learning Disabilities Placemnt,DIRECT PAYMENTS,R,2022,9
546,"Children, Schools and Family",SPEECH CENTRE,110580,28-Dec-22,727.99,121.33,147920,Head - Help & Family Assessmnt,270000              Information Communication Technology,A,2022,9
547,Community and Housing,GENERATE,10090,28-Dec-22,659.2,0,148332,Learning Disabilities Placemnt,321000              Social Community Care Supplies & Services - Adult,A,2022,9
548,Community and Housing,GENERATE,10088,28-Dec-22,727.2,0,148332,Learning Disabilities Placemnt,321000              Social Community Care Supplies & Services - Adult,A,2022,9
549,Community and Housing,CHICHESTER HALL CARE HOME LTD,911820,20-Dec-22,2637.2,0,148358,Older People Placements - East,321017              Nursing & Residential Care Homes,A,2022,9
550,"Children, Schools and Family",Dicky Birds Pre Sch. Nurseries Queens Rd,P2 22 EY FUND 2,14-Dec-22,696.6,0,148567,EARLY YEARS NURSERY GRANTS,200000              Financial Services,A,2022,9
551,Unassigned,Canterbury Campus,SCHOOLS 2223/9 A,06-Dec-22,178570.66,0,150054,Schools,170000              Education,A,2022,9
552,Community and Housing,REDACTED PERSONAL DATA,906805,06-Dec-22,2544.32,0,151002,Older People Placements - East,DIRECT PAYMENTS,R,2022,9
553,Community and Housing,AIMS CARE PARTNERSHIP,911558,20-Dec-22,10560,0,151592,Learning Disabilities Placemnt,321017              Nursing & Residential Care Homes,A,2022,9
554,Community and Housing,AIMS CARE PARTNERSHIP,911598,20-Dec-22,3114.72,0,151592,Learning Disabilities Placemnt,321017              Nursing & Residential Care Homes,A,2022,9
555,Community and Housing,REDACTED PERSONAL DATA,906674,06-Dec-22,2333.6,0,151790,Older People Placements - East,DIRECT PAYMENTS,R,2022,9
556,Community and Housing,HOLISTIC COMMUNITY CARE - FC,3256,05-Dec-22,5080,0,151996,Older People Placements - East,321000              Social Community Care Supplies & Services - Adult,A,2022,9
557,Community and Housing,HOLISTIC COMMUNITY CARE - FC,3257,05-Dec-22,4454.8,0,151996,Learning Disabilities Placemnt,321000              Social Community Care Supplies & Services - Adult,A,2022,9
558,Community and Housing,HOLISTIC COMMUNITY CARE - FC,3186,08-Dec-22,4454.8,0,151996,Learning Disabilities Placemnt,321000              Social Community Care Supplies & Services - Adult,A,2022,9
559,Community and Housing,HOLISTIC COMMUNITY CARE - FC,M222309/6,15-Dec-22,534.51,0,151996,Older People Placements - East,321000              Social Community Care Supplies & Services - Adult,A,2022,9
560,Community and Housing,HOLISTIC COMMUNITY CARE - FC,M222309/25,15-Dec-22,653.02,0,151996,Older People Placements - East,321000              Social Community Care Supplies & Services - Adult,A,2022,9
561,Community and Housing,HOLISTIC COMMUNITY CARE - FC,M222309/8,15-Dec-22,642.32,0,151996,Older People Placements - East,321000              Social Community Care Supplies & Services - Adult,A,2022,9
562,Community and Housing,HOLISTIC COMMUNITY CARE - FC,M222309/13,15-Dec-22,1190.5,0,151996,Older People Placements - East,321000              Social Community Care Supplies & Services - Adult,A,2022,9
563,Community and Housing,HOLISTIC COMMUNITY CARE - FC,M222309/3,15-Dec-22,939.78,0,151996,Older People Placements - East,321000              Social Community Care Supplies & Services - Adult,A,2022,9
564,Community and Housing,HOLISTIC COMMUNITY CARE - FC,M222309/1,15-Dec-22,2997.85,0,151996,Older People Placements - East,321000              Social Community Care Supplies & Services - Adult,A,2022,9
565,Community and Housing,HOLISTIC COMMUNITY CARE - FC,M222309/16,15-Dec-22,1460.75,0,151996,Older People Placements - East,321000              Social Community Care Supplies & Services - Adult,A,2022,9
566,Community and Housing,HOLISTIC COMMUNITY CARE - FC,M222309/2,15-Dec-22,2060.95,0,151996,Older People Placements - East,321000              Social Community Care Supplies & Services - Adult,A,2022,9
567,Community and Housing,HOLISTIC COMMUNITY CARE - FC,M222309/7,15-Dec-22,735.89,0,151996,Older People Placements - East,321000              Social Community Care Supplies & Services - Adult,A,2022,9
568,Community and Housing,HOLISTIC COMMUNITY CARE - FC,M222309/11,15-Dec-22,838.78,0,151996,Older People Placements - East,321000              Social Community Care Supplies & Services - Adult,A,2022,9
569,Community and Housing,HOLISTIC COMMUNITY CARE - FC,M222309/12,15-Dec-22,1331.3,0,151996,Older People Placements - East,321000              Social Community Care Supplies & Services - Adult,A,2022,9
570,Community and Housing,HOLISTIC COMMUNITY CARE - FC,M222309/26,15-Dec-22,1207.92,0,151996,Older People Placements - East,321000              Social Community Care Supplies & Services - Adult,A,2022,9
571,Community and Housing,HOLISTIC COMMUNITY CARE - FC,M222309/5,15-Dec-22,1745.94,0,151996,Older People Placements - East,321000              Social Community Care Supplies & Services - Adult,A,2022,9
572,Community and Housing,HOLISTIC COMMUNITY CARE - FC,M222309/24,15-Dec-22,733.52,0,151996,Older People Placements - East,321000              Social Community Care Supplies & Services - Adult,A,2022,9
573,Community and Housing,HOLISTIC COMMUNITY CARE - FC,3296,30-Dec-22,5080,0,151996,Older People Placements - East,321000              Social Community Care Supplies & Services - Adult,A,2022,9
574,Community and Housing,HOLISTIC COMMUNITY CARE - FC,3295,30-Dec-22,4454.8,0,151996,Learning Disabilities Placemnt,321000              Social Community Care Supplies & Services - Adult,A,2022,9
575,Community and Housing,REDACTED PERSONAL DATA,907048,06-Dec-22,7434,0,152015,Older People Placements - East,321000              Social Community Care Supplies & Services - Adult,R,2022,9
576,Unassigned,WANDSWORTH CORPORATION,2101066605,16-Dec-22,163222.8,27203.8,152180,Administrative Cost,OLA,A,2022,9
577,Corporate Services,WANDSWORTH CORPORATION,WC376792128M08D,22-Dec-22,4331.75,0,152180,SLLP Client Income,OLA,A,2022,9
578,Community and Housing,REDACTED PERSONAL DATA,906928,06-Dec-22,1431.9,0,152709,Older People Placements - East,DIRECT PAYMENTS,R,2022,9
579,Community and Housing,REDACTED PERSONAL DATA,907817,06-Dec-22,2863.8,0,152990,Learning Disabilities Placemnt,DIRECT PAYMENTS,R,2022,9
580,Community and Housing,LYNTON HALL NURSING HOME,911458,20-Dec-22,3102.04,0,153795,Older People Placements - East,321017              Nursing & Residential Care Homes,A,2022,9
581,Community and Housing,LYNTON HALL NURSING HOME,911463,20-Dec-22,2988.48,0,153795,Older People Placements - East,321017              Nursing & Residential Care Homes,A,2022,9
582,Community and Housing,LYNTON HALL NURSING HOME,911634,20-Dec-22,3249.6,0,153795,Older People Placements - East,321017              Nursing & Residential Care Homes,A,2022,9
583,Unassigned,HARRIS ACADEMY MERTON,SCHOOLS 2223/9 A,06-Dec-22,60987.07,0,155274,Schools,170000              Education,A,2022,9
584,Unassigned,CFBT SCHOOLS TRUST,SCHOOLS 2223/9 A,06-Dec-22,37016.76,0,155275,Schools,170000              Education,A,2022,9
585,Community and Housing,REDACTED PERSONAL DATA,906932,06-Dec-22,614.16,0,155411,Learning Disabilities Placemnt,DIRECT PAYMENTS,R,2022,9
586,"Children, Schools and Family",BEDELSFORD SCHOOL,DI104104233,08-Dec-22,125398.33,0,156132,Non-Delegated Statements,170000              Education,A,2022,9
587,Community and Housing,REDACTED PERSONAL DATA,906964,06-Dec-22,9751.56,0,156181,Phys/Sens Placements - East,DIRECT PAYMENTS,R,2022,9
588,Corporate Services,IMAGINE INDEPENDENCE,9816,05-Dec-22,3000,0,158720,Learning and Development,321000              Social Community Care Supplies & Services - Adult,A,2022,9
589,Corporate Services,IMAGINE INDEPENDENCE,9983,06-Dec-22,900,0,158720,Learning and Development,321000              Social Community Care Supplies & Services - Adult,A,2022,9
590,Community and Housing,IMAGINE INDEPENDENCE,10362,13-Dec-22,2380,0,158720,PH - Substance Misuse,321000              Social Community Care Supplies & Services - Adult,A,2022,9
591,Corporate Services,CILEX,INV5921257649614,01-Dec-22,2537.5,0,158746,SLLP - Disbursements,200000              Financial Services,A,2022,9
592,Environment and Regeneration,LONDON BOROUGH OF CAMDEN,24659847,07-Dec-22,975,0,159338,Pks Rec Grds (Unloc),OLA,A,2022,9
593,Community and Housing,REDACTED PERSONAL DATA,906762,06-Dec-22,979.36,0,159542,Phys/Sens Placements - East,DIRECT PAYMENTS,R,2022,9
594,Community and Housing,REDACTED PERSONAL DATA,906988,06-Dec-22,3220,0,160044,Phys/Sens Placements - East,DIRECT PAYMENTS,R,2022,9
595,Community and Housing,METROPOLITAN THAMES VALLEY,3060704SM,28-Dec-22,2171,0,160080,Learning Disabilities Placemnt,321017              Nursing & Residential Care Homes,A,2022,9
596,Community and Housing,METROPOLITAN THAMES VALLEY,3060704LD,28-Dec-22,2171,0,160080,Learning Disabilities Placemnt,321017              Nursing & Residential Care Homes,A,2022,9
597,Community and Housing,METROPOLITAN THAMES VALLEY,3060704SC,28-Dec-22,2171,0,160080,Learning Disabilities Placemnt,321017              Nursing & Residential Care Homes,A,2022,9
598,Community and Housing,METROPOLITAN THAMES VALLEY,3060704GB,28-Dec-22,2171,0,160080,Learning Disabilities Placemnt,321017              Nursing & Residential Care Homes,A,2022,9
599,"Children, Schools and Family",REDACTED PERSONAL DATA,912345,19-Dec-22,1894.55,0,160147,Child Disabilities - Placement,CSF-DIRECT PAYMENTS,R,2022,9
600,Community and Housing,REDACTED PERSONAL DATA,906891,06-Dec-22,1272.8,0,160244,Phys/Sens Placements - East,DIRECT PAYMENTS,R,2022,9
601,Community and Housing,REDACTED PERSONAL DATA,906895,06-Dec-22,604.6,0,160273,Learning Disabilities Placemnt,DIRECT PAYMENTS,R,2022,9
602,Community and Housing,REDACTED PERSONAL DATA,906802,06-Dec-22,1018.24,0,160279,Phys/Sens Placements - East,DIRECT PAYMENTS,R,2022,9
603,"Children, Schools and Family",FLEET EDUCATION SERVICES LTD,19191,12-Dec-22,2563.2,427.2,160300,Non-Delegated Statements,260000              Human Resources,A,2022,9
604,"Children, Schools and Family",FLEET EDUCATION SERVICES LTD,19192,12-Dec-22,576,96,160300,Non-Delegated Statements,260000              Human Resources,A,2022,9
605,"Children, Schools and Family",THE NATIONAL FOSTERING AGENCY,419851,22-Dec-22,5519.4,0,160464,Placements Under 18,321100              Social Community Care Supplies & Services - Children,A,2022,9
606,"Children, Schools and Family",THE NATIONAL FOSTERING AGENCY,419849,22-Dec-22,5519.4,0,160464,Placements Under 18,321100              Social Community Care Supplies & Services - Children,A,2022,9
607,Community and Housing,THE AVENUES TRUST GROUP,1001037,15-Dec-22,1193.88,0,160730,Learning Disabilities Placemnt,321017              Nursing & Residential Care Homes,A,2022,9
608,Community and Housing,THE AVENUES TRUST GROUP,1001922,20-Dec-22,9463.56,0,160730,Learning Disabilities Placemnt,321017              Nursing & Residential Care Homes,A,2022,9
609,Community and Housing,THE AVENUES TRUST GROUP,1002133,30-Dec-22,9463.56,0,160730,Learning Disabilities Placemnt,321017              Nursing & Residential Care Homes,A,2022,9
610,Community and Housing,THE AVENUES TRUST GROUP,1001620,28-Dec-22,9463.56,0,160730,Learning Disabilities Placemnt,321017              Nursing & Residential Care Homes,A,2022,9
611,Community and Housing,THE AVENUES TRUST GROUP,1001569,28-Dec-22,7788.68,0,160730,Learning Disabilities Placemnt,321017              Nursing & Residential Care Homes,A,2022,9
612,Community and Housing,THE AVENUES TRUST GROUP,1001256A,28-Dec-22,3325.88,0,160730,Learning Disabilities Placemnt,321017              Nursing & Residential Care Homes,A,2022,9
613,Community and Housing,CITY OF LONDON CORPORATION,4328089,13-Dec-22,27161.22,0,160895,PH - Sexual Health,180000              Environmental Services,A,2022,9
614,Community and Housing,CITY OF LONDON CORPORATION,4328090,13-Dec-22,32025.3,0,160895,PH - Sexual Health,180000              Environmental Services,A,2022,9
615,Community and Housing,CITY OF LONDON CORPORATION,4328150,13-Dec-22,32433.19,0,160895,PH - Sexual Health,180000              Environmental Services,A,2022,9
616,Community and Housing,CITY OF LONDON CORPORATION,4328151,13-Dec-22,29720.07,0,160895,PH - Sexual Health,180000              Environmental Services,A,2022,9
617,Community and Housing,CITY OF LONDON CORPORATION,4329973,16-Dec-22,30253.2,0,160895,PH - Sexual Health,180000              Environmental Services,A,2022,9
618,Community and Housing,REDACTED PERSONAL DATA,907043,06-Dec-22,540.96,0,160909,Older People Placements - East,DIRECT PAYMENTS,R,2022,9
619,"Children, Schools and Family",REDACTED PERSONAL DATA,906339,02-Dec-22,565.5,0,161094,UASC LAC Under 18,321100              Social Community Care Supplies & Services - Children,R,2022,9
620,"Children, Schools and Family",REDACTED PERSONAL DATA,906368,02-Dec-22,614.75,0,161094,Placements Under 18,321100              Social Community Care Supplies & Services - Children,R,2022,9
621,"Children, Schools and Family",REDACTED PERSONAL DATA,906502,02-Dec-22,1330.51,0,161094,Fostering Support,321100              Social Community Care Supplies & Services - Children,R,2022,9
622,"Children, Schools and Family",REDACTED PERSONAL DATA,909106,09-Dec-22,1277.81,0,161094,Placements Under 18,321100              Social Community Care Supplies & Services - Children,R,2022,9
623,"Children, Schools and Family",REDACTED PERSONAL DATA,909140,09-Dec-22,514.75,0,161094,Placements Under 18,321100              Social Community Care Supplies & Services - Children,R,2022,9
624,"Children, Schools and Family",REDACTED PERSONAL DATA,911918,16-Dec-22,1031,0,161094,UASC LAC Under 18,321100              Social Community Care Supplies & Services - Children,R,2022,9
625,"Children, Schools and Family",REDACTED PERSONAL DATA,911945,16-Dec-22,1129.5,0,161094,Placements Under 18,321100              Social Community Care Supplies & Services - Children,R,2022,9
626,"Children, Schools and Family",REDACTED PERSONAL DATA,914754,29-Dec-22,514.75,0,161094,UASC LAC Under 18,321100              Social Community Care Supplies & Services - Children,R,2022,9
627,"Children, Schools and Family",TTS LTD,DE6998360,28-Dec-22,1312.8,163,161734, Children's Centres Support,170000              Education,A,2022,9
628,Environment and Regeneration,KAT TRANSPORT LTD,73,13-Dec-22,2160,360,162381,Passenger Transport,360000              Passenger Transport,A,2022,9
629,Environment and Regeneration,KAT TRANSPORT LTD,74,13-Dec-22,2640,440,162381,Passenger Transport,360000              Passenger Transport,A,2022,9
630,Environment and Regeneration,KAT TRANSPORT LTD,75,13-Dec-22,6072,1012,162381,Passenger Transport,360000              Passenger Transport,A,2022,9
631,Environment and Regeneration,KAT TRANSPORT LTD,76,30-Dec-22,1440,240,162381,Passenger Transport,360000              Passenger Transport,A,2022,9
632,Environment and Regeneration,KAT TRANSPORT LTD,77,30-Dec-22,1440,240,162381,Passenger Transport,360000              Passenger Transport,A,2022,9
633,Environment and Regeneration,KAT TRANSPORT LTD,78,30-Dec-22,3312,552,162381,Passenger Transport,360000              Passenger Transport,A,2022,9
634,Environment and Regeneration,QUARTIX  LTD,681273,28-Dec-22,1053,175.5,162608,Civil Enforcement Officers,270000              Information Communication Technology,A,2022,9
635,Corporate Services,DATA INTERCHANGE PLC,UKSI-103673,28-Dec-22,805.86,134.31,162623,Local Taxation Bailiffs,270000              Information Communication Technology,A,2022,9
636,Community and Housing,REDACTED PERSONAL DATA,906713,06-Dec-22,1562.56,0,163392,Learning Disabilities Placemnt,DIRECT PAYMENTS,R,2022,9
637,Environment and Regeneration,D N H PROPERTY MAINTENANCE,2178DNH,20-Dec-22,732,122,163395,Vestry Hall,"390000              Works - Construction, Repair & Maintenance",C,2022,9
638,"Children, Schools and Family",REDACTED PERSONAL DATA,906311,02-Dec-22,565.5,0,163471,UASC LAC Under 18,200000              Financial Services,R,2022,9
639,"Children, Schools and Family",REDACTED PERSONAL DATA,906391,02-Dec-22,785.52,0,163471,Placements Under 18,200000              Financial Services,R,2022,9
640,"Children, Schools and Family",REDACTED PERSONAL DATA,906400,02-Dec-22,3245.13,0,163471,Placements Under 18,200000              Financial Services,R,2022,9
641,"Children, Schools and Family",REDACTED PERSONAL DATA,909164,09-Dec-22,785.52,0,163471,Placements Under 18,200000              Financial Services,R,2022,9
642,"Children, Schools and Family",REDACTED PERSONAL DATA,909173,09-Dec-22,654.24,0,163471,Placements Under 18,200000              Financial Services,R,2022,9
643,"Children, Schools and Family",REDACTED PERSONAL DATA,911889,16-Dec-22,931,0,163471,UASC LAC Under 18,200000              Financial Services,R,2022,9
644,"Children, Schools and Family",REDACTED PERSONAL DATA,911970,16-Dec-22,1571.04,0,163471,Placements Under 18,200000              Financial Services,R,2022,9
645,"Children, Schools and Family",REDACTED PERSONAL DATA,911979,16-Dec-22,1308.48,0,163471,Placements Under 18,200000              Financial Services,R,2022,9
646,"Children, Schools and Family",REDACTED PERSONAL DATA,914808,29-Dec-22,785.52,0,163471,Placements Under 18,200000              Financial Services,R,2022,9
647,"Children, Schools and Family",REDACTED PERSONAL DATA,914817,29-Dec-22,654.24,0,163471,Placements Under 18,200000              Financial Services,R,2022,9
648,Corporate Services,AEA (BOOKINGS),32410,02-Dec-22,1620,270,163833,Electoral Registration,260000              Human Resources,A,2022,9
649,Community and Housing,Active Prospects,911489,20-Dec-22,6103.76,0,163859,Learning Disabilities Placemnt,321017              Nursing & Residential Care Homes,A,2022,9
650,Community and Housing,REDACTED PERSONAL DATA,907037,06-Dec-22,1129.64,0,163971,Phys/Sens Placements - East,DIRECT PAYMENTS,R,2022,9
651,"Children, Schools and Family",BUMBLE BEES'S DAY NURSERY-COCC,P2 22 EY FUND 2,14-Dec-22,1773.9,0,164240,EARLY YEARS NURSERY GRANTS,200000              Financial Services,A,2022,9
652,Corporate Services,CLIFFE ENTERPRISE LTD,22018,19-Dec-22,34746,5791,164341,Printing,190000              Facilities & Management Services,A,2022,9
653,Community and Housing,SUPPORTED LIVING TEAM,P/CASH 231222,30-Dec-22,608.8,29.8,164370,Eastway Day Centre,INTERNAL,A,2022,9
654,Community and Housing,ENTERPRISE CARE SUPPORT LTD,19875,21-Dec-22,3329.08,0,164431,Older People Placements - East,321000              Social Community Care Supplies & Services - Adult,A,2022,9
655,Community and Housing,ENTERPRISE CARE SUPPORT LTD,19878,21-Dec-22,801.15,0,164431,Older People Placements - East,321000              Social Community Care Supplies & Services - Adult,A,2022,9
656,Community and Housing,ENTERPRISE CARE SUPPORT LTD,19877,21-Dec-22,533.6,0,164431,Older People Placements - East,321000              Social Community Care Supplies & Services - Adult,A,2022,9
657,Community and Housing,ENTERPRISE CARE SUPPORT LTD,19876,21-Dec-22,2778.72,0,164431,Older People Placements - East,321000              Social Community Care Supplies & Services - Adult,A,2022,9
658,Community and Housing,ENTERPRISE CARE SUPPORT LTD,19879,21-Dec-22,3197.04,0,164431,Older People Placements - East,321000              Social Community Care Supplies & Services - Adult,A,2022,9
659,Community and Housing,ENTERPRISE CARE SUPPORT LTD,19887,21-Dec-22,681.48,0,164431,Learning Disabilities Placemnt,321000              Social Community Care Supplies & Services - Adult,A,2022,9
660,Community and Housing,ENTERPRISE CARE SUPPORT LTD,19881,21-Dec-22,747.04,0,164431,Older People Placements - East,321000              Social Community Care Supplies & Services - Adult,A,2022,9
661,Community and Housing,ENTERPRISE CARE SUPPORT LTD,19883,21-Dec-22,681.48,0,164431,Older People Placements - East,321000              Social Community Care Supplies & Services - Adult,A,2022,9
662,Community and Housing,ENTERPRISE CARE SUPPORT LTD,19885,21-Dec-22,747.04,0,164431,Older People Placements - East,321000              Social Community Care Supplies & Services - Adult,A,2022,9
663,Community and Housing,ENTERPRISE CARE SUPPORT LTD,19889,21-Dec-22,2136.4,0,164431,Older People Placements - East,321000              Social Community Care Supplies & Services - Adult,A,2022,9
664,Community and Housing,ENTERPRISE CARE SUPPORT LTD,19884,21-Dec-22,747.04,0,164431,Older People Placements - East,321000              Social Community Care Supplies & Services - Adult,A,2022,9
665,Community and Housing,ENTERPRISE CARE SUPPORT LTD,19888,21-Dec-22,1068.2,0,164431,Older People Placements - East,321000              Social Community Care Supplies & Services - Adult,A,2022,9
666,Community and Housing,ENTERPRISE CARE SUPPORT LTD,19892,21-Dec-22,1068.2,0,164431,Older People Placements - East,321000              Social Community Care Supplies & Services - Adult,A,2022,9
667,Community and Housing,ENTERPRISE CARE SUPPORT LTD,19897,21-Dec-22,735.57,0,164431,Older People Placements - East,321000              Social Community Care Supplies & Services - Adult,A,2022,9
668,Community and Housing,ENTERPRISE CARE SUPPORT LTD,19895,21-Dec-22,2778.72,0,164431,Older People Placements - East,321000              Social Community Care Supplies & Services - Adult,A,2022,9
669,Community and Housing,ENTERPRISE CARE SUPPORT LTD,19898,21-Dec-22,1068.2,0,164431,Older People Placements - East,321000              Social Community Care Supplies & Services - Adult,A,2022,9
670,Community and Housing,ENTERPRISE CARE SUPPORT LTD,19899,21-Dec-22,1324.36,0,164431,Older People Placements - East,321000              Social Community Care Supplies & Services - Adult,A,2022,9
671,Community and Housing,DMA SIGNS LTD,INV74663,19-Dec-22,1726.01,287.67,164503,Libraries Service-Civic Centre,100000              Building Construction Materials,A,2022,9
672,Community and Housing,BUPA CARE SERVICES BACS RECEIP,911675,20-Dec-22,8538.76,0,164629,Older People Placements - East,321017              Nursing & Residential Care Homes,A,2022,9
673,Community and Housing,REDACTED PERSONAL DATA,907045,06-Dec-22,1272.8,0,164694,Phys/Sens Placements - East,DIRECT PAYMENTS,R,2022,9
674,"Children, Schools and Family",SYNERGY FOSTERING LTD,INV4002,06-Dec-22,7688.4,0,165111,Placements Under 18,321100              Social Community Care Supplies & Services - Children,A,2022,9
675,Corporate Services,REDACTED PERSONAL DATA,INVKB399,08-Dec-22,3300,550,165278,SLLP - Disbursements,280000              Legal Services                                                                            Confirmed,R,2022,9
676,Corporate Services,REDACTED PERSONAL DATA,INVKB401,21-Dec-22,3600,600,165278,SLLP - Disbursements,280000              Legal Services                                                                            Confirmed,R,2022,9
677,"Children, Schools and Family",CHILDREN OF COLOUR,8070,21-Dec-22,602.55,0,165365,Placements Under 18,321100              Social Community Care Supplies & Services - Children,A,2022,9
678,Community and Housing,REDACTED PERSONAL DATA,906982,06-Dec-22,1349.48,0,165602,Learning Disabilities Placemnt,DIRECT PAYMENTS,R,2022,9
679,Community and Housing,REDACTED PERSONAL DATA,906761,06-Dec-22,2228.4,0,165619,Phys/Sens Placements - East,DIRECT PAYMENTS,R,2022,9
680,Community and Housing,REDACTED PERSONAL DATA,906849,06-Dec-22,3538.2,0,165619,Phys/Sens Placements - East,DIRECT PAYMENTS,R,2022,9
681,Community and Housing,BUPA CARE HOMES (ANS) LTD,911841,20-Dec-22,4749.4,0,165704,Older People Placements - East,321017              Nursing & Residential Care Homes,A,2022,9
682,Community and Housing,REDACTED PERSONAL DATA,906947,06-Dec-22,1032.8,0,165786,Older People Placements - East,DIRECT PAYMENTS,R,2022,9
683,Community and Housing,REDACTED PERSONAL DATA,907052,06-Dec-22,700.8,0,166085,Learning Disabilities Placemnt,DIRECT PAYMENTS,R,2022,9
684,Community and Housing,REDACTED PERSONAL DATA,906944,06-Dec-22,1588.64,0,166158,Phys/Sens Placements - East,DIRECT PAYMENTS,R,2022,9
685,Unassigned,COMPLETE ECOLOGY LTD,28/2223,28-Dec-22,2700,450,166208,Mitcham Common Conservators,240000              Horticultural                                                                             Confirmed,A,2022,9
686,Community and Housing,REDACTED PERSONAL DATA,906728,06-Dec-22,1209.16,0,166547,Learning Disabilities Placemnt,DIRECT PAYMENTS,R,2022,9
687,"Children, Schools and Family",REDACTED PERSONAL DATA,906320,02-Dec-22,1395.53,0,166742,Placements Under 18,321100              Social Community Care Supplies & Services - Children,R,2022,9
688,"Children, Schools and Family",REDACTED PERSONAL DATA,909094,09-Dec-22,1295.53,0,166742,Placements Under 18,321100              Social Community Care Supplies & Services - Children,R,2022,9
689,"Children, Schools and Family",REDACTED PERSONAL DATA,911898,16-Dec-22,2591.06,0,166742,Placements Under 18,321100              Social Community Care Supplies & Services - Children,R,2022,9
690,"Children, Schools and Family",REDACTED PERSONAL DATA,914737,29-Dec-22,1295.53,0,166742,Placements Under 18,321100              Social Community Care Supplies & Services - Children,R,2022,9
691,"Children, Schools and Family",REDACTED PERSONAL DATA,907568,06-Dec-22,807.76,0,166972,Child Disabilities - Placement,CSF-DIRECT PAYMENTS,R,2022,9
692,"Children, Schools and Family",RAINBOW FOSTERING SERVICES LTD,RF1524,28-Dec-22,3621.42,0,167793,Placements Under 18,321100              Social Community Care Supplies & Services - Children,A,2022,9
693,Corporate Services,REDACTED PERSONAL DATA,10206315,21-Dec-22,121389.9,20231.65,168092,SLLP - Disbursements,280000              Legal Services,R,2022,9
694,Corporate Services,REDACTED PERSONAL DATA,10205735,22-Dec-22,3000,500,168092,SLLP - Disbursements,280000              Legal Services,R,2022,9
695,Corporate Services,REDACTED PERSONAL DATA,10194640,22-Dec-22,916.2,152.7,168092,SLLP - Disbursements,280000              Legal Services,R,2022,9
696,Corporate Services,REDACTED PERSONAL DATA,10198494,22-Dec-22,713.4,118.9,168092,SLLP - Disbursements,280000              Legal Services,R,2022,9
697,Corporate Services,REDACTED PERSONAL DATA,10198631,22-Dec-22,1780.2,296.7,168092,SLLP - Disbursements,280000              Legal Services,R,2022,9
698,Corporate Services,REDACTED PERSONAL DATA,10206726,22-Dec-22,517.2,86.2,168092,SLLP - Disbursements,280000              Legal Services,R,2022,9
699,Corporate Services,REDACTED PERSONAL DATA,10206728,22-Dec-22,841.2,140.2,168092,SLLP - Disbursements,280000              Legal Services,R,2022,9
700,Corporate Services,REDACTED PERSONAL DATA,10206731,22-Dec-22,633.6,105.6,168092,SLLP - Disbursements,280000              Legal Services,R,2022,9
701,Corporate Services,REDACTED PERSONAL DATA,10206735,22-Dec-22,516,86,168092,SLLP - Disbursements,280000              Legal Services,R,2022,9
702,Corporate Services,REDACTED PERSONAL DATA,10206736,22-Dec-22,1040.4,173.4,168092,SLLP - Disbursements,280000              Legal Services,R,2022,9
703,Corporate Services,REDACTED PERSONAL DATA,10206741,22-Dec-22,802.8,133.8,168092,SLLP - Disbursements,280000              Legal Services,R,2022,9
704,Corporate Services,REDACTED PERSONAL DATA,10206744,28-Dec-22,594,99,168092,SLLP - Disbursements,280000              Legal Services,R,2022,9
705,Corporate Services,REDACTED PERSONAL DATA,10206758,28-Dec-22,1419.6,236.6,168092,SLLP - Disbursements,280000              Legal Services,R,2022,9
706,Corporate Services,REDACTED PERSONAL DATA,10206887,28-Dec-22,1068.6,178.1,168092,SLLP - Disbursements,280000              Legal Services,R,2022,9
707,Corporate Services,REDACTED PERSONAL DATA,10209643,28-Dec-22,960,160,168092,SLLP - Disbursements,280000              Legal Services,R,2022,9
708,Capital,CBS Adaptation Design,1706,13-Dec-22,1522.53,224.42,168147,Disabled Facilities Grant,200000              Financial Services,A,2022,9
709,Capital,CBS Adaptation Design,1690,13-Dec-22,877.75,116.96,168147,Disabled Facilities Grant,200000              Financial Services,A,2022,9
710,Capital,CBS Adaptation Design,1696,13-Dec-22,3833.08,550.85,168147,Disabled Facilities Grant,200000              Financial Services,A,2022,9
711,Capital,CBS Adaptation Design,1704,13-Dec-22,595.51,49.25,168147,Disabled Facilities Grant,200000              Financial Services,A,2022,9
712,Capital,CBS Adaptation Design,1703,16-Dec-22,909.83,101.14,168147,Disabled Facilities Grant,200000              Financial Services,A,2022,9
713,Capital,CBS Adaptation Design,1689,16-Dec-22,635.62,76.77,168147,Disabled Facilities Grant,200000              Financial Services,A,2022,9
714,Capital,CBS Adaptation Design,1700,16-Dec-22,840,140,168147,Disabled Facilities Grant,200000              Financial Services,A,2022,9
715,Capital,CBS Adaptation Design,1699,16-Dec-22,1654.27,188.21,168147,Disabled Facilities Grant,200000              Financial Services,A,2022,9
716,Capital,CBS Adaptation Design,1671,21-Dec-22,3375.17,495.86,168147,Disabled Facilities Grant,200000              Financial Services,A,2022,9
717,Capital,CBS Adaptation Design,1673,21-Dec-22,1232.5,176.25,168147,Disabled Facilities Grant,200000              Financial Services,A,2022,9
718,Capital,CBS Adaptation Design,1711,21-Dec-22,840,140,168147,Disabled Facilities Grant,200000              Financial Services,A,2022,9
719,Capital,CBS Adaptation Design,1708,21-Dec-22,2859.83,389.14,168147,Disabled Facilities Grant,200000              Financial Services,A,2022,9
720,Capital,CBS Adaptation Design,1710,21-Dec-22,1262.2,181.2,168147,Disabled Facilities Grant,200000              Financial Services,A,2022,9
721,Corporate Services,LANGUAGE BANK,MTS241122,19-Dec-22,714,119,168229,Translation Service,TRANSLATIONS,A,2022,9
722,Community and Housing,REDACTED PERSONAL DATA,906776,06-Dec-22,572.76,0,168403,Learning Disabilities Placemnt,DIRECT PAYMENTS,R,2022,9
723,Corporate Services,REDACTED PERSONAL DATA,20135002,21-Dec-22,544,0,168905,Translation Service,TRANSLATIONS,R,2022,9
724,Community and Housing,FITZROY SUPPORT,911520,20-Dec-22,6414.52,0,169400,Learning Disabilities Placemnt,321017              Nursing & Residential Care Homes,A,2022,9
725,"Children, Schools and Family",REDACTED PERSONAL DATA,908568,07-Dec-22,1209.18,0,169403,Child Disabilities - Placement,CSF-DIRECT PAYMENTS,R,2022,9
726,Corporate Services,KC Services Group,39800,21-Dec-22,1176,196,169420,Leisure Buildings,"390000              Works - Construction, Repair & Maintenance",A,2022,9
727,Environment and Regeneration,New London Architecture,38636,13-Dec-22,5400,900,169510,Spatial Policy,180000              Environmental Services,A,2022,9
728,"Children, Schools and Family",JULIUS RUTHERFOORD AND CO LTD,INVS146403,16-Dec-22,3770.81,628.47,170092, PFI Unitary Charges,130000              Cleaning & Janitorial,A,2022,9
729,"Children, Schools and Family",JULIUS RUTHERFOORD AND CO LTD,INVS145957,16-Dec-22,21682.82,3613.8,170092, PFI Unitary Charges,130000              Cleaning & Janitorial,A,2022,9
730,"Children, Schools and Family",JULIUS RUTHERFOORD AND CO LTD,INVS146404,16-Dec-22,28768.45,4794.73,170092, PFI Unitary Charges,130000              Cleaning & Janitorial,A,2022,9
731,"Children, Schools and Family",JULIUS RUTHERFOORD AND CO LTD,INVS146402,16-Dec-22,25209.15,4201.52,170092, PFI Unitary Charges,130000              Cleaning & Janitorial,A,2022,9
732,"Children, Schools and Family",JULIUS RUTHERFOORD AND CO LTD,INVS145959,16-Dec-22,610.44,101.74,170092, PFI Unitary Charges,130000              Cleaning & Janitorial,A,2022,9
733,"Children, Schools and Family",JULIUS RUTHERFOORD AND CO LTD,INVS146406,16-Dec-22,3116.39,519.4,170092, PFI Unitary Charges,130000              Cleaning & Janitorial,A,2022,9
734,"Children, Schools and Family",JULIUS RUTHERFOORD AND CO LTD,INVS146400,16-Dec-22,2541.22,423.54,170092, PFI Unitary Charges,130000              Cleaning & Janitorial,A,2022,9
735,"Children, Schools and Family",JULIUS RUTHERFOORD AND CO LTD,INVS145961,20-Dec-22,4688.36,781.38,170092, PFI Unitary Charges,130000              Cleaning & Janitorial,A,2022,9
736,"Children, Schools and Family",JULIUS RUTHERFOORD AND CO LTD,INVS146399,16-Dec-22,25743.87,4290.64,170092, PFI Unitary Charges,130000              Cleaning & Janitorial,A,2022,9
737,"Children, Schools and Family",JULIUS RUTHERFOORD AND CO LTD,INVS145952,20-Dec-22,25962.45,4327.07,170092, PFI Unitary Charges,130000              Cleaning & Janitorial,A,2022,9
738,"Children, Schools and Family",JULIUS RUTHERFOORD AND CO LTD,INVS145955,16-Dec-22,25451.04,4241.83,170092, PFI Unitary Charges,130000              Cleaning & Janitorial,A,2022,9
739,"Children, Schools and Family",JULIUS RUTHERFOORD AND CO LTD,INVS146885,19-Dec-22,1107.55,184.59,170092, PFI Unitary Charges,130000              Cleaning & Janitorial,A,2022,9
740,"Children, Schools and Family",JULIUS RUTHERFOORD AND CO LTD,INVS146884,19-Dec-22,25743.87,4290.64,170092, PFI Unitary Charges,130000              Cleaning & Janitorial,A,2022,9
741,"Children, Schools and Family",JULIUS RUTHERFOORD AND CO LTD,INVS146889,21-Dec-22,28630.03,4771.66,170092, PFI Unitary Charges,130000              Cleaning & Janitorial,A,2022,9
742,"Children, Schools and Family",JULIUS RUTHERFOORD AND CO LTD,INVS146887,21-Dec-22,24793.89,4132.31,170092, PFI Unitary Charges,130000              Cleaning & Janitorial,A,2022,9
743,"Children, Schools and Family",JULIUS RUTHERFOORD AND CO LTD,INVS146888,21-Dec-22,2324.89,387.48,170092, PFI Unitary Charges,130000              Cleaning & Janitorial,A,2022,9
744,"Children, Schools and Family",JULIUS RUTHERFOORD AND CO LTD,INVS146891,21-Dec-22,1938.61,323.1,170092, PFI Unitary Charges,130000              Cleaning & Janitorial,A,2022,9
745,Community and Housing,INDEPENDENCE HOMES LTD,CED00092,07-Dec-22,5662.72,0,170527,Learning Disabilities Placemnt,321017              Nursing & Residential Care Homes,A,2022,9
746,Community and Housing,INDEPENDENCE HOMES LTD,911782,20-Dec-22,7935.88,0,170527,Learning Disabilities Placemnt,321017              Nursing & Residential Care Homes,A,2022,9
747,"Children, Schools and Family",GREATER LONDON FOSTERING LTD,36450,22-Dec-22,3403.5,0,170596,Placements Under 18,321100              Social Community Care Supplies & Services - Children,A,2022,9
748,"Children, Schools and Family",GREATER LONDON FOSTERING LTD,36451,22-Dec-22,3336.9,0,170596,Placements Under 18,321100              Social Community Care Supplies & Services - Children,A,2022,9
749,"Children, Schools and Family",GREATER LONDON FOSTERING LTD,36448,22-Dec-22,3578.4,0,170596,Placements Under 18,321100              Social Community Care Supplies & Services - Children,A,2022,9
750,"Children, Schools and Family",GREATER LONDON FOSTERING LTD,36449,22-Dec-22,1725,0,170596,Placements Under 18,321100              Social Community Care Supplies & Services - Children,A,2022,9
751,"Children, Schools and Family",CENMAC,CPS!2155,29-Dec-22,2801,0,170767,Non-Delegated Statements,321100              Social Community Care Supplies & Services - Children,A,2022,9
752,Community and Housing,CHOICE SUPPORT,ARINV/41043MB,15-Dec-22,2709,0,170834,Learning Disabilities Placemnt,321000              Social Community Care Supplies & Services - Adult,A,2022,9
753,Community and Housing,CHOICE SUPPORT,ARINV/41043PM,15-Dec-22,2294.69,0,170834,Learning Disabilities Placemnt,321000              Social Community Care Supplies & Services - Adult,A,2022,9
754,Community and Housing,CHOICE SUPPORT,ARINV/41043TG,15-Dec-22,2537.39,0,170834,Learning Disabilities Placemnt,321000              Social Community Care Supplies & Services - Adult,A,2022,9
755,Community and Housing,CHOICE SUPPORT,ARINV/41043EL,15-Dec-22,3005.46,0,170834,Learning Disabilities Placemnt,321000              Social Community Care Supplies & Services - Adult,A,2022,9
756,Community and Housing,CHOICE SUPPORT,ARINV/41043RM,15-Dec-22,2364.04,0,170834,Learning Disabilities Placemnt,321000              Social Community Care Supplies & Services - Adult,A,2022,9
757,Community and Housing,CHOICE SUPPORT,ARINV/41043DL,15-Dec-22,2294.69,0,170834,Learning Disabilities Placemnt,321000              Social Community Care Supplies & Services - Adult,A,2022,9
758,Community and Housing,CHOICE SUPPORT,ARINV/41043RB,15-Dec-22,2537.39,0,170834,Learning Disabilities Placemnt,321000              Social Community Care Supplies & Services - Adult,A,2022,9
759,Community and Housing,CHOICE SUPPORT,ARINV/41043PK,15-Dec-22,2641.41,0,170834,Learning Disabilities Placemnt,321000              Social Community Care Supplies & Services - Adult,A,2022,9
760,Community and Housing,CHOICE SUPPORT,ARINV/41043LD,15-Dec-22,2710.76,0,170834,Learning Disabilities Placemnt,321000              Social Community Care Supplies & Services - Adult,A,2022,9
761,Community and Housing,CHOICE SUPPORT,ARINV/41043GH,15-Dec-22,2381.37,0,170834,Learning Disabilities Placemnt,321000              Social Community Care Supplies & Services - Adult,A,2022,9
762,Community and Housing,CHOICE SUPPORT,ARINV/41043FK,15-Dec-22,2641.45,0,170834,Learning Disabilities Placemnt,321000              Social Community Care Supplies & Services - Adult,A,2022,9
763,Community and Housing,CHOICE SUPPORT,ARINV/41043YB,15-Dec-22,2294.69,0,170834,Learning Disabilities Placemnt,321000              Social Community Care Supplies & Services - Adult,A,2022,9
764,Community and Housing,CHOICE SUPPORT,ARINV/41043EJ,15-Dec-22,2641.41,0,170834,Learning Disabilities Placemnt,321000              Social Community Care Supplies & Services - Adult,A,2022,9
765,Community and Housing,CHOICE SUPPORT,ARINV/41043CW,15-Dec-22,2364.04,0,170834,Learning Disabilities Placemnt,321000              Social Community Care Supplies & Services - Adult,A,2022,9
766,Community and Housing,CHOICE SUPPORT,ARINV/41043MP,15-Dec-22,2227.03,0,170834,Learning Disabilities Placemnt,321000              Social Community Care Supplies & Services - Adult,A,2022,9
767,Community and Housing,CHOICE SUPPORT,ARINV/41043LW,15-Dec-22,2192.36,0,170834,Learning Disabilities Placemnt,321000              Social Community Care Supplies & Services - Adult,A,2022,9
768,Community and Housing,CHOICE SUPPORT,ARINV/41043VOID,15-Dec-22,4346.69,0,170834,Learning Disabilities Placemnt,321000              Social Community Care Supplies & Services - Adult,A,2022,9
769,Community and Housing,CHOICE SUPPORT,ARINV/00041375,30-Dec-22,506.55,0,170834,Learning Disabilities Placemnt,321000              Social Community Care Supplies & Services - Adult,A,2022,9
770,Community and Housing,REDACTED PERSONAL DATA,906838,06-Dec-22,1591,0,170878,Learning Disabilities Placemnt,DIRECT PAYMENTS,R,2022,9
771,Community and Housing,REDACTED PERSONAL DATA,906780,06-Dec-22,1304.64,0,171056,Phys/Sens Placements - East,DIRECT PAYMENTS,R,2022,9
772,Community and Housing,ST GEORGES RES. CARE HOME,911830,20-Dec-22,4871.4,0,171491,Learning Disabilities Placemnt,321017              Nursing & Residential Care Homes,A,2022,9
773,Community and Housing,ST GEORGES RES. CARE HOME,911854,20-Dec-22,4024.2,0,171491,Learning Disabilities Placemnt,321017              Nursing & Residential Care Homes,A,2022,9
774,"Children, Schools and Family",SSD LIMITED,SI-462,06-Dec-22,5773.2,962.2,171736, Children's Centres Support,190000              Facilities & Management Services,A,2022,9
775,"Children, Schools and Family",REDACTED PERSONAL DATA,907411,06-Dec-22,700.04,0,171943,Child Disabilities - Placement,CSF-DIRECT PAYMENTS,R,2022,9
776,Environment and Regeneration,R AND A SOFTWARE (SYSTEMS) LTD,0019/18133,22-Dec-22,2115,352.5,172056,Pks Rec Grds (Unloc),270000              Information Communication Technology,A,2022,9
777,Community and Housing,REDACTED PERSONAL DATA,906770,06-Dec-22,588.08,0,172070,Learning Disabilities Placemnt,DIRECT PAYMENTS,R,2022,9
778,Community and Housing,NORBURY PROPERTY SERV LDN LTD,SI-8070,28-Dec-22,11153.1,0,172104,Bed & Breakfast - accomm,321000              Social Community Care Supplies & Services - Adult,A,2022,9
779,Community and Housing,EALING COUNCIL,911480,20-Dec-22,2985.92,0,172129,Mental Health Placements,OLA,A,2022,9
780,Community and Housing,CARRICKS BROOK,911494,20-Dec-22,6536.16,0,172297,Learning Disabilities Placemnt,321017              Nursing & Residential Care Homes,A,2022,9
781,Community and Housing,BROADHAM CARE LTD,911545,20-Dec-22,7386.96,0,172298,Learning Disabilities Placemnt,321017              Nursing & Residential Care Homes,A,2022,9
782,Community and Housing,BROADHAM CARE LTD,911812,20-Dec-22,7638.12,0,172298,Learning Disabilities Placemnt,321017              Nursing & Residential Care Homes,A,2022,9
783,Unassigned,KENNEDYS,012200685331M890,02-Dec-22,942.6,153.6,172486,Corporate Services,280000              Legal Services,A,2022,9
784,Unassigned,KENNEDYS,012200683381LOND,06-Dec-22,1365,227.5,172486,Corporate Services,280000              Legal Services,A,2022,9
785,Unassigned,KENNEDYS,012200709001LOND,06-Dec-22,2530.2,421.7,172486,Corporate Services,280000              Legal Services,A,2022,9
786,Unassigned,KENNEDYS,012200774931M890,12-Dec-22,2064.6,0,172486,Corporate Accountancy,280000              Legal Services,A,2022,9
787,Community and Housing,REDACTED PERSONAL DATA,906866,06-Dec-22,845.76,0,172912,Learning Disabilities Placemnt,DIRECT PAYMENTS,R,2022,9
788,Community and Housing,REDACTED PERSONAL DATA,906789,06-Dec-22,890.96,0,172914,Learning Disabilities Placemnt,DIRECT PAYMENTS,R,2022,9
789,"Children, Schools and Family",REDACTED PERSONAL DATA,912464,19-Dec-22,552.32,0,172922,Fostering Recruit/Assessment,321100              Social Community Care Supplies & Services - Children,R,2022,9
790,Community and Housing,REDACTED PERSONAL DATA,907064,06-Dec-22,636,0,172936,Phys/Sens Placements - East,DIRECT PAYMENTS,R,2022,9
791,Corporate Services,ALTODIGITAL NETWORKS LTD,796614ALTO,19-Dec-22,58695.08,9782.51,173240,Corp Print Strategy,190000              Facilities & Management Services,A,2022,9
792,Community and Housing,HAVERING COURT NURSING HOME,911461,20-Dec-22,4954.12,0,173297,Older People Placements - East,321017              Nursing & Residential Care Homes,A,2022,9
793,Community and Housing,REDACTED PERSONAL DATA,906661,06-Dec-22,706.6,0,173308,Phys/Sens Placements - East,DIRECT PAYMENTS,R,2022,9
794,Community and Housing,SOUTH THAMES COLLEGE,5005044,08-Dec-22,155298.46,0,173357,AE Main Adult Learning,190000              Facilities & Management Services,A,2022,9
795,Community and Housing,SOUTH THAMES COLLEGE,5005045,08-Dec-22,187206.42,0,173357,AE Main Adult Learning,190000              Facilities & Management Services,A,2022,9
796,"Children, Schools and Family",REDACTED PERSONAL DATA,906387,02-Dec-22,520.26,0,173600,Placements Under 18,321100              Social Community Care Supplies & Services - Children,R,2022,9
797,"Children, Schools and Family",REDACTED PERSONAL DATA,909160,09-Dec-22,855.1,0,173600,Placements Under 18,321100              Social Community Care Supplies & Services - Children,R,2022,9
798,"Children, Schools and Family",REDACTED PERSONAL DATA,911966,16-Dec-22,1025,0,173600,Placements Under 18,321100              Social Community Care Supplies & Services - Children,R,2022,9
799,"Children, Schools and Family",REDACTED PERSONAL DATA,912394,19-Dec-22,719.06,0,173600,Fostering Recruit/Assessment,321100              Social Community Care Supplies & Services - Children,R,2022,9
800,"Children, Schools and Family",REDACTED PERSONAL DATA,914804,29-Dec-22,512.5,0,173600,Placements Under 18,321100              Social Community Care Supplies & Services - Children,R,2022,9
801,"Children, Schools and Family",REDACTED PERSONAL DATA,912312,19-Dec-22,9437.82,0,173793,Child Disabilities - Placement,CSF-DIRECT PAYMENTS,R,2022,9
802,Community and Housing,HARBOUR CARE (UK) LTD,911760,20-Dec-22,6448.68,0,173947,Learning Disabilities Placemnt,321017              Nursing & Residential Care Homes,A,2022,9
803,Corporate Services,REDACTED PERSONAL DATA,1192/PP,30-Dec-22,1626,271,174105,SLLP - Disbursements,280000              Legal Services,R,2022,9
804,Community and Housing,ADASS - DIRECTORS OF ADULT S.S,ADASS26-2023,08-Dec-22,5000,0,174159,Director of Community& Housing,260000              Human Resources,A,2022,9
805,"Children, Schools and Family",REDACTED PERSONAL DATA,907446,06-Dec-22,2200,0,174212, Statementing-Transport,CSF-DIRECT PAYMENTS,R,2022,9
806,"Children, Schools and Family",REDACTED PERSONAL DATA,907566,06-Dec-22,844.5,0,174212,SEN Team,CSF-DIRECT PAYMENTS,R,2022,9
807,Community and Housing,ASHINGTON HOUSE,911516,20-Dec-22,4406.68,0,174259,Learning Disabilities Placemnt,321017              Nursing & Residential Care Homes,A,2022,9
808,Community and Housing,REDACTED PERSONAL DATA,906734,06-Dec-22,779.6,0,174449,Phys/Sens Placements - East,DIRECT PAYMENTS,R,2022,9
809,Community and Housing,REDACTED PERSONAL DATA,906970,06-Dec-22,2702,0,174465,Older People Placements - East,DIRECT PAYMENTS,R,2022,9
810,"Children, Schools and Family",REDACTED PERSONAL DATA,906357,02-Dec-22,534.75,0,174483,Placements Under 18,321100              Social Community Care Supplies & Services - Children,R,2022,9
811,"Children, Schools and Family",REDACTED PERSONAL DATA,911935,16-Dec-22,869.5,0,174483,Placements Under 18,321100              Social Community Care Supplies & Services - Children,R,2022,9
812,Community and Housing,PRECIOUS HOMES LTD,VER002507,07-Dec-22,10423.35,0,174641,Learning Disabilities Placemnt,321017              Nursing & Residential Care Homes,A,2022,9
813,Community and Housing,PRECIOUS HOMES LTD,VER002515,19-Dec-22,10087.11,0,174641,Learning Disabilities Placemnt,321017              Nursing & Residential Care Homes,A,2022,9
814,Community and Housing,PRECIOUS HOMES LTD,VER002483,28-Dec-22,10423.35,0,174641,Learning Disabilities Placemnt,321017              Nursing & Residential Care Homes,A,2022,9
815,Community and Housing,PRECIOUS HOMES LTD,VER002475,28-Dec-22,10087.11,0,174641,Learning Disabilities Placemnt,321017              Nursing & Residential Care Homes,A,2022,9
816,Community and Housing,ALPENBEST LIMITED,04122022-963516,13-Dec-22,545.57,0,174789,Older People Placements - East,321000              Social Community Care Supplies & Services - Adult,A,2022,9
817,Community and Housing,ALPENBEST LIMITED,04122022-994358,13-Dec-22,534.1,0,174789,Older People Placements - East,321000              Social Community Care Supplies & Services - Adult,A,2022,9
818,Community and Housing,ALPENBEST LIMITED,20112022-963516,13-Dec-22,545.57,0,174789,Older People Placements - East,321000              Social Community Care Supplies & Services - Adult,A,2022,9
819,Community and Housing,ALPENBEST LIMITED,13112022-963516,13-Dec-22,545.57,0,174789,Older People Placements - East,321000              Social Community Care Supplies & Services - Adult,A,2022,9
820,Community and Housing,ALPENBEST LIMITED,27112022-963516,14-Dec-22,545.57,0,174789,Older People Placements - East,321000              Social Community Care Supplies & Services - Adult,A,2022,9
821,Community and Housing,SUTTON COURT CARE CENTRE,911555,20-Dec-22,2827.36,0,174833,Older People Placements - East,321017              Nursing & Residential Care Homes,A,2022,9
822,Community and Housing,SUTTON COURT CARE CENTRE,911566,20-Dec-22,3063.24,0,174833,Older People Placements - East,321017              Nursing & Residential Care Homes,A,2022,9
823,Community and Housing,SUTTON COURT CARE CENTRE,911651,20-Dec-22,3163.36,0,174833,Older People Placements - East,321017              Nursing & Residential Care Homes,A,2022,9
824,Community and Housing,SUTTON COURT CARE CENTRE,911677,20-Dec-22,4049.6,0,174833,Phys/Sens Placements - East,321017              Nursing & Residential Care Homes,A,2022,9
825,Community and Housing,SUTTON COURT CARE CENTRE,911835,20-Dec-22,4097.28,0,174833,Phys/Sens Placements - East,321017              Nursing & Residential Care Homes,A,2022,9
826,Community and Housing,BRIDGEAL LIBRARIES LTD,SIN005669,06-Dec-22,9510,1585,174884,Media Fund,270000              Information Communication Technology,A,2022,9
827,Community and Housing,REDACTED PERSONAL DATA,906864,06-Dec-22,636.4,0,174975,Learning Disabilities Placemnt,DIRECT PAYMENTS,R,2022,9
828,"Children, Schools and Family",REDACTED PERSONAL DATA,907472,07-Dec-22,648.56,0,175042,CWD Placements,CSF-DIRECT PAYMENTS,R,2022,9
829,Environment and Regeneration,MERTON NEIGHBOURHOOD WATCH ASS,2018,14-Dec-22,1950,0,175049,Crime and Strategy Team,200000              Financial Services,A,2022,9
830,Environment and Regeneration,MERTON NEIGHBOURHOOD WATCH ASS,2019,22-Dec-22,2700,0,175049,MOPAC Projects,200000              Financial Services,A,2022,9
831,"Children, Schools and Family",REDACTED PERSONAL DATA,912354,19-Dec-22,539.84,0,175254,Fostering Recruit/Assessment,321100              Social Community Care Supplies & Services - Children,R,2022,9
832,Community and Housing,KISIMUL SCHOOL,911485,20-Dec-22,12524.72,0,175545,Learning Disabilities Placemnt,321017              Nursing & Residential Care Homes,A,2022,9
833,Community and Housing,KISIMUL SCHOOL,911721,20-Dec-22,11765.2,0,175545,Learning Disabilities Placemnt,321017              Nursing & Residential Care Homes,A,2022,9
834,Community and Housing,REDACTED PERSONAL DATA,906783,06-Dec-22,1781.92,0,175782,Phys/Sens Placements - East,DIRECT PAYMENTS,R,2022,9
835,Corporate Services,LAVAT CONSULTING LIMITED,110215,09-Dec-22,5520,920,175816,Corporate Accountancy,260000              Human Resources,A,2022,9
836,Community and Housing,REDACTED PERSONAL DATA,906909,06-Dec-22,1336.44,0,175960,Learning Disabilities Placemnt,DIRECT PAYMENTS,R,2022,9
837,Environment and Regeneration,M J MAPP LTD,127000/4751,05-Dec-22,7954.7,1325.78,176206,Parking - Car Parks,250000              Housing Management,A,2022,9
838,Community and Housing,Care for Veterans,911744,20-Dec-22,4294.28,0,176384,Phys/Sens Placements - East,321017              Nursing & Residential Care Homes,A,2022,9
839,"Children, Schools and Family",LONDON BOROUGH OF WANDSWORTH,2101083640,20-Dec-22,2701.84,0,176557,Placements Under 18,OLA,A,2022,9
840,Community and Housing,REDACTED PERSONAL DATA,906673,06-Dec-22,572.76,0,176619,Phys/Sens Placements - East,DIRECT PAYMENTS,R,2022,9
841,Community and Housing,REDACTED PERSONAL DATA,907046,06-Dec-22,5345.76,0,176783,Phys/Sens Placements - East,DIRECT PAYMENTS,R,2022,9
842,Community and Housing,REDACTED PERSONAL DATA,907015,06-Dec-22,1813.76,0,176868,Phys/Sens Placements - East,DIRECT PAYMENTS,R,2022,9
843,Corporate Services,LOGOTECH SYSTEMS,107783,22-Dec-22,2880,480,176925,Treasury Team,200000              Financial Services,A,2022,9
844,Community and Housing,SPRING LAKE CARE HOME LTD,911626,20-Dec-22,11418,0,177067,Learning Disabilities Placemnt,321017              Nursing & Residential Care Homes,A,2022,9
845,Community and Housing,SPRING LAKE CARE HOME LTD,911827,20-Dec-22,6468,0,177067,Learning Disabilities Placemnt,321017              Nursing & Residential Care Homes,A,2022,9
846,Community and Housing,REDACTED PERSONAL DATA,907032,06-Dec-22,652.32,0,177115,Phys/Sens Placements - East,DIRECT PAYMENTS,R,2022,9
847,"Children, Schools and Family",REDACTED PERSONAL DATA,912361,19-Dec-22,931,0,177211,Fostering Recruit/Assessment,321100              Social Community Care Supplies & Services - Children,R,2022,9
848,"Children, Schools and Family",HA TUTORS LTD,INV-12973,05-Dec-22,1933.2,322.2,177219,Non-Delegated Statements,170000              Education,A,2022,9
849,"Children, Schools and Family",HA TUTORS LTD,INV-12975,05-Dec-22,2884.2,480.7,177219,Non-Delegated Statements,170000              Education,A,2022,9
850,"Children, Schools and Family",HA TUTORS LTD,INV-12977,05-Dec-22,2587.2,431.2,177219,Non-Delegated Statements,170000              Education,A,2022,9
851,"Children, Schools and Family",HA TUTORS LTD,INV-12976,05-Dec-22,3804.6,634.1,177219,Non-Delegated Statements,170000              Education,A,2022,9
852,"Children, Schools and Family",HA TUTORS LTD,INV-12974,05-Dec-22,2548.8,424.8,177219,Non-Delegated Statements,170000              Education,A,2022,9
853,"Children, Schools and Family",HA TUTORS LTD,INV-12970,05-Dec-22,1404,234,177219,Non-Delegated Statements,170000              Education,A,2022,9
854,"Children, Schools and Family",HA TUTORS LTD,INV-12972,05-Dec-22,7817.28,1302.88,177219,Non-Delegated Statements,170000              Education,A,2022,9
855,"Children, Schools and Family",HA TUTORS LTD,INV-12971,05-Dec-22,5874.9,979.15,177219,Non-Delegated Statements,170000              Education,A,2022,9
856,Corporate Services,EXPERT IN MIND,37718,15-Dec-22,648,108,177342,SLLP - Disbursements,280000              Legal Services                                                                            Confirmed,A,2022,9
857,Community and Housing,HYTYME B AND B,26580,06-Dec-22,12848.4,2141.4,177425,Bed & Breakfast - accomm,321000              Social Community Care Supplies & Services - Adult,A,2022,9
858,"Children, Schools and Family",HYTYME B AND B,26618,08-Dec-22,1260,210,177425,Family Assessmt & Intervention,321000              Social Community Care Supplies & Services - Adult,A,2022,9
859,"Children, Schools and Family",HYTYME B AND B,26558,08-Dec-22,1302,217,177425,Family Assessmt & Intervention,321000              Social Community Care Supplies & Services - Adult,A,2022,9
860,"Children, Schools and Family",HYTYME B AND B,26501,08-Dec-22,1008,168,177425,Family Assessmt & Intervention,321000              Social Community Care Supplies & Services - Adult,A,2022,9
861,"Children, Schools and Family",HYTYME B AND B,26499,08-Dec-22,924,154,177425,Family Assessmt & Intervention,321000              Social Community Care Supplies & Services - Adult,A,2022,9
862,"Children, Schools and Family",HYTYME B AND B,26615,08-Dec-22,1242,207,177425,Family Assessmt & Intervention,321000              Social Community Care Supplies & Services - Adult,A,2022,9
863,"Children, Schools and Family",HYTYME B AND B,26560,08-Dec-22,1302,217,177425,Family Assessmt & Intervention,321000              Social Community Care Supplies & Services - Adult,A,2022,9
864,"Children, Schools and Family",HYTYME B AND B,26176,13-Dec-22,1836,306,177425,Family Assessmt & Intervention,321000              Social Community Care Supplies & Services - Adult,A,2022,9
865,"Children, Schools and Family",HYTYME B AND B,26274,13-Dec-22,1260,210,177425,Family Assessmt & Intervention,321000              Social Community Care Supplies & Services - Adult,A,2022,9
866,"Children, Schools and Family",HYTYME B AND B,26241,13-Dec-22,979.2,163.2,177425,Family Assessmt & Intervention,321000              Social Community Care Supplies & Services - Adult,A,2022,9
867,"Children, Schools and Family",HYTYME B AND B,26334,15-Dec-22,1302,217,177425,Family Assessmt & Intervention,321000              Social Community Care Supplies & Services - Adult,A,2022,9
868,"Children, Schools and Family",HYTYME B AND B,26399,15-Dec-22,1302,217,177425,Family Assessmt & Intervention,321000              Social Community Care Supplies & Services - Adult,A,2022,9
869,Community and Housing,REDACTED PERSONAL DATA,906730,06-Dec-22,710.2,0,177453,Phys/Sens Placements - East,DIRECT PAYMENTS,R,2022,9
870,Community and Housing,REDACTED PERSONAL DATA,906720,06-Dec-22,724.72,0,177476,Learning Disabilities Placemnt,DIRECT PAYMENTS,R,2022,9
871,Community and Housing,REDACTED PERSONAL DATA,906683,06-Dec-22,1197.28,0,177502,Phys/Sens Placements - East,DIRECT PAYMENTS,R,2022,9
872,"Children, Schools and Family",BUTTERFLIES CHILDCARE LIMITED,P2 22 EY FUND 2,14-Dec-22,541.8,0,177504,EARLY YEARS NURSERY GRANTS,200000              Financial Services,A,2022,9
873,Community and Housing,THE ARTEMIS TEAM LIMITED,14566,20-Dec-22,4616.35,769.39,177680,Learning Disabilities Placemnt,290000              Arts & Leisure Services,A,2022,9
874,Community and Housing,REDACTED PERSONAL DATA,906987,06-Dec-22,572.76,0,177739,Phys/Sens Placements - East,DIRECT PAYMENTS,R,2022,9
875,Community and Housing,REDACTED PERSONAL DATA,906957,06-Dec-22,668.2,0,177785,Phys/Sens Placements - East,DIRECT PAYMENTS,R,2022,9
876,Corporate Services,CITY UNIVERSITY LONDON,90513192,06-Dec-22,1000,0,177935,Legal Shared Service,260000              Human Resources,A,2022,9
877,Community and Housing,WORKSHOP 305,SLAP159,05-Dec-22,538.32,0,177941,Learning Disabilities Placemnt,321000              Social Community Care Supplies & Services - Adult,A,2022,9
878,Community and Housing,WORKSHOP 305,RAG159,05-Dec-22,807.6,0,177941,Learning Disabilities Placemnt,321000              Social Community Care Supplies & Services - Adult,A,2022,9
879,Community and Housing,WORKSHOP 305,IALA159,05-Dec-22,538.4,0,177941,Learning Disabilities Placemnt,321000              Social Community Care Supplies & Services - Adult,A,2022,9
880,Community and Housing,WORKSHOP 305,ASCO159,05-Dec-22,807.6,0,177941,Learning Disabilities Placemnt,321000              Social Community Care Supplies & Services - Adult,A,2022,9
881,Community and Housing,WORKSHOP 305,SLAP305,16-Dec-22,1223.37,0,177941,Learning Disabilities Placemnt,321000              Social Community Care Supplies & Services - Adult,A,2022,9
882,Community and Housing,REDACTED PERSONAL DATA,906677,06-Dec-22,731.4,0,177967,Learning Disabilities Placemnt,DIRECT PAYMENTS,R,2022,9
883,"Children, Schools and Family",CARIBBEAN CATERING,331,16-Dec-22,841.5,0,177996, Duke of Edinburgh Awrds,110000              Catering,A,2022,9
884,Community and Housing,REDACTED PERSONAL DATA,906924,06-Dec-22,890.96,0,177999,Learning Disabilities Placemnt,DIRECT PAYMENTS,R,2022,9
885,Community and Housing,REDACTED PERSONAL DATA,906937,06-Dec-22,3784,0,178412,Learning Disabilities Placemnt,DIRECT PAYMENTS,R,2022,9
886,Community and Housing,REDACTED PERSONAL DATA,907811,06-Dec-22,5736,0,178412,Learning Disabilities Placemnt,DIRECT PAYMENTS,R,2022,9
887,Community and Housing,BRAMBLEDOWN CARE HOME,911635,20-Dec-22,7448.8,0,178465,Phys/Sens Placements - East,321017              Nursing & Residential Care Homes,A,2022,9
888,"Children, Schools and Family",REDACTED PERSONAL DATA,912001,16-Dec-22,852.2,0,178503,Placements Over 18,200000              Financial Services,R,2022,9
889,Community and Housing,LOVE WALK RESIDENTIAL HOME,911633,20-Dec-22,3381.4,0,178620,Phys/Sens Placements - East,321017              Nursing & Residential Care Homes,A,2022,9
890,Community and Housing,KEW HOUSE,911641,20-Dec-22,3289.24,0,178621,Older People Placements - East,321017              Nursing & Residential Care Homes,A,2022,9
891,Community and Housing,KEW HOUSE,911718,20-Dec-22,5800,0,178621,Older People Placements - East,321017              Nursing & Residential Care Homes,A,2022,9
892,Community and Housing,REDACTED PERSONAL DATA,906827,06-Dec-22,964,0,178767,Learning Disabilities Placemnt,DIRECT PAYMENTS,R,2022,9
893,Community and Housing,REDACTED PERSONAL DATA,906936,06-Dec-22,1946.16,0,178802,Learning Disabilities Placemnt,DIRECT PAYMENTS,R,2022,9
894,Community and Housing,REDACTED PERSONAL DATA,906855,06-Dec-22,4357.88,0,178874,Learning Disabilities Placemnt,DIRECT PAYMENTS,R,2022,9
895,Corporate Services,PENNA PLC,665111,30-Dec-22,17544,2924,179007,Director of Corporate Services,190000              Facilities & Management Services,A,2022,9
896,Community and Housing,REDACTED PERSONAL DATA,906997,06-Dec-22,1336.44,0,179049,Learning Disabilities Placemnt,DIRECT PAYMENTS,R,2022,9
897,Corporate Services,HAYS SPECIALIST RECRUITM'T LTD,1012576693,22-Dec-22,3600,600,179169,Corporate Accountancy,260000              Human Resources,A,2022,9
898,Community and Housing,REDACTED PERSONAL DATA,907029,06-Dec-22,1193.28,0,179299,Older People Placements - East,DIRECT PAYMENTS,R,2022,9
899,Community and Housing,REDACTED PERSONAL DATA,906892,06-Dec-22,1739.6,0,179332,Phys/Sens Placements - East,DIRECT PAYMENTS,R,2022,9
900,Community and Housing,REDACTED PERSONAL DATA,906650,06-Dec-22,4318.6,0,179383,Learning Disabilities Placemnt,DIRECT PAYMENTS,R,2022,9
901,"Children, Schools and Family",REDACTED PERSONAL DATA,906392,02-Dec-22,534.75,0,179709,Placements Under 18,321100              Social Community Care Supplies & Services - Children,R,2022,9
902,"Children, Schools and Family",REDACTED PERSONAL DATA,909165,09-Dec-22,534.75,0,179709,Placements Under 18,321100              Social Community Care Supplies & Services - Children,R,2022,9
903,"Children, Schools and Family",REDACTED PERSONAL DATA,911971,16-Dec-22,932.83,0,179709,Placements Under 18,321100              Social Community Care Supplies & Services - Children,R,2022,9
904,Community and Housing,ELYSIUM CARE PARTNERSHIPS LTD,911543,20-Dec-22,10202.48,0,179734,Learning Disabilities Placemnt,321017              Nursing & Residential Care Homes,A,2022,9
905,Community and Housing,ELYSIUM CARE PARTNERSHIPS LTD,911666,20-Dec-22,9049.16,0,179734,Learning Disabilities Placemnt,321017              Nursing & Residential Care Homes,A,2022,9
906,Community and Housing,ELYSIUM CARE PARTNERSHIPS LTD,911684,20-Dec-22,3462.2,0,179734,Learning Disabilities Placemnt,321017              Nursing & Residential Care Homes,A,2022,9
907,Community and Housing,ELYSIUM CARE PARTNERSHIPS LTD,911800,20-Dec-22,9821,0,179734,Learning Disabilities Placemnt,321017              Nursing & Residential Care Homes,A,2022,9
908,Community and Housing,WESTHOPE LTD,911637,20-Dec-22,5292.32,0,179748,Learning Disabilities Placemnt,321017              Nursing & Residential Care Homes,A,2022,9
909,Environment and Regeneration,BARKLANDS TREE SPECIALISTS,317,20-Dec-22,2722.5,453.75,179780,Pks Rec Grds (Unloc),240000              Horticultural,A,2022,9
910,Environment and Regeneration,BARKLANDS TREE SPECIALISTS,318,20-Dec-22,1876.8,312.8,179780,Highways GM Contract,240000              Horticultural,A,2022,9
911,Environment and Regeneration,BARKLANDS TREE SPECIALISTS,316,21-Dec-22,5417.3,902.89,179780,Highways GM Contract,240000              Horticultural,A,2022,9
912,Community and Housing,SUNNINGDALE HOUSE CARE HOME,911795,20-Dec-22,2575,0,179794,Learning Disabilities Placemnt,321017              Nursing & Residential Care Homes,A,2022,9
913,Community and Housing,SUNLIGHT HOUSE,911578,20-Dec-22,7667.6,0,179813,Learning Disabilities Placemnt,321017              Nursing & Residential Care Homes,A,2022,9
914,Community and Housing,SUNLIGHT HOUSE,911690,20-Dec-22,5140,0,179813,Learning Disabilities Placemnt,321017              Nursing & Residential Care Homes,A,2022,9
915,Community and Housing,BHAKTI SHYAMA CARE CENTRE,911863,20-Dec-22,2985.6,0,179993,Older People Placements - East,321017              Nursing & Residential Care Homes,A,2022,9
916,"Children, Schools and Family",REAMCARE LTD,LHRPAM112201,15-Dec-22,20105.67,0,180045,Placements Under 18,321100              Social Community Care Supplies & Services - Children Residential,A,2022,9
917,"Children, Schools and Family",REAMCARE LTD,LHRPAM122201,15-Dec-22,19457.1,0,180045,Placements Under 18,321100              Social Community Care Supplies & Services - Children Residential,A,2022,9
918,Community and Housing,REDACTED PERSONAL DATA,907018,06-Dec-22,1109.32,0,180174,Older People Placements - East,DIRECT PAYMENTS,R,2022,9
919,Community and Housing,SUNRISE DAY CARE,4387,15-Dec-22,510.24,0,180196,Older People Placements - East,321000              Social Community Care Supplies & Services - Adult,A,2022,9
920,Community and Housing,SUNRISE DAY CARE,DP4791,16-Dec-22,1437.84,0,180196,Older People Placements - East,321000              Social Community Care Supplies & Services - Adult,A,2022,9
921,Community and Housing,SUNRISE DAY CARE,DP4792,16-Dec-22,1961.12,0,180196,Older People Placements - East,321000              Social Community Care Supplies & Services - Adult,A,2022,9
922,Community and Housing,SUNRISE DAY CARE,DP4793,16-Dec-22,3013.08,0,180196,Phys/Sens Placements - East,321000              Social Community Care Supplies & Services - Adult,A,2022,9
923,Community and Housing,SUNRISE DAY CARE,4371,16-Dec-22,510.24,0,180196,Older People Placements - East,321000              Social Community Care Supplies & Services - Adult,A,2022,9
924,Community and Housing,SUNRISE DAY CARE,4384,16-Dec-22,510.24,0,180196,Older People Placements - East,321000              Social Community Care Supplies & Services - Adult,A,2022,9
925,Community and Housing,SUNRISE DAY CARE,4374,16-Dec-22,510.24,0,180196,Older People Placements - East,321000              Social Community Care Supplies & Services - Adult,A,2022,9
926,Community and Housing,SUNRISE DAY CARE,4383,16-Dec-22,510.24,0,180196,Older People Placements - East,321000              Social Community Care Supplies & Services - Adult,A,2022,9
927,Community and Housing,SUNRISE DAY CARE,4375,16-Dec-22,680.32,0,180196,Learning Disabilities Placemnt,321000              Social Community Care Supplies & Services - Adult,A,2022,9
928,Community and Housing,SUNRISE DAY CARE,4385,20-Dec-22,510.24,0,180196,Older People Placements - East,321000              Social Community Care Supplies & Services - Adult,A,2022,9
929,"Children, Schools and Family",REDACTED PERSONAL DATA,911931,16-Dec-22,647.18,0,180238,Placements Over 18,321100              Social Community Care Supplies & Services - Children,R,2022,9
930,Community and Housing,REDACTED PERSONAL DATA,906786,06-Dec-22,763.68,0,180242,Phys/Sens Placements - East,DIRECT PAYMENTS,R,2022,9
931,Community and Housing,REDACTED PERSONAL DATA,906679,06-Dec-22,1177.36,0,180282,Phys/Sens Placements - East,DIRECT PAYMENTS,R,2022,9
932,Community and Housing,REDACTED PERSONAL DATA,906687,06-Dec-22,2839.28,0,180285,Older People Placements - East,DIRECT PAYMENTS,R,2022,9
933,Community and Housing,SEVACARE,62986-514140,01-Dec-22,1251,0,180307,Older People Placements - East,321000              Social Community Care Supplies & Services - Adult,A,2022,9
934,Community and Housing,SEVACARE,62986-752403,01-Dec-22,934.08,0,180307,Older People Placements - East,321000              Social Community Care Supplies & Services - Adult,A,2022,9
935,Community and Housing,SEVACARE,62986-791266,01-Dec-22,583.8,0,180307,Older People Placements - East,321000              Social Community Care Supplies & Services - Adult,A,2022,9
936,Community and Housing,SEVACARE,62986-869265,01-Dec-22,717.24,0,180307,Older People Placements - East,321000              Social Community Care Supplies & Services - Adult,A,2022,9
937,Community and Housing,SEVACARE,62986-14419,01-Dec-22,1017.48,0,180307,Older People Placements - East,321000              Social Community Care Supplies & Services - Adult,A,2022,9
938,Community and Housing,SEVACARE,62986-994084,01-Dec-22,600.48,0,180307,Older People Placements - East,321000              Social Community Care Supplies & Services - Adult,A,2022,9
939,Community and Housing,SEVACARE,62986-958939,01-Dec-22,817.32,0,180307,Older People Placements - East,321000              Social Community Care Supplies & Services - Adult,A,2022,9
940,Community and Housing,SEVACARE,62986-982561,01-Dec-22,550.44,0,180307,Older People Placements - East,321000              Social Community Care Supplies & Services - Adult,A,2022,9
941,Community and Housing,SEVACARE,62986-506355,01-Dec-22,867.36,0,180307,Phys/Sens Placements - East,321000              Social Community Care Supplies & Services - Adult,A,2022,9
942,Community and Housing,SEVACARE,62986-569458,01-Dec-22,1367.76,0,180307,Phys/Sens Placements - East,321000              Social Community Care Supplies & Services - Adult,A,2022,9
943,Community and Housing,SEVACARE,62986-41998,01-Dec-22,550.44,0,180307,Phys/Sens Placements - East,321000              Social Community Care Supplies & Services - Adult,A,2022,9
944,Community and Housing,SEVACARE,62986-52108,01-Dec-22,600.48,0,180307,Learning Disabilities Placemnt,321000              Social Community Care Supplies & Services - Adult,A,2022,9
945,Community and Housing,SEVACARE,62986-872605,01-Dec-22,617.16,0,180307,Older People Placements - East,321000              Social Community Care Supplies & Services - Adult,A,2022,9
946,Community and Housing,SEVACARE,62986-867847,01-Dec-22,1050.84,0,180307,Older People Placements - East,321000              Social Community Care Supplies & Services - Adult,A,2022,9
947,Community and Housing,SEVACARE,62986-565513,01-Dec-22,2852.28,0,180307,Phys/Sens Placements - East,321000              Social Community Care Supplies & Services - Adult,A,2022,9
948,Community and Housing,SEVACARE,62986-78739,01-Dec-22,667.2,0,180307,Learning Disabilities Placemnt,321000              Social Community Care Supplies & Services - Adult,A,2022,9
949,Community and Housing,SEVACARE,62986-74975,01-Dec-22,1718.04,0,180307,Older People Placements - East,321000              Social Community Care Supplies & Services - Adult,A,2022,9
950,Community and Housing,SEVACARE,62986-38267,01-Dec-22,1017.48,0,180307,Older People Placements - East,321000              Social Community Care Supplies & Services - Adult,A,2022,9
951,Community and Housing,SEVACARE,62986-72268,01-Dec-22,1301.04,0,180307,Learning Disabilities Placemnt,321000              Social Community Care Supplies & Services - Adult,A,2022,9
952,Community and Housing,SEVACARE,62986-732707,01-Dec-22,884.04,0,180307,Older People Placements - East,321000              Social Community Care Supplies & Services - Adult,A,2022,9
953,Community and Housing,SEVACARE,62986-654036,01-Dec-22,600.48,0,180307,Older People Placements - East,321000              Social Community Care Supplies & Services - Adult,A,2022,9
954,Community and Housing,SEVACARE,62986-871695,01-Dec-22,950.76,0,180307,Older People Placements - East,321000              Social Community Care Supplies & Services - Adult,A,2022,9
955,Community and Housing,SEVACARE,62986-503697,01-Dec-22,834,0,180307,Older People Placements - East,321000              Social Community Care Supplies & Services - Adult,A,2022,9
956,Community and Housing,SEVACARE,62986-533922,01-Dec-22,9340.8,0,180307,Older People Placements - East,321000              Social Community Care Supplies & Services - Adult,A,2022,9
957,Community and Housing,SEVACARE,62986-68278,01-Dec-22,2835.6,0,180307,Learning Disabilities Placemnt,321000              Social Community Care Supplies & Services - Adult,A,2022,9
958,Community and Housing,SEVACARE,27.11.22/9,13-Dec-22,2077.87,0,180307,Older People Placements - East,321000              Social Community Care Supplies & Services - Adult,A,2022,9
959,Community and Housing,SEVACARE,27.11.22/4,13-Dec-22,1189.09,0,180307,Older People Placements - East,321000              Social Community Care Supplies & Services - Adult,A,2022,9
960,Community and Housing,SEVACARE,27.11.22/2,13-Dec-22,709,0,180307,Older People Placements - East,321000              Social Community Care Supplies & Services - Adult,A,2022,9
961,Community and Housing,SEVACARE,27.11.22/5,13-Dec-22,753.45,0,180307,Older People Placements - East,321000              Social Community Care Supplies & Services - Adult,A,2022,9
962,Community and Housing,SEVACARE,30.10.22/9,14-Dec-22,2130.76,0,180307,Older People Placements - East,321000              Social Community Care Supplies & Services - Adult,A,2022,9
963,Community and Housing,SEVACARE,30.10.22/6,14-Dec-22,532.95,0,180307,Phys/Sens Placements - East,321000              Social Community Care Supplies & Services - Adult,A,2022,9
964,Community and Housing,SEVACARE,30.10.22/4,14-Dec-22,1249.88,0,180307,Older People Placements - East,321000              Social Community Care Supplies & Services - Adult,A,2022,9
965,Community and Housing,SEVACARE,30.10.22/2,14-Dec-22,681.34,0,180307,Older People Placements - East,321000              Social Community Care Supplies & Services - Adult,A,2022,9
966,Community and Housing,SEVACARE,30.10.22/5,14-Dec-22,697.68,0,180307,Older People Placements - East,321000              Social Community Care Supplies & Services - Adult,A,2022,9
967,Community and Housing,SEVACARE,64413-514140,30-Dec-22,1251,0,180307,Older People Placements - East,321000              Social Community Care Supplies & Services - Adult,A,2022,9
968,Community and Housing,SEVACARE,64413-791266,30-Dec-22,583.8,0,180307,Older People Placements - East,321000              Social Community Care Supplies & Services - Adult,A,2022,9
969,Community and Housing,SEVACARE,64413-869265,30-Dec-22,717.24,0,180307,Older People Placements - East,321000              Social Community Care Supplies & Services - Adult,A,2022,9
970,Community and Housing,SEVACARE,64413-14419,30-Dec-22,988.29,0,180307,Older People Placements - East,321000              Social Community Care Supplies & Services - Adult,A,2022,9
971,Community and Housing,SEVACARE,64413-994084,30-Dec-22,600.48,0,180307,Older People Placements - East,321000              Social Community Care Supplies & Services - Adult,A,2022,9
972,Community and Housing,SEVACARE,64413-958939,30-Dec-22,817.32,0,180307,Older People Placements - East,321000              Social Community Care Supplies & Services - Adult,A,2022,9
973,Community and Housing,SEVACARE,64413-982561,30-Dec-22,900.72,0,180307,Older People Placements - East,321000              Social Community Care Supplies & Services - Adult,A,2022,9
974,Community and Housing,SEVACARE,64413-506355,30-Dec-22,867.36,0,180307,Phys/Sens Placements - East,321000              Social Community Care Supplies & Services - Adult,A,2022,9
975,Community and Housing,SEVACARE,64413-569458,30-Dec-22,1367.76,0,180307,Phys/Sens Placements - East,321000              Social Community Care Supplies & Services - Adult,A,2022,9
976,Community and Housing,SEVACARE,64413-41998,30-Dec-22,550.44,0,180307,Phys/Sens Placements - East,321000              Social Community Care Supplies & Services - Adult,A,2022,9
977,Community and Housing,SEVACARE,64413-52108,30-Dec-22,600.48,0,180307,Learning Disabilities Placemnt,321000              Social Community Care Supplies & Services - Adult,A,2022,9
978,Community and Housing,SEVACARE,64413-872605,30-Dec-22,617.16,0,180307,Older People Placements - East,321000              Social Community Care Supplies & Services - Adult,A,2022,9
979,Community and Housing,SEVACARE,64413-867847,30-Dec-22,1050.84,0,180307,Older People Placements - East,321000              Social Community Care Supplies & Services - Adult,A,2022,9
980,Community and Housing,SEVACARE,64413-565513,30-Dec-22,2852.28,0,180307,Phys/Sens Placements - East,321000              Social Community Care Supplies & Services - Adult,A,2022,9
981,Community and Housing,SEVACARE,64413-78739,30-Dec-22,667.2,0,180307,Learning Disabilities Placemnt,321000              Social Community Care Supplies & Services - Adult,A,2022,9
982,Community and Housing,SEVACARE,64413-74975,30-Dec-22,1718.04,0,180307,Older People Placements - East,321000              Social Community Care Supplies & Services - Adult,A,2022,9
983,Community and Housing,SEVACARE,64413-38267,30-Dec-22,1017.48,0,180307,Older People Placements - East,321000              Social Community Care Supplies & Services - Adult,A,2022,9
984,Community and Housing,SEVACARE,64413-68278,30-Dec-22,2835.6,0,180307,Learning Disabilities Placemnt,321000              Social Community Care Supplies & Services - Adult,A,2022,9
985,Community and Housing,SEVACARE,64413-72268,30-Dec-22,1301.04,0,180307,Learning Disabilities Placemnt,321000              Social Community Care Supplies & Services - Adult,A,2022,9
986,Community and Housing,SEVACARE,64413-732707,30-Dec-22,884.04,0,180307,Older People Placements - East,321000              Social Community Care Supplies & Services - Adult,A,2022,9
987,Community and Housing,SEVACARE,64413-654036,30-Dec-22,600.48,0,180307,Older People Placements - East,321000              Social Community Care Supplies & Services - Adult,A,2022,9
988,Community and Housing,SEVACARE,64413-871695,30-Dec-22,950.76,0,180307,Older People Placements - East,321000              Social Community Care Supplies & Services - Adult,A,2022,9
989,Community and Housing,SEVACARE,64413-503697,30-Dec-22,834,0,180307,Older People Placements - East,321000              Social Community Care Supplies & Services - Adult,A,2022,9
990,Community and Housing,SEVACARE,64413-533922,30-Dec-22,9340.8,0,180307,Older People Placements - East,321000              Social Community Care Supplies & Services - Adult,A,2022,9
991,Corporate Services,RESTORE PLC,1315507,19-Dec-22,681.79,113.63,180441,Legal Shared Service,190000              Facilities & Management Services,A,2022,9
992,"Children, Schools and Family",RESTORE PLC,1315505,21-Dec-22,533.5,88.92,180441,Fostering Recruit/Assessment,190000              Facilities & Management Services,A,2022,9
993,"Children, Schools and Family",RESTORE PLC,1312889,19-Dec-22,778.27,129.71,180441,Head of CSC & Youth Inclusion,190000              Facilities & Management Services,A,2022,9
994,Community and Housing,REDACTED PERSONAL DATA,906996,06-Dec-22,1320.52,0,180447,Older People Placements - East,DIRECT PAYMENTS,R,2022,9
995,Community and Housing,REDACTED PERSONAL DATA,907014,06-Dec-22,500.96,0,180478,Phys/Sens Placements - East,DIRECT PAYMENTS,R,2022,9
996,"Children, Schools and Family",REDACTED PERSONAL DATA,906316,02-Dec-22,614.75,0,180579,UASC LAC Under 18,321100              Social Community Care Supplies & Services - Children,R,2022,9
997,"Children, Schools and Family",REDACTED PERSONAL DATA,906370,02-Dec-22,614.75,0,180579,UASC LAC Under 18,321100              Social Community Care Supplies & Services - Children,R,2022,9
998,"Children, Schools and Family",REDACTED PERSONAL DATA,909142,09-Dec-22,514.75,0,180579,UASC LAC Under 18,321100              Social Community Care Supplies & Services - Children,R,2022,9
999,"Children, Schools and Family",REDACTED PERSONAL DATA,911947,16-Dec-22,557.94,0,180579,UASC LAC Under 18,321100              Social Community Care Supplies & Services - Children,R,2022,9
1000,Environment and Regeneration,HMCTS,TECBATCHESNOV22,06-Dec-22,25000,0,180649,Operational Running Costs,350000              Street & Traffic Management,A,2022,9
1001,Unassigned,BERKSHIRE PENSION FUND,CETV,19-Dec-22,34826.84,0,180709,London Borough of Merton,PENSIONS,A,2022,9
1002,Community and Housing,REDACTED PERSONAL DATA,906678,06-Dec-22,1145.52,0,180804,Learning Disabilities Placemnt,DIRECT PAYMENTS,R,2022,9
1003,"Children, Schools and Family",FIVE RIVERS CHILD CARE,99640,22-Dec-22,6214.29,0,180823,Placements Under 18,360000              Passenger Transport                                                                       Confirmed,A,2022,9
1004,Community and Housing,REDACTED PERSONAL DATA,909372,13-Dec-22,749.28,0,180839,LD Housing Support Placements,321000              Social Community Care Supplies & Services - Adult,R,2022,9
1005,Community and Housing,REDACTED PERSONAL DATA,906797,06-Dec-22,576.72,0,180866,Phys/Sens Placements - East,DIRECT PAYMENTS,R,2022,9
1006,Community and Housing,REDACTED PERSONAL DATA,906811,06-Dec-22,1336.44,0,180866,Phys/Sens Placements - East,DIRECT PAYMENTS,R,2022,9
1007,Community and Housing,REDACTED PERSONAL DATA,906765,06-Dec-22,2156,0,180889,Older People Placements - East,DIRECT PAYMENTS,R,2022,9
1008,Community and Housing,SENAD ECCLESBOURNE LODGE,911478,20-Dec-22,9810.88,0,180904,Learning Disabilities Placemnt,321017              Nursing & Residential Care Homes,A,2022,9
1009,Community and Housing,REDACTED PERSONAL DATA,906748,06-Dec-22,890.96,0,180999,Older People Placements - East,DIRECT PAYMENTS,R,2022,9
1010,Environment and Regeneration,PREMIER MINICAB SER. UK LTD,65195,19-Dec-22,2670,445,181053,Passenger Transport,360000              Passenger Transport,A,2022,9
1011,Environment and Regeneration,PREMIER MINICAB SER. UK LTD,65048,12-Dec-22,2940,490,181053,Passenger Transport,360000              Passenger Transport,A,2022,9
1012,Environment and Regeneration,PREMIER MINICAB SER. UK LTD,64212,28-Dec-22,2940,490,181053,Passenger Transport,360000              Passenger Transport,A,2022,9
1013,Environment and Regeneration,PREMIER MINICAB SER. UK LTD,64671,28-Dec-22,2322,387,181053,Passenger Transport,360000              Passenger Transport,A,2022,9
1014,Environment and Regeneration,PREMIER MINICAB SER. UK LTD,65529,28-Dec-22,2940,490,181053,Passenger Transport,360000              Passenger Transport,A,2022,9
1015,Community and Housing,REDACTED PERSONAL DATA,906876,06-Dec-22,3238.48,0,181128,Older People Placements - East,DIRECT PAYMENTS,R,2022,9
1016,Community and Housing,REDACTED PERSONAL DATA,906867,06-Dec-22,2530.08,0,181129,Older People Placements - East,DIRECT PAYMENTS,R,2022,9
1017,Community and Housing,Community Equipment Services,9100000672,19-Dec-22,630,105,181238,Pooled Equipment,410000              Social Community Care Supplies & Services,A,2022,9
1018,Community and Housing,REDACTED PERSONAL DATA,906930,06-Dec-22,1400.08,0,181418,Phys/Sens Placements - East,DIRECT PAYMENTS,R,2022,9
1019,"Children, Schools and Family",KIKI'S CHILDREN'S CLINIC,15643,19-Dec-22,810,0,181849,Non-Delegated Statements,310000              Healthcare                                                                                Confirmed,A,2022,9
1020,"Children, Schools and Family",KIKI'S CHILDREN'S CLINIC,15644,19-Dec-22,595,0,181849,Non-Delegated Statements,310000              Healthcare                                                                                Confirmed,A,2022,9
1021,Corporate Services,PSW PAPER AND PRINT LTD,INV112168,28-Dec-22,914.8,152.48,181895,PrintUnit-HighVolPhtcopying,190000              Facilities & Management Services,A,2022,9
1022,Community and Housing,REDACTED PERSONAL DATA,906712,06-Dec-22,534.52,0,182083,Learning Disabilities Placemnt,DIRECT PAYMENTS,R,2022,9
1023,Environment and Regeneration,NOAH'S ARK ENVIRONMENTAL SERV.,MT092022,30-Dec-22,2916.02,486,182143,Dog Control,180000              Environmental Services,A,2022,9
1024,Corporate Services,SHARPE PRITCHARD SOLICITORS,133177,16-Dec-22,756,126,182165,SLLP - Disbursements,280000              Legal Services                                                                            Confirmed,A,2022,9
1025,Community and Housing,REDACTED PERSONAL DATA,906753,06-Dec-22,954.6,0,182317,Phys/Sens Placements - East,DIRECT PAYMENTS,R,2022,9
1026,Corporate Services,ERNST AND YOUNG LLP,GB01G000361819,09-Dec-22,18000,3000,182340,Corporate Accountancy,200000              Financial Services,A,2022,9
1027,Community and Housing,REDACTED PERSONAL DATA,906757,06-Dec-22,4454.8,0,182348,Older People Placements - East,DIRECT PAYMENTS,R,2022,9
1028,Environment and Regeneration,BIRKIN CLEANING SERVICES LTD,25633,15-Dec-22,504,84,182414,Passenger Transport,130000              Cleaning & Janitorial,A,2022,9
1029,Environment and Regeneration,BIRKIN CLEANING SERVICES LTD,26760,15-Dec-22,1008,168,182414,Vestry Hall,130000              Cleaning & Janitorial,A,2022,9
1030,Corporate Services,BIRKIN CLEANING SERVICES LTD,25610,19-Dec-22,4092.48,682.08,182414,Corporate Contracts - FM,130000              Cleaning & Janitorial,A,2022,9
1031,Corporate Services,BIRKIN CLEANING SERVICES LTD,25612,19-Dec-22,585.12,97.52,182414,Corporate Contracts - FM,130000              Cleaning & Janitorial,A,2022,9
1032,Community and Housing,BIRKIN CLEANING SERVICES LTD,26768,21-Dec-22,1545.6,257.6,182414,Galpins Road Support,130000              Cleaning & Janitorial,A,2022,9
1033,Corporate Services,BIRKIN CLEANING SERVICES LTD,25611,21-Dec-22,1066.8,177.8,182414,Corporate Contracts - FM,130000              Cleaning & Janitorial,A,2022,9
1034,Environment and Regeneration,BIRKIN CLEANING SERVICES LTD,27391,28-Dec-22,632.6,105.43,182414,Durnsford industrial estate,130000              Cleaning & Janitorial,A,2022,9
1035,Corporate Services,BIRKIN CLEANING SERVICES LTD,27389,28-Dec-22,1312.31,218.72,182414,Corporate Contracts - FM,130000              Cleaning & Janitorial,A,2022,9
1036,Community and Housing,BIRKIN CLEANING SERVICES LTD,27500,28-Dec-22,950.88,158.48,182414,Raynes Park Library,130000              Cleaning & Janitorial,A,2022,9
1037,Community and Housing,BIRKIN CLEANING SERVICES LTD,27394,28-Dec-22,966.26,161.04,182414,Wimbledon Library,130000              Cleaning & Janitorial,A,2022,9
1038,Community and Housing,BIRKIN CLEANING SERVICES LTD,27387,28-Dec-22,1629.23,271.54,182414,Morden Library,130000              Cleaning & Janitorial,A,2022,9
1039,Environment and Regeneration,BIRKIN CLEANING SERVICES LTD,27390,28-Dec-22,2894.94,482.49,182414,Vestry Hall,130000              Cleaning & Janitorial,A,2022,9
1040,Corporate Services,BIRKIN CLEANING SERVICES LTD,27388,28-Dec-22,2213.82,368.97,182414,Corporate Contracts - FM,130000              Cleaning & Janitorial,A,2022,9
1041,Corporate Services,BIRKIN CLEANING SERVICES LTD,27392,28-Dec-22,7869.83,1311.64,182414,Corporate Contracts - FM,130000              Cleaning & Janitorial,A,2022,9
1042,Corporate Services,BIRKIN CLEANING SERVICES LTD,27386,28-Dec-22,24732.96,4122.16,182414,Corporate Contracts - FM,130000              Cleaning & Janitorial,A,2022,9
1043,Community and Housing,BIRKIN CLEANING SERVICES LTD,27395,28-Dec-22,1585.7,264.28,182414,Mitcham Library,130000              Cleaning & Janitorial,A,2022,9
1044,"Children, Schools and Family",REDACTED PERSONAL DATA,907405,06-Dec-22,829.8,0,182494,Child Disabilities - Placement,DIRECT PAYMENTS,R,2022,9
1045,"Children, Schools and Family",REDACTED PERSONAL DATA,911924,16-Dec-22,852.2,0,182558,UASC Care Leavers Over 18,321100              Social Community Care Supplies & Services - Children,R,2022,9
1046,Community and Housing,REDACTED PERSONAL DATA,906832,06-Dec-22,1877.4,0,182584,Phys/Sens Placements - East,DIRECT PAYMENTS,R,2022,9
1047,"Children, Schools and Family",REDACTED PERSONAL DATA,906324,02-Dec-22,998,0,182648,Placements Under 18,321100              Social Community Care Supplies & Services - Children,R,2022,9
1048,"Children, Schools and Family",REDACTED PERSONAL DATA,906326,02-Dec-22,614.75,0,182648,UASC LAC Under 18,321100              Social Community Care Supplies & Services - Children,R,2022,9
1049,"Children, Schools and Family",REDACTED PERSONAL DATA,909098,09-Dec-22,514.75,0,182648,Placements Under 18,321100              Social Community Care Supplies & Services - Children,R,2022,9
1050,"Children, Schools and Family",REDACTED PERSONAL DATA,909100,09-Dec-22,514.75,0,182648,UASC LAC Under 18,321100              Social Community Care Supplies & Services - Children,R,2022,9
1051,"Children, Schools and Family",REDACTED PERSONAL DATA,911905,16-Dec-22,1029.5,0,182648,UASC LAC Under 18,321100              Social Community Care Supplies & Services - Children,R,2022,9
1052,"Children, Schools and Family",REDACTED PERSONAL DATA,911959,16-Dec-22,1570.72,0,182648,UASC LAC Under 18,321100              Social Community Care Supplies & Services - Children,R,2022,9
1053,"Children, Schools and Family",REDACTED PERSONAL DATA,914742,29-Dec-22,514.75,0,182648,UASC LAC Under 18,321100              Social Community Care Supplies & Services - Children,R,2022,9
1054,"Children, Schools and Family",REDACTED PERSONAL DATA,914797,29-Dec-22,514.75,0,182648,UASC LAC Under 18,321100              Social Community Care Supplies & Services - Children,R,2022,9
1055,Community and Housing,REDACTED PERSONAL DATA,907054,06-Dec-22,5223.56,0,182894,Learning Disabilities Placemnt,DIRECT PAYMENTS,R,2022,9
1056,Corporate Services,PELLINGS LLP,SI9032672,16-Dec-22,1200,200,182945,SLLP - Disbursements,280000              Legal Services                                                                            Confirmed,A,2022,9
1057,Community and Housing,REDACTED PERSONAL DATA,906759,06-Dec-22,4103.12,0,183167,Older People Placements - East,DIRECT PAYMENTS,R,2022,9
1058,Community and Housing,ST ANTONYS CARE HOME,911378,16-Dec-22,1920,0,183206,Older People Placements - East,321017              Nursing & Residential Care Homes,A,2022,9
1059,Community and Housing,ST ANTONYS CARE HOME,911379,16-Dec-22,822.86,0,183206,Older People Placements - East,321017              Nursing & Residential Care Homes,A,2022,9
1060,Community and Housing,ST ANTONYS CARE HOME,911577,20-Dec-22,2838.12,0,183206,Older People Placements - East,321017              Nursing & Residential Care Homes,A,2022,9
1061,Community and Housing,ST ANTONYS CARE HOME,911591,20-Dec-22,3600,0,183206,Older People Placements - East,321017              Nursing & Residential Care Homes,A,2022,9
1062,Community and Housing,ST ANTONYS CARE HOME,911603,20-Dec-22,2880,0,183206,Older People Placements - East,321017              Nursing & Residential Care Homes,A,2022,9
1063,Community and Housing,ST ANTONYS CARE HOME,911773,20-Dec-22,3840,0,183206,Older People Placements - East,321017              Nursing & Residential Care Homes,A,2022,9
1064,Community and Housing,ST ANTONYS CARE HOME,911803,20-Dec-22,3071.12,0,183206,Older People Placements - East,321017              Nursing & Residential Care Homes,A,2022,9
1065,Unassigned,HARRIS ACADEMY MORDEN,SCHOOLS 2223/9 A,06-Dec-22,73885.3,0,183257,Schools,170000              Education,A,2022,9
1066,"Children, Schools and Family",CRESSEY OASIS EDUCATION LTD,2079,14-Dec-22,22356.7,0,183299,Non-Delegated Statements,170000              Education,A,2022,9
1067,"Children, Schools and Family",CRESSEY OASIS EDUCATION LTD,2084,14-Dec-22,21445.84,0,183299,Non-Delegated Statements,170000              Education,A,2022,9
1068,"Children, Schools and Family",CRESSEY OASIS EDUCATION LTD,2080,14-Dec-22,21025.33,0,183299,Non-Delegated Statements,170000              Education,A,2022,9
1069,"Children, Schools and Family",CRESSEY OASIS EDUCATION LTD,2074,14-Dec-22,21010,0,183299,Non-Delegated Statements,170000              Education,A,2022,9
1070,"Children, Schools and Family",CRESSEY OASIS EDUCATION LTD,2087,14-Dec-22,22647.74,0,183299,Non-Delegated Statements,170000              Education,A,2022,9
1071,"Children, Schools and Family",CRESSEY OASIS EDUCATION LTD,2073,14-Dec-22,22647.74,0,183299,Non-Delegated Statements,170000              Education,A,2022,9
1072,"Children, Schools and Family",CRESSEY OASIS EDUCATION LTD,2086,14-Dec-22,19919.89,0,183299,Non-Delegated Statements,170000              Education,A,2022,9
1073,"Children, Schools and Family",CRESSEY OASIS EDUCATION LTD,2077,14-Dec-22,24020.66,0,183299,Non-Delegated Statements,170000              Education,A,2022,9
1074,"Children, Schools and Family",CRESSEY OASIS EDUCATION LTD,2082,14-Dec-22,21025.33,0,183299,Non-Delegated Statements,170000              Education,A,2022,9
1075,"Children, Schools and Family",CRESSEY OASIS EDUCATION LTD,2072,14-Dec-22,21025.33,0,183299,Non-Delegated Statements,170000              Education,A,2022,9
1076,"Children, Schools and Family",CRESSEY OASIS EDUCATION LTD,2085,14-Dec-22,21875.6,0,183299,Non-Delegated Statements,170000              Education,A,2022,9
1077,"Children, Schools and Family",CRESSEY OASIS EDUCATION LTD,2076,14-Dec-22,23522.56,0,183299,Non-Delegated Statements,170000              Education,A,2022,9
1078,"Children, Schools and Family",CRESSEY OASIS EDUCATION LTD,2078,14-Dec-22,23152.3,0,183299,Non-Delegated Statements,170000              Education,A,2022,9
1079,"Children, Schools and Family",CRESSEY OASIS EDUCATION LTD,2083,14-Dec-22,21553.67,0,183299,Non-Delegated Statements,170000              Education,A,2022,9
1080,"Children, Schools and Family",CRESSEY OASIS EDUCATION LTD,2075,14-Dec-22,21025,0,183299,Non-Delegated Statements,170000              Education,A,2022,9
1081,"Children, Schools and Family",CRESSEY OASIS EDUCATION LTD,2081,14-Dec-22,21025,0,183299,Non-Delegated Statements,170000              Education,A,2022,9
1082,"Children, Schools and Family",CRESSEY OASIS EDUCATION LTD,2090,14-Dec-22,21394.5,0,183299,Non-Delegated Statements,170000              Education,A,2022,9
1083,"Children, Schools and Family",CRESSEY OASIS EDUCATION LTD,2089,14-Dec-22,19819.96,0,183299,Non-Delegated Statements,170000              Education,A,2022,9
1084,"Children, Schools and Family",CRESSEY OASIS EDUCATION LTD,2088,14-Dec-22,22313.18,0,183299,Non-Delegated Statements,170000              Education,A,2022,9
1085,"Children, Schools and Family",CRESSEY OASIS EDUCATION LTD,2098,14-Dec-22,18662.87,0,183299,Non-Delegated Statements,170000              Education,A,2022,9
1086,"Children, Schools and Family",CRESSEY OASIS EDUCATION LTD,2108,14-Dec-22,19036.26,0,183299,Non-Delegated Statements,170000              Education,A,2022,9
1087,"Children, Schools and Family",CRESSEY OASIS EDUCATION LTD,2095,14-Dec-22,30403,0,183299,Non-Delegated Statements,170000              Education,A,2022,9
1088,"Children, Schools and Family",CRESSEY OASIS EDUCATION LTD,2094,14-Dec-22,22647.74,0,183299,Non-Delegated Statements,170000              Education,A,2022,9
1089,"Children, Schools and Family",CRESSEY OASIS EDUCATION LTD,2097,14-Dec-22,19321.86,0,183299,Non-Delegated Statements,170000              Education,A,2022,9
1090,"Children, Schools and Family",CRESSEY OASIS EDUCATION LTD,2107,14-Dec-22,14277.28,0,183299,Non-Delegated Statements,170000              Education,A,2022,9
1091,"Children, Schools and Family",CRESSEY OASIS EDUCATION LTD,2115,14-Dec-22,28804.23,0,183299,Non-Delegated Statements,170000              Education,A,2022,9
1092,"Children, Schools and Family",CRESSEY OASIS EDUCATION LTD,2096,14-Dec-22,21554,0,183299,Non-Delegated Statements,170000              Education,A,2022,9
1093,"Children, Schools and Family",CRESSEY OASIS EDUCATION LTD,2106,14-Dec-22,19812.48,0,183299,Non-Delegated Statements,170000              Education,A,2022,9
1094,"Children, Schools and Family",CRESSEY OASIS EDUCATION LTD,2112,14-Dec-22,35000.03,0,183299,Non-Delegated Statements,170000              Education,A,2022,9
1095,"Children, Schools and Family",CRESSEY OASIS EDUCATION LTD,2113,14-Dec-22,21553.61,0,183299,Non-Delegated Statements,170000              Education,A,2022,9
1096,"Children, Schools and Family",CRESSEY OASIS EDUCATION LTD,2105,14-Dec-22,20464.26,0,183299,Non-Delegated Statements,170000              Education,A,2022,9
1097,"Children, Schools and Family",CRESSEY OASIS EDUCATION LTD,2114,14-Dec-22,22313.2,0,183299,Non-Delegated Statements,170000              Education,A,2022,9
1098,"Children, Schools and Family",CRESSEY OASIS EDUCATION LTD,2111,14-Dec-22,30999.93,0,183299,Non-Delegated Statements,170000              Education,A,2022,9
1099,"Children, Schools and Family",CRESSEY OASIS EDUCATION LTD,2093,14-Dec-22,19526.88,0,183299,Non-Delegated Statements,170000              Education,A,2022,9
1100,"Children, Schools and Family",CRESSEY OASIS EDUCATION LTD,2103,14-Dec-22,20318.06,0,183299,Non-Delegated Statements,170000              Education,A,2022,9
1101,"Children, Schools and Family",CRESSEY OASIS EDUCATION LTD,2109,14-Dec-22,30999.93,0,183299,Non-Delegated Statements,170000              Education,A,2022,9
1102,"Children, Schools and Family",CRESSEY OASIS EDUCATION LTD,2092,14-Dec-22,19419.27,0,183299,Non-Delegated Statements,170000              Education,A,2022,9
1103,"Children, Schools and Family",CRESSEY OASIS EDUCATION LTD,2101,14-Dec-22,19820.3,0,183299,Non-Delegated Statements,170000              Education,A,2022,9
1104,"Children, Schools and Family",CRESSEY OASIS EDUCATION LTD,2104,14-Dec-22,20017.84,0,183299,Non-Delegated Statements,170000              Education,A,2022,9
1105,"Children, Schools and Family",CRESSEY OASIS EDUCATION LTD,2091,14-Dec-22,20136.78,0,183299,Non-Delegated Statements,170000              Education,A,2022,9
1106,"Children, Schools and Family",CRESSEY OASIS EDUCATION LTD,2102,14-Dec-22,20298,0,183299,Non-Delegated Statements,170000              Education,A,2022,9
1107,"Children, Schools and Family",CRESSEY OASIS EDUCATION LTD,2099,14-Dec-22,19812.48,0,183299,Non-Delegated Statements,170000              Education,A,2022,9
1108,"Children, Schools and Family",CRESSEY OASIS EDUCATION LTD,2100,16-Dec-22,19231.86,0,183299,Non-Delegated Statements,170000              Education,A,2022,9
1109,Community and Housing,Wimbledon Medical Practice,LARC-Q2-22WMP,13-Dec-22,1360,0,183348,PH - Sexual Health,310000              Healthcare,A,2022,9
1110,Community and Housing,AP CHEMIST,BPPND/00000042,22-Dec-22,906.24,11.44,183395,PH - Sexual Health,310000              Healthcare,A,2022,9
1111,Community and Housing,REDACTED PERSONAL DATA,906746,06-Dec-22,1170.44,0,183460,Learning Disabilities Placemnt,DIRECT PAYMENTS,R,2022,9
1112,Community and Housing,REDACTED PERSONAL DATA,906763,06-Dec-22,986.44,0,183464,Older People Placements - East,DIRECT PAYMENTS,R,2022,9
1113,Community and Housing,CREST MANOR LTD,CM0788,06-Dec-22,7807.5,0,183548,Bed & Breakfast - accomm,250000              Housing Management,A,2022,9
1114,"Children, Schools and Family",REDACTED PERSONAL DATA,907617,06-Dec-22,1710,0,183558,Child Disabilities - Placement,CSF-DIRECT PAYMENTS,R,2022,9
1115,Community and Housing,Kent House Care Home,911740,20-Dec-22,2884,0,183560,Older People Placements - East,321017              Nursing & Residential Care Homes,A,2022,9
1116,Community and Housing,REDACTED PERSONAL DATA,906949,06-Dec-22,540.92,0,183690,Older People Placements - East,DIRECT PAYMENTS,R,2022,9
1117,Community and Housing,HOUNSLOW AND RICHM'D COMM H'CARE,82980026,13-Dec-22,16617.5,0,183949,PH - Prevention,310000              Healthcare,A,2022,9
1118,Community and Housing,DEBIGNO LTD,INV-1983,16-Dec-22,755.93,125.99,184000,PH - Sexual Health,310000              Healthcare,A,2022,9
1119,Community and Housing,REDACTED PERSONAL DATA,907058,06-Dec-22,679.2,0,184011,Older People Placements - East,DIRECT PAYMENTS,R,2022,9
1120,Community and Housing,NHS MERTON CCG,911616,28-Dec-22,1620,0,184012,Mental Health Placements,310000              Healthcare,A,2022,9
1121,Community and Housing,NHS MERTON CCG,911704,28-Dec-22,3462.48,0,184012,Mental Health Placements,310000              Healthcare,A,2022,9
1122,Community and Housing,NHS MERTON CCG,911745,28-Dec-22,5935.12,0,184012,Mental Health Placements,310000              Healthcare,A,2022,9
1123,Community and Housing,REDACTED PERSONAL DATA,906869,06-Dec-22,2530.08,0,184175,Older People Placements - East,DIRECT PAYMENTS,R,2022,9
1124,Community and Housing,CROWNWISE LTD,SH/167/093,20-Dec-22,1950,0,184360,Mental Health Placements,321000              Social Community Care Supplies & Services - Adult,A,2022,9
1125,Community and Housing,CROWNWISE LTD,MP/167/107,20-Dec-22,1160,0,184360,Mental Health Placements,321000              Social Community Care Supplies & Services - Adult,A,2022,9
1126,Community and Housing,MARIAN HOUSE NURSING HOME,911521,20-Dec-22,2834.56,0,184385,Older People Placements - East,321017              Nursing & Residential Care Homes,A,2022,9
1127,"Children, Schools and Family",REDACTED PERSONAL DATA,906436,02-Dec-22,649.61,0,184386,Placements Under 18,321100              Social Community Care Supplies & Services - Children,R,2022,9
1128,"Children, Schools and Family",REDACTED PERSONAL DATA,909209,09-Dec-22,549.61,0,184386,Placements Under 18,321100              Social Community Care Supplies & Services - Children,R,2022,9
1129,"Children, Schools and Family",REDACTED PERSONAL DATA,912005,16-Dec-22,869.5,0,184386,Placements Under 18,321100              Social Community Care Supplies & Services - Children,R,2022,9
1130,"Children, Schools and Family",REDACTED PERSONAL DATA,912016,16-Dec-22,1099.22,0,184386,Placements Under 18,321100              Social Community Care Supplies & Services - Children,R,2022,9
1131,"Children, Schools and Family",REDACTED PERSONAL DATA,914855,29-Dec-22,549.61,0,184386,Placements Under 18,321100              Social Community Care Supplies & Services - Children,R,2022,9
1132,Community and Housing,REDACTED PERSONAL DATA,906897,06-Dec-22,4109.84,0,184580,Older People Placements - East,DIRECT PAYMENTS,R,2022,9
1133,Community and Housing,REDACTED PERSONAL DATA,906816,06-Dec-22,802.6,0,184608,Older People Placements - East,DIRECT PAYMENTS,R,2022,9
1134,"Children, Schools and Family",Bright Horizons Wimbledon House Nursery,P2 22 EY FUND 2,14-Dec-22,1410.6,0,184692,EARLY YEARS NURSERY GRANTS,170000              Education,A,2022,9
1135,Community and Housing,SK HOUSING LTD,6436,06-Dec-22,17892,2982,184774,Bed & Breakfast - accomm,321000              Social Community Care Supplies & Services - Adult,A,2022,9
1136,Community and Housing,CROHAM PLACE,911471,20-Dec-22,9007.52,0,184807,Learning Disabilities Placemnt,321017              Nursing & Residential Care Homes,A,2022,9
1137,Community and Housing,REDACTED PERSONAL DATA,906723,06-Dec-22,898.32,0,184819,Older People Placements - East,DIRECT PAYMENTS,R,2022,9
1138,"Children, Schools and Family",HIGHER LEVEL CARE (HLC) LTD,14425,06-Dec-22,2357.1,0,184822,UASC Care Leavers Over 18,321100              Social Community Care Supplies & Services - Children Residential,A,2022,9
1139,"Children, Schools and Family",HIGHER LEVEL CARE (HLC) LTD,14424,06-Dec-22,3717.86,0,184822,Placements Under 18,321100              Social Community Care Supplies & Services - Children Residential,A,2022,9
1140,"Children, Schools and Family",HIGHER LEVEL CARE (HLC) LTD,14424A,06-Dec-22,3717.64,0,184822,Placements Under 18,321100              Social Community Care Supplies & Services - Children Residential,A,2022,9
1141,"Children, Schools and Family",HIGHER LEVEL CARE (HLC) LTD,14429,06-Dec-22,1928.57,0,184822,UASC Care Leavers Over 18,321100              Social Community Care Supplies & Services - Children Residential,A,2022,9
1142,Community and Housing,QUARTZ PROPERTIES,LBM110,06-Dec-22,14327,0,184919,Bed & Breakfast - accomm,321000              Social Community Care Supplies & Services - Adult,A,2022,9
1143,Community and Housing,QUARTZ PROPERTIES,LBMGLPN11,28-Dec-22,3750,0,184919,Galpins Road Support,321000              Social Community Care Supplies & Services - Adult,A,2022,9
1144,Community and Housing,QUARTZ PROPERTIES,LBMGLPN13,28-Dec-22,2400,0,184919,Galpins Road Support,321000              Social Community Care Supplies & Services - Adult,A,2022,9
1145,Community and Housing,QUARTZ PROPERTIES,LBMGLPN12,28-Dec-22,5950,0,184919,Galpins Road Support,321000              Social Community Care Supplies & Services - Adult,A,2022,9
1146,Community and Housing,QUARTZ PROPERTIES,LBMGLPN14,28-Dec-22,4500,0,184919,Galpins Road Support,321000              Social Community Care Supplies & Services - Adult,A,2022,9
1147,Community and Housing,REDACTED PERSONAL DATA,906760,06-Dec-22,572.76,0,184950,Phys/Sens Placements - East,DIRECT PAYMENTS,R,2022,9
1148,Corporate Services,Thintech Group Ltd,INV-0748,05-Dec-22,30630.74,5105.12,184970,IT Service Delivery,270000              Information Communication Technology                                   5665194,A,2022,9
1149,Community and Housing,HOLDSWORTHS,250253,12-Dec-22,637.78,4.46,185001,Eastway Day Centre,110000              Catering,A,2022,9
1150,Community and Housing,LONDON CARE LTD,3333/22,15-Dec-22,701.69,0,185026,Older People Placements - East,321000              Social Community Care Supplies & Services - Adult,A,2022,9
1151,Community and Housing,LONDON CARE LTD,3333/8,15-Dec-22,516.93,0,185026,Older People Placements - East,321000              Social Community Care Supplies & Services - Adult,A,2022,9
1152,Community and Housing,LONDON CARE LTD,3333/4,15-Dec-22,1277.89,0,185026,Older People Placements - East,321000              Social Community Care Supplies & Services - Adult,A,2022,9
1153,Community and Housing,LONDON CARE LTD,3333/10,15-Dec-22,2876.2,0,185026,Older People Placements - East,321000              Social Community Care Supplies & Services - Adult,A,2022,9
1154,Community and Housing,LONDON CARE LTD,3333/23,15-Dec-22,1836.25,0,185026,Older People Placements - East,321000              Social Community Care Supplies & Services - Adult,A,2022,9
1155,Community and Housing,LONDON CARE LTD,3333/19,15-Dec-22,735.93,0,185026,Older People Placements - East,321000              Social Community Care Supplies & Services - Adult,A,2022,9
1156,Community and Housing,LONDON CARE LTD,3333/26,15-Dec-22,518.33,0,185026,Older People Placements - East,321000              Social Community Care Supplies & Services - Adult,A,2022,9
1157,Community and Housing,LONDON CARE LTD,3333/1,15-Dec-22,985.66,0,185026,Older People Placements - East,321000              Social Community Care Supplies & Services - Adult,A,2022,9
1158,Community and Housing,LONDON CARE LTD,3333/16,15-Dec-22,957.3,0,185026,Older People Placements - East,321000              Social Community Care Supplies & Services - Adult,A,2022,9
1159,Community and Housing,LONDON CARE LTD,3333/3,15-Dec-22,1466.97,0,185026,Older People Placements - East,321000              Social Community Care Supplies & Services - Adult,A,2022,9
1160,Community and Housing,LONDON CARE LTD,3333/31,15-Dec-22,2338.1,0,185026,Older People Placements - East,321000              Social Community Care Supplies & Services - Adult,A,2022,9
1161,Community and Housing,LONDON CARE LTD,3333/17,15-Dec-22,644.98,0,185026,Older People Placements - East,321000              Social Community Care Supplies & Services - Adult,A,2022,9
1162,Community and Housing,LONDON CARE LTD,3333/11,15-Dec-22,550.53,0,185026,Phys/Sens Placements - East,321000              Social Community Care Supplies & Services - Adult,A,2022,9
1163,Community and Housing,LONDON CARE LTD,3333/20,15-Dec-22,1057.23,0,185026,Older People Placements - East,321000              Social Community Care Supplies & Services - Adult,A,2022,9
1164,Community and Housing,LONDON CARE LTD,3333/12,15-Dec-22,771.84,0,185026,Older People Placements - East,321000              Social Community Care Supplies & Services - Adult,A,2022,9
1165,Community and Housing,LONDON CARE LTD,0165194687/23,15-Dec-22,1110.32,0,185026,Older People Placements - East,321000              Social Community Care Supplies & Services - Adult,A,2022,9
1166,Community and Housing,LONDON CARE LTD,0165194687/4,15-Dec-22,1068.93,0,185026,Older People Placements - East,321000              Social Community Care Supplies & Services - Adult,A,2022,9
1167,Community and Housing,LONDON CARE LTD,0165194687/11,15-Dec-22,2925.53,0,185026,Older People Placements - East,321000              Social Community Care Supplies & Services - Adult,A,2022,9
1168,Community and Housing,LONDON CARE LTD,0165194687/25,15-Dec-22,1879.48,0,185026,Older People Placements - East,321000              Social Community Care Supplies & Services - Adult,A,2022,9
1169,Community and Housing,LONDON CARE LTD,0165194687/14,15-Dec-22,820.37,0,185026,Older People Placements - East,321000              Social Community Care Supplies & Services - Adult,A,2022,9
